Workbook

Sheet Inflated_data
C1: Last Year Base | D1: Current Year Base | E1: Current Year Inflated | F1: Current Year Inflated | G1: Current Year Inflated | H1: Current Year Inflated | I1: Current Year Inflated | J1: Current Year Inflated | K1: Current Year Inflated | L1: Current Year Inflated | M1: Current Year Inflated | N1: Current Year Inflated | O1: Current Year Inflated | P1: Current Year Inflated | Q1: Current Year Inflated | R1: Current Year Inflated | S1: Current Year Inflated | T1: Current Year Inflated | U1: Current Year Inflated | V1: Current Year Inflated | W1: Current Year Inflated | X1: Current Year Inflated | Y1: Current Year Inflated | Z1: Current Year Inflated | AA1: Current Year Inflated | AB1: Current Year Inflated | AC1: Current Year Inflated | AD1: Current Year Inflated | AE1: Current Year Inflated | AF1: Current Year Inflated | AG1: Current Year Inflated | AH1: Current Year Inflated | AI1: Current Year Inflated | AJ1: Current Year Inflated
C2: 2017/18 | D2: 2018/19 | E2: 2019/20 | F2: 2020/21 | G2: 2021/22 | H2: 2022/23 | I2: 2023/24 | J2: 2024/25 | K2: 2025/26 | L2: 2026/27 | M2: 2027/28 | N2: 2028/29 | O2: 2029/30 | P2: 2030/31 | Q2: 2031/32 | R2: 2032/33 | S2: 2033/34 | T2: 2034/35 | U2: 2035/36 | V2: 2036/37 | W2: 2037/38 | X2: 2038/39 | Y2: 2039/40 | Z2: 2040/41 | AA2: 2041/42 | AB2: 2042/43 | AC2: 2043/44 | AD2: 2044/45 | AE2: 2045/46 | AF2: 2046/47 | AG2: 2047/48 | AH2: 2048/49 | AI2: 2049/50 | AJ2: 2050/51
A3: Total Rates & Levies | B3: WRC - Mgmt | C3: 154910329.9 | D3: 165180306.4 | E3: 174285448 | F3: 184835883.2 | G3: 198638978.6 | H3: 212269853.6 | I3: 221310675.8 | J3: 230762194.3 | K3: 236561117.1 | L3: 245582118.8 | M3: 249845751.4 | N3: 254266483.3 | O3: 258187274.1 | P3: 257871968.1 | Q3: 259986032.5 | R3: 267274342.5 | S3: 271662013.6 | T3: 277281969.4 | U3: 281491293.8 | V3: 289318244.9 | W3: 295768432.7 | X3: 305739883 | Y3: 316462085.2 | Z3: 320168789.4 | AA3: 328118800.5 | AB3: 339004895.6 | AC3: 355432722.6 | AD3: 365680915.2 | AE3: 374307060.4 | AF3: 384816820.6 | AG3: 390858100 | AH3: 396176125.3 | AI3: 506241112.4 | AJ3: 510098583.2
A4: Bulk Water Levies | B4: WRC - Mgmt | C4: 30862765.44 | D4: 33068898.04 | E4: 34230480.13 | F4: 35891638.61 | G4: 38304663.52 | H4: 41213707.57 | I4: 44125836.13 | J4: 47240404.98 | K4: 47906128.11 | L4: 48336405.48 | M4: 48426995.72 | N4: 49663289.76 | O4: 50689410.55 | P4: 51673197.2 | Q4: 53158936.33 | R4: 53965569.46 | S4: 55215987.25 | T4: 58004625.92 | U4: 61427050.08 | V4: 65517081.88 | W4: 70784897.04 | X4: 76055667.9 | Y4: 81987117.73 | Z4: 86459854.14 | AA4: 88201601 | AB4: 90184443.89 | AC4: 94413001.56 | AD4: 100574587.9 | AE4: 106543660.3 | AF4: 112163760.6 | AG4: 117470610.8 | AH4: 122230945.8 | AI4: 127827561.7 | AJ4: 129544833.8
A5: Warm Greater Wellington rate | B5: =+$B$3 -> WRC - Mgmt | C5: 3268007.073 | D5: 3237058 | E5: 3555642.368 | F5: 3801941.299 | G5: 3680251.876 | H5: 3673085.734 | I5: 3916686.943 | J5: 4223164.993 | K5: 4391789.676 | L5: 4632220.725 | M5: 4790365.905 | N5: 4442946.233 | O5: 4028126.98 | P5: 3624133.319 | Q5: 3169626.105 | R5: 2674627.375 | S5: 2085425.84 | T5: 1450894.273 | U5: 754793.549 | V5: 0 | W5: -4.365574569e-11 | X5: 1.091393642e-10 | Y5: 1.309672371e-10 | Z5: -4.802132025e-10 | AA5: -2.328306437e-10 | AB5: -1.455191523e-11 | AC5: -7.275957614e-11 | AD5: -8.003553376e-11 | AE5: -1.236912794e-10 | AF5: 0 | AG5: 0 | AH5: 0 | AI5: 0 | AJ5: 0
A6: External Interest Revenue | B6: WRC - Mgmt | C6: 2943166.84 | D6: 2720810.464 | E6: 2883687.844 | F6: 3292574.668 | G6: 3952038.966 | H6: 4435877.151 | I6: 4869291.874 | J6: 5222229.536 | K6: 5481685.812 | L6: 5752168.979 | M6: 6323856.186 | N6: 6644350.717 | O6: 6979230.696 | P6: 7329141.832 | Q6: 7694758.815 | R6: 8076786.623 | S6: 8475961.875 | T6: 8893054.257 | U6: 9328868.005 | V6: 9784243.452 | W6: 10260058.65 | X6: 10757231.08 | Y6: 11276719.38 | Z6: 11819525.24 | AA6: 12386695.3 | AB6: 12979323.19 | AC6: 13598551.64 | AD6: 14245574.64 | AE6: 14921639.82 | AF6: 15628050.78 | AG6: 16147293.64 | AH6: 16918543.68 | AI6: 17200312.05 | AJ6: 15986347.81
A7: Total Government Subsidies | B7: WRC - Mgmt | C7: 96552550.64 | D7: 105713207 | E7: 106511708.6 | F7: 109178941.3 | G7: 102649003.7 | H7: 100729209.7 | I7: 101508577 | J7: 105062869.1 | K7: 110476212.4 | L7: 114325356.7 | M7: 123837779.6 | N7: 133123032.5 | O7: 183876482.1 | P7: 130651815.6 | Q7: 120841276.3 | R7: 126714610.2 | S7: 131105691.2 | T7: 134768818.8 | U7: 145162055.4 | V7: 152159617.1 | W7: 152436121.2 | X7: 177782513.4 | Y7: 165643156.4 | Z7: 163752876.5 | AA7: 288394551.9 | AB7: 296248402.4 | AC7: 306227692.6 | AD7: 184118522.9 | AE7: 196240568.6 | AF7: 201926635.5 | AG7: 212593309.6 | AH7: 220938183.6 | AI7: 231942733.4 | AJ7: 212514099.4
A8: Transport Fare Revenue | B8: WRC - Mgmt | C8: 48062802.76 | D8: 94119980.1 | E8: 97447321.22 | F8: 99738134.66 | G8: 100049886.4 | H8: 103028512.1 | I8: 106200282.9 | J8: 109469861.2 | K8: 112951127.6 | L8: 124391026.5 | M8: 120367958 | N8: 124318372.9 | O8: 136726773.3 | P8: 141107889.6 | Q8: 145630996.3 | R8: 150300748.5 | S8: 155121955.8 | T8: 160099587 | U8: 165238776 | V8: 170544826.8 | W8: 176023219.5 | X8: 181679616.3 | Y8: 187519867.4 | Z8: 193550017.3 | AA8: 199776311.4 | AB8: 206205202.9 | AC8: 212843359.3 | AD8: 219697670.1 | AE8: 226775254.2 | AF8: 234083467.1 | AG8: 241629909.6 | AH8: 249422435.5 | AI8: 257469160.2 | AJ8: 179524874
A9: Total Operating Revenue | B9: WRC - Mgmt | C9: 343965012.9 | D9: 407297637.4 | E9: 420849297.4 | F9: 430526895.9 | G9: 438111693.9 | H9: 451341923 | I9: 464578736.8 | J9: 481260923.6 | K9: 494505293.9 | L9: 517875865.3 | M9: 528463394.6 | N9: 546716312 | O9: 614599327.1 | P9: 566312836.2 | Q9: 564065874.8 | R9: 582764143.8 | S9: 597284418.5 | T9: 612543278.7 | U9: 633331838.4 | V9: 654447995.7 | W9: 667745284.7 | X9: 709821862.1 | Y9: 715437432.5 | Z9: 724422164.1 | AA9: 864422633.7 | AB9: 890850165.4 | AC9: 925221903.9 | AD9: 822069368.8 | AE9: 851270359.9 | AF9: 876216794 | AG9: 904210062.8 | AH9: 924175519.1 | AI9: 1053873685 | AJ9: 935785871.4
A10: General Rates | B10: WRC - Mgmt | C10: 42479338.79 | D10: 47283313.91 | E10: 52131847.83 | F10: 51490578.67 | G10: 55195810.83 | H10: 57236923.43 | I10: 58324507.98 | J10: 60093415.74 | K10: 62672238.56 | L10: 64956322.57 | M10: 67995137.08 | N10: 69943357.23 | O10: 67608629.92 | P10: 70184761.22 | Q10: 71993393.36 | R10: 75007512.43 | S10: 77716551.58 | T10: 79624103.38 | U10: 80840093.34 | V10: 83765035.22 | W10: 83838170.57 | X10: 85887929.71 | Y10: 87275559.31 | Z10: 89560608.45 | AA10: 90733401.72 | AB10: 91234342.75 | AC10: 94510799.27 | AD10: 94760776.38 | AE10: 96183071.86 | AF10: 99169841.05 | AG10: 98239184.94 | AH10: 99997917.38 | AI10: 190166611.7 | AJ10: 104423754.5
A11: Total Financial Costs | B11: WRC - Mgmt | C11: 19686329.83 | D11: 22528343.74 | E11: 23712469.21 | F11: 23432043.08 | G11: 27023088.33 | H11: 30424428.52 | I11: 34017336.7 | J11: 35823044.17 | K11: 35854129.57 | L11: 35508958.62 | M11: 36233271.15 | N11: 35657799.87 | O11: 36039234.38 | P11: 36331902.47 | Q11: 35386369.38 | R11: 34566884.84 | S11: 34360363.22 | T11: 34687368.15 | U11: 35306711 | V11: 36355135.29 | W11: 37934170.75 | X11: 40314428.21 | Y11: 42954487.48 | Z11: 43900651.71 | AA11: 46280745.71 | AB11: 51799010.14 | AC11: 58954164.4 | AD11: 64391271.33 | AE11: 66742186.46 | AF11: 68926699.14 | AG11: 71383466.42 | AH11: 74173420.58 | AI11: 165249361.4 | AJ11: 150656375.7
A12: Depreciation | B12: WRC - Mgmt | C12: 17893584.77 | D12: 26674015.82 | E12: 30352840.47 | F12: 35254004.97 | G12: 39121496.26 | H12: 42080884.3 | I12: 41882635.25 | J12: 43492709.78 | K12: 44800156.73 | L12: 46817466.66 | M12: 47883565.77 | N12: 48075875.48 | O12: 48802369.53 | P12: 45194894.26 | Q12: 43715921.37 | R12: 43773142.24 | S12: 43841537.9 | T12: 44163859.99 | U12: 44802821.72 | V12: 45593457.45 | W12: 47211485.19 | X12: 47201439.77 | Y12: 49347824.19 | Z12: 51453739.54 | AA12: 52118037.4 | AB12: 51820267.05 | AC12: 52066653.99 | AD12: 52330835.75 | AE12: 52031827 | AF12: 52751122.83 | AG12: 55069845.11 | AH12: 55965395.61 | AI12: 53658579.2 | AJ12: 59006686.11
A13: Grants - Capital Works | B13: =+B12 -> WRC - Mgmt | C13: 8362250 | D13: 2381480 | E13: 0 | F13: 0 | G13: 0 | H13: 0 | I13: 0 | J13: 0 | K13: 0 | L13: 0 | M13: 0 | N13: 0 | O13: 0 | P13: 0 | Q13: 0 | R13: 0 | S13: 0 | T13: 0 | U13: 0 | V13: 0 | W13: 0 | X13: 0 | Y13: 0 | Z13: 0 | AA13: 0 | AB13: 0 | AC13: 0 | AD13: 0 | AE13: 0 | AF13: 0 | AG13: 0 | AH13: 0 | AI13: 0 | AJ13: 0
A14: Total Operating Expenses | B14: =+$B$3 -> WRC - Mgmt | C14: 327843950.5 | D14: 385901281 | E14: 385695246.3 | F14: 391580730.4 | G14: 418119196.3 | H14: 428805720.9 | I14: 441059640.8 | J14: 455437855.3 | K14: 464592992.7 | L14: 481636935.4 | M14: 492487632.8 | N14: 502103460.2 | O14: 636508236 | P14: 523957791.6 | Q14: 531436224.8 | R14: 542373687.2 | S14: 556892545 | T14: 570208000.1 | U14: 585662218.2 | V14: 601110456.9 | W14: 618460424.7 | X14: 636080296.9 | Y14: 657039474.4 | Z14: 676187354.2 | AA14: 695474908.5 | AB14: 716886515.5 | AC14: 743359979 | AD14: 765731824.2 | AE14: 786465307.4 | AF14: 808431917.4 | AG14: 833674234.2 | AH14: 847254629.6 | AI14: 954718198.6 | AJ14: 876878648.6
A16: Capital Expenditure | B16: =+$B$3 -> WRC - Mgmt | C16: -64126094.68 | D16: -96807810.69 | E16: -83946799.94 | F16: -81421329.43 | G16: -96451432.99 | H16: -86984728.75 | I16: -88784245.01 | J16: -54350274.3 | K16: -55133288.41 | L16: -44016046.95 | M16: -43497127.44 | N16: -58772266.07 | O16: -26782458.97 | P16: -38763968.61 | Q16: -32764848.01 | R16: -48013545.35 | S16: -57366056.5 | T16: -71098676.41 | U16: -73663029 | V16: -95992548.09 | W16: -108738766.3 | X16: -139770347.6 | Y16: -109583470.7 | Z16: -66468204.38 | AA16: -57519814.54 | AB16: -72886952.06 | AC16: -124874712.5 | AD16: -125472834.9 | AE16: -125451920.5 | AF16: -133869633.5 | AG16: -147408699.1 | AH16: -147056949.9 | AI16: -175217375 | AJ16: -124005669.7
A17: Investment in Subsidiary - Additions | B17: =+$B$3 -> WRC - Mgmt | C17: 17989733.48 | D17: 30748482.82 | E17: 20693422.05 | F17: 26651059.88 | G17: 19068267.04 | H17: 33541324.94 | I17: 29742493.07 | J17: 12863577.11 | K17: 14276523.14 | L17: 22874404.82 | M17: 18070757.84 | N17: 18628707.18 | O17: 20492192.35 | P17: 26465639.4 | Q17: 10300388.98 | R17: 18073877.47 | S17: 18561872.16 | T17: 17698638.82 | U17: 20761582.98 | V17: 21322145.72 | W17: 10630818.3 | X17: 32499237.08 | Y17: 30825295.26 | Z17: 10832873.3 | AA17: 255861447.2 | AB17: 262769706.3 | AC17: 269864488.4 | AD17: 18476217.85 | AE17: 18975075.73 | AF17: 13235908.34 | AG17: 15992990.87 | AH17: 24942477.67 | AI17: 18666646.69 | AJ17: 13607049.84
A19: Closing Bal External Debt | B19: =+$B$3 -> WRC - Mgmt | C19: 396168384.9 | D19: 444292590.1 | E19: 496159553.9 | F19: 541402939.3 | G19: 608150904.6 | H19: 674000748.8 | I19: 737308835.7 | J19: 745664133.5 | K19: 751220964.9 | L19: 746620941 | M19: 735523432.2 | N19: 727833477.8 | O19: 757171443.8 | P19: 744712503.8 | Q19: 722239886.4 | R19: 715434410.7 | S19: 716595480.9 | T19: 729349514.4 | U19: 742950495.5 | V19: 773963314.1 | W19: 810143493.7 | X19: 875250865.7 | Y19: 922486441.3 | Z19: 915513173.5 | AA19: 1023767037 | AB19: 1150332937 | AC19: 1328241686 | AD19: 1381699189 | AE19: 1428280628 | AF19: 1474657176 | AG19: 1532823916 | AH19: 1593378630 | AI19: 1657230129 | AJ19: 1657230129
A20: Finance Lease liabiity | B20: =+$B$3 -> WRC - Mgmt | C20: 0 | D20: 29424623.16 | E20: 27893291.05 | F20: 26291441.93 | G20: 24615417.1 | H20: 22861349.02 | I20: 21025148.53 | J20: 19102491.32 | K20: 17088803.61 | L20: 14979246.78 | M20: 12768701.14 | N20: 10451748.6 | O20: 8022654.302 | P20: 5475346.979 | Q20: 2803398.164 | R20: 1.629814506e-09 | S20: 1.629814506e-09 | T20: 1.629814506e-09 | U20: 1.629814506e-09 | V20: 1.629814506e-09 | W20: 1.629814506e-09 | X20: 1.629814506e-09 | Y20: 1.629814506e-09 | Z20: 1.629814506e-09 | AA20: 1.629814506e-09 | AB20: 1.629814506e-09 | AC20: 1.629814506e-09 | AD20: 1.629814506e-09 | AE20: 1.629814506e-09 | AF20: 1.629814506e-09 | AG20: 1.629814506e-09 | AH20: 1.629814506e-09 | AI20: 1.629814506e-09 | AJ20: 1.629814506e-09
A21: Closing Bal Internal Debt | B21: =+$B$3 -> WRC - Mgmt | C21: -2609.294469 | D21: 4.172325134e-07 | E21: 5.960464478e-07 | F21: 5.960464478e-07 | G21: 5.960464478e-07 | H21: 4.768371582e-07 | I21: 2.384185791e-07 | J21: 5.960464478e-07 | K21: 5.960464478e-07 | L21: 7.152557373e-07 | M21: 7.152557373e-07 | N21: 8.344650269e-07 | O21: 8.344650269e-07 | P21: 8.344650269e-07 | Q21: 7.152557373e-07 | R21: 5.960464478e-07 | S21: 7.152557373e-07 | T21: 8.344650269e-07 | U21: 9.536743164e-07 | V21: 9.536743164e-07 | W21: 8.344650269e-07 | X21: 8.344650269e-07 | Y21: 9.536743164e-07 | Z21: 8.344650269e-07 | AA21: 9.536743164e-07 | AB21: 9.536743164e-07 | AC21: 9.536743164e-07 | AD21: 1.192092896e-06 | AE21: 1.192092896e-06 | AF21: 9.536743164e-07 | AG21: 1.192092896e-06 | AH21: 1.192092896e-06 | AI21: 1.430511475e-06 | AJ21: 36185656.7
A22: Closing Bal Other Investments | B22: =+$B$3 -> WRC - Mgmt | C22: 88849745.05 | D22: 93821758.34 | E22: 98352337.26 | F22: 103431873.2 | G22: 109038304 | H22: 115118012.2 | I22: 121651975.2 | J22: 128609359.1 | K22: 135941807.7 | L22: 143628485.3 | M22: 151910065.8 | N22: 160603716.5 | O22: 169726242.7 | P22: 179295156.4 | Q22: 189328707 | R22: 199845912.2 | S22: 210866591.9 | T22: 222411401.7 | U22: 234501869.3 | V22: 247160431.9 | W22: 260410475 | X22: 274276373.5 | Y22: 288783533.8 | Z22: 303958438.6 | AA22: 319828692.4 | AB22: 336423070.7 | AC22: 353771569.5 | AD22: 371905458.3 | AE22: 390857334.4 | AF22: 410661180.5 | AG22: 430910380.8 | AH22: 452262826.1 | AI22: 475114090.6 | AJ22: 495442526.4
A24: C/Balance Current Account | B24: =+$B$3 -> WRC - Mgmt | C24: -30.72897594 | D24: 1026769.207 | E24: 874732.1171 | F24: 875661.4445 | G24: 877603.8778 | H24: 881380.1757 | I24: 886978.6409 | J24: 891329.7338 | K24: 897416.2921 | L24: 903372.8038 | M24: 909700.0437 | N24: 924650.6708 | O24: 939757.9849 | P24: 950178.2703 | Q24: 958610.0163 | R24: 966851.3746 | S24: 990895.6866 | T24: 1010059.64 | U24: 1035018.416 | V24: 1058813.76 | W24: 1073365.846 | X24: 1110213.493 | Y24: 1142426.539 | Z24: 1160672.015 | AA24: 1178018.185 | AB24: 1198978.226 | AC24: 1273742.581 | AD24: 1319108.046 | AE24: 1326221.166 | AF24: 1315071.206 | AG24: 1314304.223 | AH24: 1354728.056 | AI24: 1324398.528 | AJ24: -4745841.208
A25: C/Balance Bank | B25: WRC - Mgmt | C25: 2096186.15 | D25: -719185.02 | E25: -719185.02 | F25: -719185.02 | G25: -719185.02 | H25: -719185.02 | I25: -719185.02 | J25: -719185.02 | K25: -719185.02 | L25: -719185.02 | M25: -719185.02 | N25: -719185.02 | O25: -719185.02 | P25: -719185.02 | Q25: -719185.02 | R25: -719185.02 | S25: -719185.02 | T25: -719185.02 | U25: -719185.02 | V25: -719185.02 | W25: -719185.02 | X25: -719185.02 | Y25: -719185.02 | Z25: -719185.02 | AA25: -719185.02 | AB25: -719185.02 | AC25: -719185.02 | AD25: -719185.02 | AE25: -719185.02 | AF25: -719185.02 | AG25: -719185.02 | AH25: -719185.02 | AI25: -719185.02 | AJ25: -719185.02
A26: C/Balance Debtors | B26: WRC - Mgmt | C26: 17150907.75 | D26: 21779632.82 | E26: 21779632.82 | F26: 21779632.82 | G26: 21779632.82 | H26: 21779632.82 | I26: 21779632.82 | J26: 21779632.82 | K26: 21779632.82 | L26: 21779632.82 | M26: 21779632.82 | N26: 21779632.82 | O26: 21779632.82 | P26: 21779632.82 | Q26: 21779632.82 | R26: 21779632.82 | S26: 21779632.82 | T26: 21779632.82 | U26: 21779632.82 | V26: 21779632.82 | W26: 21779632.82 | X26: 21779632.82 | Y26: 21779632.82 | Z26: 21779632.82 | AA26: 21779632.82 | AB26: 21779632.82 | AC26: 21779632.82 | AD26: 21779632.82 | AE26: 21779632.82 | AF26: 21779632.82 | AG26: 21779632.82 | AH26: 21779632.82 | AI26: 21779632.82 | AJ26: 21779632.82
A27: C/Balance Doubtful Debtors | B27: WRC - Mgmt | C27: -885718.37 | D27: -1031923.06 | E27: -1031923.06 | F27: -1031923.06 | G27: -1031923.06 | H27: -1031923.06 | I27: -1031923.06 | J27: -1031923.06 | K27: -1031923.06 | L27: -1031923.06 | M27: -1031923.06 | N27: -1031923.06 | O27: -1031923.06 | P27: -1031923.06 | Q27: -1031923.06 | R27: -1031923.06 | S27: -1031923.06 | T27: -1031923.06 | U27: -1031923.06 | V27: -1031923.06 | W27: -1031923.06 | X27: -1031923.06 | Y27: -1031923.06 | Z27: -1031923.06 | AA27: -1031923.06 | AB27: -1031923.06 | AC27: -1031923.06 | AD27: -1031923.06 | AE27: -1031923.06 | AF27: -1031923.06 | AG27: -1031923.06 | AH27: -1031923.06 | AI27: -1031923.06 | AJ27: -1031923.06
A28: C/Balance Accrued Revenue | B28: WRC - Mgmt | C28: 28247917.41 | D28: 25173024.08 | E28: 24620321.76 | F28: 24618618.77 | G28: 25123078.79 | H28: 25655839.08 | I28: 26361988.62 | J28: 27141308.16 | K28: 27989802.42 | L28: 29115585.25 | M28: 29527822.67 | N28: 26121794.91 | O28: 22961629.75 | P28: 20091637.07 | Q28: 17548559.64 | R28: 15417348.17 | S28: 13745396.92 | T28: 12594301.2 | U28: 12027863.33 | V28: 12007216.86 | W28: 11985112.9 | X28: 11961448.57 | Y28: 11936113.73 | Z28: 11908990.44 | AA28: 11879952.46 | AB28: 11848864.62 | AC28: 11815582.22 | AD28: 11779950.34 | AE28: 11741803.13 | AF28: 11700963.02 | AG28: 11657239.91 | AH28: 11878070.99 | AI28: 11810604.46 | AJ28: 11810604.46
A29: Warm GW advances | B29: WRC - Mgmt | C29: 0 | D29: 0 | E29: 0 | F29: 0 | G29: 0 | H29: 0 | I29: 0 | J29: 0 | K29: 0 | L29: 0 | M29: 0 | N29: 0 | O29: 0 | P29: 0 | Q29: 0 | R29: 0 | S29: 0 | T29: 0 | U29: 0 | V29: 0 | W29: 0 | X29: 0 | Y29: 0 | Z29: 0 | AA29: 0 | AB29: 0 | AC29: 0 | AD29: 0 | AE29: 0 | AF29: 0 | AG29: 0 | AH29: 0 | AI29: 0 | AJ29: 0
A30: C/Balance Stock | B30: WRC - Mgmt | C30: 3092825.29 | D30: 3104719.94 | E30: 3104719.94 | F30: 3104719.94 | G30: 3104719.94 | H30: 3104719.94 | I30: 3104719.94 | J30: 3104719.94 | K30: 3104719.94 | L30: 3104719.94 | M30: 3104719.94 | N30: 3104719.94 | O30: 3104719.94 | P30: 3104719.94 | Q30: 3104719.94 | R30: 3104719.94 | S30: 3104719.94 | T30: 3104719.94 | U30: 3104719.94 | V30: 3104719.94 | W30: 3104719.94 | X30: 3104719.94 | Y30: 3104719.94 | Z30: 3104719.94 | AA30: 3104719.94 | AB30: 3104719.94 | AC30: 3104719.94 | AD30: 3104719.94 | AE30: 3104719.94 | AF30: 3104719.94 | AG30: 3104719.94 | AH30: 3104719.94 | AI30: 3104719.94 | AJ30: 3104719.94
A31: Total Current Assets | B31: WRC - Mgmt | C31: =SUM(C24:C30) -> 49702087.5 | D31: 49333037.96 | E31: 48628298.56 | F31: 48627524.9 | G31: 49133927.35 | H31: 49670463.93 | I31: 50382211.94 | J31: 51165882.57 | K31: 52020463.39 | L31: 53152202.74 | M31: 53570767.4 | N31: 50179690.26 | O31: 47034632.41 | P31: 44175060.02 | Q31: 41640414.33 | R31: 39517444.23 | S31: 37869537.29 | T31: 36737605.52 | U31: 36196126.43 | V31: 36199275.3 | W31: 36191723.42 | X31: 36204906.75 | Y31: 36211784.95 | Z31: 36202907.14 | AA31: 36191215.32 | AB31: 36181087.53 | AC31: 36222569.48 | AD31: 36232303.07 | AE31: 36201268.97 | AF31: 36149278.9 | AG31: 36104788.81 | AH31: 36366043.73 | AI31: 36268247.67 | AJ31: 30198007.94
A33: C/Balance Creditors | B33: =+$B$3 -> WRC - Mgmt | C33: 26689144.81 | D33: 42641644.88 | E33: 42641644.88 | F33: 42641644.88 | G33: 42641644.88 | H33: 42641644.88 | I33: 42641644.88 | J33: 42641644.88 | K33: 42641644.88 | L33: 42641644.88 | M33: 42641644.88 | N33: 42641644.88 | O33: 42641644.88 | P33: 42641644.88 | Q33: 42641644.88 | R33: 42641644.88 | S33: 42641644.88 | T33: 42641644.88 | U33: 42641644.88 | V33: 42641644.88 | W33: 42641644.88 | X33: 42641644.88 | Y33: 42641644.88 | Z33: 42641644.88 | AA33: 42641644.88 | AB33: 42641644.88 | AC33: 42641644.88 | AD33: 42641644.88 | AE33: 42641644.88 | AF33: 42641644.88 | AG33: 42641644.88 | AH33: 42641644.88 | AI33: 42641644.88 | AJ33: 42641644.88
A34: C/Balance Accrued Expenses | B34: =+$B$3 -> WRC - Mgmt | C34: 0 | D34: 0 | E34: 0 | F34: 0 | G34: 0 | H34: 0 | I34: 0 | J34: 0 | K34: 0 | L34: 0 | M34: 0 | N34: 0 | O34: 0 | P34: 0 | Q34: 0 | R34: 0 | S34: 0 | T34: 0 | U34: 0 | V34: 0 | W34: 0 | X34: 0 | Y34: 0 | Z34: 0 | AA34: 0 | AB34: 0 | AC34: 0 | AD34: 0 | AE34: 0 | AF34: 0 | AG34: 0 | AH34: 0 | AI34: 0 | AJ34: 0
C35: =SUM(C33:C34) -> 26689144.81 | D35: 42641644.88 | E35: 42641644.88 | F35: 42641644.88 | G35: 42641644.88 | H35: 42641644.88 | I35: 42641644.88 | J35: 42641644.88 | K35: 42641644.88 | L35: 42641644.88 | M35: 42641644.88 | N35: 42641644.88 | O35: 42641644.88 | P35: 42641644.88 | Q35: 42641644.88 | R35: 42641644.88 | S35: 42641644.88 | T35: 42641644.88 | U35: 42641644.88 | V35: 42641644.88 | W35: 42641644.88 | X35: 42641644.88 | Y35: 42641644.88 | Z35: 42641644.88 | AA35: 42641644.88 | AB35: 42641644.88 | AC35: 42641644.88 | AD35: 42641644.88 | AE35: 42641644.88 | AF35: 42641644.88 | AG35: 42641644.88 | AH35: 42641644.88 | AI35: 42641644.88 | AJ35: 42641644.88
A36: Working Capital | B36: =+$B$3 -> WRC - Mgmt | C36: =+C31-C35 -> 23012942.69 | D36: 6691393.083 | E36: 5986653.681 | F36: 5985880.015 | G36: 6492282.466 | H36: 7028819.054 | I36: 7740567.056 | J36: 8524237.693 | K36: 9378818.51 | L36: 10510557.86 | M36: 10929122.52 | N36: 7538045.381 | O36: 4392987.531 | P36: 1533415.141 | Q36: -1001230.546 | R36: -3124200.653 | S36: -4772107.592 | T36: -5904039.358 | U36: -6445518.452 | V36: -6442369.585 | W36: -6449921.456 | X36: -6436738.135 | Y36: -6429859.934 | Z36: -6438737.745 | AA36: -6450429.558 | AB36: -6460557.355 | AC36: -6419075.398 | AD36: -6409341.813 | AE36: -6440375.906 | AF36: -6492365.977 | AG36: -6536856.067 | AH36: -6275601.154 | AI36: -6373397.208 | AJ36: -12443636.94
A39: Closing Bal Reserve Investments | B39: =+$B$3 -> WRC - Mgmt | C39: 3.274180926e-10 | D39: -5.579204299e-08 | E39: -5.809124559e-08 | F39: -6.114714779e-08 | G39: -5.104811862e-08 | H39: -5.273614079e-08 | I39: -5.943002179e-08 | J39: -6.431946531e-08 | K39: -5.83822839e-08 | L39: -5.797483027e-08 | M39: -5.896436051e-08 | N39: -6.065238267e-08 | O39: -5.878973752e-08 | P39: -6.781192496e-08 | Q39: -5.675246939e-08 | R39: -5.308538675e-08 | S39: -5.384208634e-08 | T39: -6.670597941e-08 | U39: -5.168840289e-08 | V39: -6.082700565e-08 | W39: -5.692709237e-08 | X39: -4.121102393e-08 | Y39: -5.547190085e-08 | Z39: -4.068715498e-08 | AA39: -5.221227184e-08 | AB39: -4.755565897e-08 | AC39: -4.871981218e-08 | AD39: -5.931360647e-08 | AE39: -6.484333426e-08 | AF39: -4.621688277e-08 | AG39: -4.516914487e-08 | AH39: -5.040783435e-08 | AI39: 500164.3072 | AJ39: 2867523.928
A40: Closing Bal Forestry Investments | B40: WRC - Mgmt | C40: 0 | D40: 0 | E40: 0 | F40: 0 | G40: 0 | H40: 0 | I40: 0 | J40: 0 | K40: 0 | L40: 0 | M40: 0 | N40: 0 | O40: 0 | P40: 0 | Q40: 0 | R40: 0 | S40: 0 | T40: 0 | U40: 0 | V40: 0 | W40: 0 | X40: 0 | Y40: 0 | Z40: 0 | AA40: 0 | AB40: 0 | AC40: 0 | AD40: 0 | AE40: 0 | AF40: 0 | AG40: 0 | AH40: 0 | AI40: 0 | AJ40: 0
A41: Closing Bal Investment in Subsidiary | B41: WRC - Mgmt | C41: 271527202.5 | D41: 289412426.8 | E41: 310105848.9 | F41: 336756908.8 | G41: 355825175.8 | H41: 389366500.7 | I41: 419108993.8 | J41: 431972570.9 | K41: 446249094.1 | L41: 469123498.9 | M41: 487194256.7 | N41: 505822963.9 | O41: 526315156.2 | P41: 552780795.6 | Q41: 563081184.6 | R41: 581155062.1 | S41: 599716934.3 | T41: 617415573.1 | U41: 638177156.1 | V41: 659499301.8 | W41: 670130120.1 | X41: 702629357.2 | Y41: 733454652.4 | Z41: 744287525.7 | AA41: 1000148973 | AB41: 1262918679 | AC41: 1532783168 | AD41: 1551259385 | AE41: 1570234461 | AF41: 1583470369 | AG41: 1599463360 | AH41: 1624405838 | AI41: 1643072485 | AJ41: 1656679535
A42: Closing Bal Financial Instruments | B42: WRC - Mgmt | C42: -25758412.41 | D42: -17651815 | E42: -10520768 | F42: -6785336 | G42: -4285594 | H42: -2741053 | I42: -1595564 | J42: -851225 | K42: -297793 | L42: -15191 | M42: 13296 | N42: 14224 | O42: 0 | P42: 0 | Q42: 0 | R42: 0 | S42: 0 | T42: 0 | U42: 0 | V42: 0 | W42: 0 | X42: 0 | Y42: 0 | Z42: 0 | AA42: 0 | AB42: 0 | AC42: 0 | AD42: 0 | AE42: 0 | AF42: 0 | AG42: 0 | AH42: 0 | AI42: 0 | AJ42: 0
A43: Closing Bal FX Investment | B43: WRC - Mgmt | C43: 0 | D43: 0 | E43: 0 | F43: 0 | G43: 0 | H43: 0 | I43: 0 | J43: 0 | K43: 0 | L43: 0 | M43: 0 | N43: 0 | O43: 0 | P43: 0 | Q43: 0 | R43: 0 | S43: 0 | T43: 0 | U43: 0 | V43: 0 | W43: 0 | X43: 0 | Y43: 0 | Z43: 0 | AA43: 0 | AB43: 0 | AC43: 0 | AD43: 0 | AE43: 0 | AF43: 0 | AG43: 0 | AH43: 0 | AI43: 0 | AJ43: 0
A44: Closing Bal Other Investments | B44: WRC - Mgmt | C44: 88849745.05 | D44: 93821758.34 | E44: 98352337.26 | F44: 103431873.2 | G44: 109038304 | H44: 115118012.2 | I44: 121651975.2 | J44: 128609359.1 | K44: 135941807.7 | L44: 143628485.3 | M44: 151910065.8 | N44: 160603716.5 | O44: 169726242.7 | P44: 179295156.4 | Q44: 189328707 | R44: 199845912.2 | S44: 210866591.9 | T44: 222411401.7 | U44: 234501869.3 | V44: 247160431.9 | W44: 260410475 | X44: 274276373.5 | Y44: 288783533.8 | Z44: 303958438.6 | AA44: 319828692.4 | AB44: 336423070.7 | AC44: 353771569.5 | AD44: 371905458.3 | AE44: 390857334.4 | AF44: 410661180.5 | AG44: 430910380.8 | AH44: 452262826.1 | AI44: 475114090.6 | AJ44: 495442526.4
C45: =SUM(C39:C44) -> 334618535.1 | D45: 365582370.2 | E45: 397937418.1 | F45: 433403445.9 | G45: 460577885.8 | H45: 501743460 | I45: 539165405 | J45: 559730705 | K45: 581893108.7 | L45: 612736793.2 | M45: 639117618.5 | N45: 666440904.4 | O45: 696041398.9 | P45: 732075952.1 | Q45: 752409891.6 | R45: 781000974.3 | S45: 810583526.2 | T45: 839826974.7 | U45: 872679025.3 | V45: 906659733.6 | W45: 930540595.1 | X45: 976905730.7 | Y45: 1022238186 | Z45: 1048245964 | AA45: 1319977665 | AB45: 1599341750 | AC45: 1886554737 | AD45: 1923164844 | AE45: 1961091796 | AF45: 1994131550 | AG45: 2030373741 | AH45: 2076668664 | AI45: 2118686740 | AJ45: 2154989585
A47: Capex Project C/Balance | B47: =+$B$3 -> WRC - Mgmt | C47: 0 | D47: 9208752.14 | E47: 9208752.14 | F47: 9208752.14 | G47: 9208752.14 | H47: 9208752.14 | I47: 9208752.14 | J47: 9208752.14 | K47: 9208752.14 | L47: 9208752.14 | M47: 9208752.14 | N47: 9208752.14 | O47: 9208752.14 | P47: 9208752.14 | Q47: 9208752.14 | R47: 9208752.14 | S47: 9208752.14 | T47: 9208752.14 | U47: 9208752.14 | V47: 9208752.14 | W47: 9208752.14 | X47: 9208752.14 | Y47: 9208752.14 | Z47: 9208752.14 | AA47: 9208752.14 | AB47: 9208752.14 | AC47: 9208752.14 | AD47: 9208752.14 | AE47: 9208752.14 | AF47: 9208752.14 | AG47: 9208752.14 | AH47: 9208752.14 | AI47: 9208752.14 | AJ47: 9208752.14
A48: Closing Bal Total Assets | B48: =+$B$3 -> WRC - Mgmt | C48: 1094655894 | D48: 1388710459 | E48: 1472079009 | F48: 1553689174 | G48: 1649316310 | H48: 1866502847 | I48: 1954979329 | J48: 2010764029 | K48: 2065027053 | L48: 2108313413 | M48: 2302827669 | N48: 2360975156 | O48: 2389257404 | P48: 2426983415 | Q48: 2458929230 | R48: 2677894599 | S48: 2734748999 | T48: 2807220227 | U48: 2879735718 | V48: 2975007556 | W48: 3275177584 | X48: 3414355286 | Y48: 3525845072 | Z48: 3591250452 | AA48: 3647438461 | AB48: 3935210470 | AC48: 4059454544 | AD48: 4186776441 | AE48: 4311219107 | AF48: 4443694142 | AG48: 4760214943 | AH48: 4905996475 | AI48: 5080267210 | AJ48: 5203882730
A49: Dep C/Bal Total Assets | B49: =+$B$3 -> WRC - Mgmt | C49: -105279599 | D49: -128391076.8 | E49: -158052249.8 | F49: -192539037.3 | G49: -230780635.6 | H49: -272158899.5 | I49: -312889483.2 | J49: -355578840.1 | K49: -399397317.2 | L49: -445123795.7 | M49: -491980679.5 | N49: -538975905.5 | O49: -586416481.4 | P49: -629958255 | Q49: -672209849.2 | R49: -715102698.6 | S49: -757785264.8 | T49: -800698676.7 | U49: -844229179.9 | V49: -889110722.3 | W49: -935043663.5 | X49: -981124866 | Y49: -1029439406 | Z49: -1079563899 | AA49: -1130252982 | AB49: -1180773058 | AC49: -1231770891 | AD49: -1282703021 | AE49: -1333613564 | AF49: -1384890964 | AG49: -1437846858 | AH49: -1492631996 | AI49: -1545286861 | AJ49: -1604006662
C50: =SUM(C47:C49) -> 989376295 | D50: 1269528135 | E50: 1323235512 | F50: 1370358889 | G50: 1427744427 | H50: 1603552699 | I50: 1651298598 | J50: 1664393941 | K50: 1674838488 | L50: 1672398370 | M50: 1820055742 | N50: 1831208003 | O50: 1812049675 | P50: 1806233912 | Q50: 1795928133 | R50: 1972000653 | S50: 1986172486 | T50: 2015730302 | U50: 2044715291 | V50: 2095105586 | W50: 2349342673 | X50: 2442439172 | Y50: 2505614418 | Z50: 2520895306 | AA50: 2526394231 | AB50: 2763646164 | AC50: 2836892405 | AD50: 2913282173 | AE50: 2986814295 | AF50: 3068011930 | AG50: 3331576838 | AH50: 3422573231 | AI50: 3544189101 | AJ50: 3609084821
A52: Closing Bal Internal Debt | B52: =+$B$3 -> WRC - Mgmt | C52: -2609.294469 | D52: 4.172325134e-07 | E52: 5.960464478e-07 | F52: 5.960464478e-07 | G52: 5.960464478e-07 | H52: 4.768371582e-07 | I52: 2.384185791e-07 | J52: 5.960464478e-07 | K52: 5.960464478e-07 | L52: 7.152557373e-07 | M52: 7.152557373e-07 | N52: 8.344650269e-07 | O52: 8.344650269e-07 | P52: 8.344650269e-07 | Q52: 7.152557373e-07 | R52: 5.960464478e-07 | S52: 7.152557373e-07 | T52: 8.344650269e-07 | U52: 9.536743164e-07 | V52: 9.536743164e-07 | W52: 8.344650269e-07 | X52: 8.344650269e-07 | Y52: 9.536743164e-07 | Z52: 8.344650269e-07 | AA52: 9.536743164e-07 | AB52: 9.536743164e-07 | AC52: 9.536743164e-07 | AD52: 1.192092896e-06 | AE52: 1.192092896e-06 | AF52: 9.536743164e-07 | AG52: 1.192092896e-06 | AH52: 1.192092896e-06 | AI52: 1.430511475e-06 | AJ52: 36185656.7
A54: Finance Lease liabiity | B54: =+$B$3 -> WRC - Mgmt | C54: 0 | D54: 29424623.16 | E54: 27893291.05 | F54: 26291441.93 | G54: 24615417.1 | H54: 22861349.02 | I54: 21025148.53 | J54: 19102491.32 | K54: 17088803.61 | L54: 14979246.78 | M54: 12768701.14 | N54: 10451748.6 | O54: 8022654.302 | P54: 5475346.979 | Q54: 2803398.164 | R54: 1.629814506e-09 | S54: 1.629814506e-09 | T54: 1.629814506e-09 | U54: 1.629814506e-09 | V54: 1.629814506e-09 | W54: 1.629814506e-09 | X54: 1.629814506e-09 | Y54: 1.629814506e-09 | Z54: 1.629814506e-09 | AA54: 1.629814506e-09 | AB54: 1.629814506e-09 | AC54: 1.629814506e-09 | AD54: 1.629814506e-09 | AE54: 1.629814506e-09 | AF54: 1.629814506e-09 | AG54: 1.629814506e-09 | AH54: 1.629814506e-09 | AI54: 1.629814506e-09 | AJ54: 1.629814506e-09
A55: Closing Bal External Debt | B55: =+$B$3 -> WRC - Mgmt | C55: 396168384.9 | D55: 444292590.1 | E55: 496159553.9 | F55: 541402939.3 | G55: 608150904.6 | H55: 674000748.8 | I55: 737308835.7 | J55: 745664133.5 | K55: 751220964.9 | L55: 746620941 | M55: 735523432.2 | N55: 727833477.8 | O55: 757171443.8 | P55: 744712503.8 | Q55: 722239886.4 | R55: 715434410.7 | S55: 716595480.9 | T55: 729349514.4 | U55: 742950495.5 | V55: 773963314.1 | W55: 810143493.7 | X55: 875250865.7 | Y55: 922486441.3 | Z55: 915513173.5 | AA55: 1023767037 | AB55: 1150332937 | AC55: 1328241686 | AD55: 1381699189 | AE55: 1428280628 | AF55: 1474657176 | AG55: 1532823916 | AH55: 1593378630 | AI55: 1657230129 | AJ55: 1657230129
A56: Debt (right hand scale) | C56: =SUM(C52:C55) -> 396165775.6 | D56: 473717213.2 | E56: 524052844.9 | F56: 567694381.2 | G56: 632766321.7 | H56: 696862097.8 | I56: 758333984.3 | J56: 764766624.8 | K56: 768309768.5 | L56: 761600187.8 | M56: 748292133.3 | N56: 738285226.4 | O56: 765194098.1 | P56: 750187850.8 | Q56: 725043284.5 | R56: 715434410.7 | S56: 716595480.9 | T56: 729349514.4 | U56: 742950495.5 | V56: 773963314.1 | W56: 810143493.7 | X56: 875250865.7 | Y56: 922486441.3 | Z56: 915513173.5 | AA56: 1023767037 | AB56: 1150332937 | AC56: 1328241686 | AD56: 1381699189 | AE56: 1428280628 | AF56: 1474657176 | AG56: 1532823916 | AH56: 1593378630 | AI56: 1657230129 | AJ56: 1693415785
A57: Net.Assets | B57: =+$B$3 -> WRC - Mgmt | C57: 950841997.2 | D57: 1168084685 | E57: 1203106738 | F57: 1242053833 | G57: 1262048273 | H57: 1415462880 | I57: 1439870586 | J57: 1467882259 | K57: 1497800646 | L57: 1534045533 | M57: 1721810350 | N57: 1766901726 | O57: 1747289963 | P57: 1789655428 | Q57: 1822293510 | R57: 2034443016 | S57: 2075388424 | T57: 2120303723 | U57: 2167998302 | V57: 2221359636 | W57: 2463289853 | X57: 2537657299 | Y57: 2598936303 | Z57: 2647189359 | AA57: 2816154430 | AB57: 3206194420 | AC57: 3388786381 | AD57: 3448338485 | AE57: 3513185087 | AF57: 3580993939 | AG57: 3822589807 | AH57: 3899587664 | AI57: 3999272315 | AJ57: 4058214983
A59: Retained Earnings C/F | B59: =+$B$3 -> WRC - Mgmt | C59: 373083668.4 | D59: 386091943.8 | E59: 423667003.4 | F59: 462250140.7 | G59: 484696027.8 | H59: 505986602.7 | I59: 528339461.9 | J59: 552473142.7 | K59: 580957196.2 | L59: 615902925.9 | M59: 650124881.9 | N59: 693264243.4 | O59: 669996873.6 | P59: 710549010.2 | Q59: 741513766.4 | R59: 780312367.7 | S59: 818594617.9 | T59: 859137949 | U59: 905174669.4 | V59: 955535709.3 | W59: 1003750055 | X59: 1075705816 | Y59: 1131766874 | Z59: 1177857955 | AA59: 1344772175 | AB59: 1516129999 | AC59: 1695671208 | AD59: 1749759673 | AE59: 1811846501 | AF59: 1877157826 | AG59: 1945341942 | AH59: 2019403214 | AI59: 2115447847 | AJ59: 2171987710
A60: Share Capital (gwrl only) | B60: =+$B$3 -> WRC - Mgmt | C60: 0 | D60: 0 | E60: 0 | F60: 0 | G60: 0 | H60: 0 | I60: 0 | J60: 0 | K60: 0 | L60: 0 | M60: 0 | N60: 0 | O60: 0 | P60: 0 | Q60: 0 | R60: 0 | S60: 0 | T60: 0 | U60: 0 | V60: 0 | W60: 0 | X60: 0 | Y60: 0 | Z60: 0 | AA60: 0 | AB60: 0 | AC60: 0 | AD60: 0 | AE60: 0 | AF60: 0 | AG60: 0 | AH60: 0 | AI60: 0 | AJ60: 0
A61: Closing Bal. Asset\Reval | B61: =+$B$3 -> WRC - Mgmt | C61: 553385730.8 | D61: 752990968 | E61: 752990968 | F61: 752990968 | G61: 752990968 | H61: 883865596.7 | I61: 884748607.5 | J61: 886932861 | K61: 886932861 | L61: 886932861 | M61: 1038715589 | N61: 1039179163 | O61: 1041461202 | P61: 1041461202 | Q61: 1041461202 | R61: 1213212009 | S61: 1213741500 | T61: 1216302356 | U61: 1216302356 | V61: 1216302356 | W61: 1408933161 | X61: 1409522194 | Y61: 1412371028 | Z61: 1412371028 | AA61: 1412371028 | AB61: 1628426407 | AC61: 1629081679 | AD61: 1632250873 | AE61: 1632250873 | AF61: 1632250873 | AG61: 1803275852 | AH61: 1803275852 | AI61: 1803798071 | AJ61: 1804320290
A62: Closing Bal Reserves | B62: =+$B$3 -> WRC - Mgmt | C62: 24559129.96 | D62: 29021812.69 | E62: 26448053.08 | F62: 26811081.31 | G62: 24357691.79 | H62: 25603318.94 | I62: 26769555.82 | J62: 28458943.37 | K62: 29887191.04 | L62: 31180391.22 | M62: 32934196.95 | N62: 34407687.25 | O62: 35766148.17 | P62: 37569056.18 | Q62: 39233949.93 | R62: 40825805.24 | S62: 42935428.56 | T62: 44727376.12 | U62: 46360275.87 | V62: 49336774.77 | W62: 50407289.02 | X62: 52193092.91 | Y62: 54529993.4 | Z62: 56673721.93 | AA62: 58707227.53 | AB62: 61313052.96 | AC62: 63633768.76 | AD62: 65882849.07 | AE62: 68601073.33 | AF62: 71074624.36 | AG62: 73426337.15 | AH62: 76285954.57 | AI62: 79396808.13 | AJ62: 81764167.75
A63: Close Balance S/F Reserve | B63: =+$B$3 -> WRC - Mgmt | C63: 0 | D63: 0 | E63: 0 | F63: 0 | G63: 0 | H63: 0 | I63: 0 | J63: 0 | K63: 0 | L63: 0 | M63: 0 | N63: 0 | O63: 0 | P63: 0 | Q63: 0 | R63: 0 | S63: 0 | T63: 0 | U63: 0 | V63: 0 | W63: 0 | X63: 0 | Y63: 0 | Z63: 0 | AA63: 0 | AB63: 0 | AC63: 0 | AD63: 0 | AE63: 0 | AF63: 0 | AG63: 0 | AH63: 0 | AI63: 0 | AJ63: 0
A65: Net Equity | C65: =SUM(C59:C64) -> 951028529.2 | D65: 1168104724 | E65: 1203106024 | F65: 1242052190 | G65: 1262044688 | H65: 1415455518 | I65: 1439857625 | J65: 1467864947 | K65: 1497777248 | L65: 1534016178 | M65: 1721774668 | N65: 1766851094 | O65: 1747224223 | P65: 1789579268 | Q65: 1822208918 | R65: 2034350182 | S65: 2075271546 | T65: 2120167681 | U65: 2167837302 | V65: 2221174840 | W65: 2463090505 | X65: 2537421104 | Y65: 2598667895 | Z65: 2646902705 | AA65: 2815850430 | AB65: 3205869460 | AC65: 3388386657 | AD65: 3447893395 | AE65: 3512698448 | AF65: 3580483324 | AG65: 3822044132 | AH65: 3898965021 | AI65: 3998642726 | AJ65: 4058072168
A67: balance check | C67: =C57-C65 -> -186531.9716 | D67: -20039.84106 | E67: 714.0036657 | F67: 1643.331131 | G67: 3585.747892 | H67: 7362.057846 | I67: 12960.50857 | J67: 17311.59975 | K67: 23398.17333 | L67: 29354.68956 | M67: 35681.93079 | N67: 50632.56566 | O67: 65739.88427 | P67: 76160.18827 | Q67: 84591.91751 | R67: 92833.28368 | S67: 116877.6088 | T67: 136041.5654 | U67: 161000.344 | V67: 184795.7069 | W67: 199347.7919 | X67: 236195.4362 | Y67: 268408.4754 | Z67: 286653.9459 | AA67: 304000.1242 | AB67: 324960.1562 | AC67: 399724.5129 | AD67: 445089.9874 | AE67: 486639.3953 | AF67: 510614.4455 | AG67: 545674.9719 | AH67: 622642.8898 | AI67: 629588.3203 | AJ67: 142815.3017
A70: Total Rates & Levies | B70: Public Transport Group | C70: 64656396.13 | D70: 68109677.79 | E70: 70192874.67 | F70: 78511420.22 | G70: 85537166.69 | H70: 92653204.22 | I70: 96392518.54 | J70: 99885368.53 | K70: 101388559.2 | L70: 106534371.1 | M70: 106533992.5 | N70: 106824593.7 | O70: 114601650.7 | P70: 110165172.5 | Q70: 108634112.4 | R70: 109942287.5 | S70: 109907840.2 | T70: 111181951.7 | U70: 111098622 | V70: 112205410.3 | W70: 112654603 | X70: 114592069.4 | Y70: 117479258.3 | Z70: 113820204.7 | AA70: 117879731.1 | AB70: 126409868.9 | AC70: 134730096.2 | AD70: 138333408.7 | AE70: 139107721.7 | AF70: 140622766.5 | AG70: 142295716.9 | AH70: 139777837.3 | AI70: 153853536.3 | AJ70: 243213132.2
A71: Bulk Water Levies | B71: =+B70 -> Public Transport Group | C71: 0 | D71: 0 | E71: 0 | F71: 0 | G71: 0 | H71: 0 | I71: 0 | J71: 0 | K71: 0 | L71: 0 | M71: 0 | N71: 0 | O71: 0 | P71: 0 | Q71: 0 | R71: 0 | S71: 0 | T71: 0 | U71: 0 | V71: 0 | W71: 0 | X71: 0 | Y71: 0 | Z71: 0 | AA71: 0 | AB71: 0 | AC71: 0 | AD71: 0 | AE71: 0 | AF71: 0 | AG71: 0 | AH71: 0 | AI71: 0 | AJ71: 0
A72: Warm Greater Wellington rate | B72: =+$B$70 -> Public Transport Group | C72: 0 | D72: 0 | E72: 0 | F72: 0 | G72: 0 | H72: 0 | I72: 0 | J72: 0 | K72: 0 | L72: 0 | M72: 0 | N72: 0 | O72: 0 | P72: 0 | Q72: 0 | R72: 0 | S72: 0 | T72: 0 | U72: 0 | V72: 0 | W72: 0 | X72: 0 | Y72: 0 | Z72: 0 | AA72: 0 | AB72: 0 | AC72: 0 | AD72: 0 | AE72: 0 | AF72: 0 | AG72: 0 | AH72: 0 | AI72: 0 | AJ72: 0
A73: External Interest Revenue | B73: =+$B$70 -> Public Transport Group | C73: 0 | D73: 0 | E73: 0 | F73: 0 | G73: 0 | H73: 0 | I73: 0 | J73: 0 | K73: 0 | L73: 0 | M73: 0 | N73: 0 | O73: 0 | P73: 0 | Q73: 0 | R73: 0 | S73: 0 | T73: 0 | U73: 0 | V73: 0 | W73: 0 | X73: 0 | Y73: 0 | Z73: 0 | AA73: 0 | AB73: 0 | AC73: 0 | AD73: 0 | AE73: 0 | AF73: 0 | AG73: 0 | AH73: 0 | AI73: 0 | AJ73: 0
A74: Total Government Subsidies | B74: =+$B$70 -> Public Transport Group | C74: 94606003.64 | D74: 103555260.5 | E74: 104876743.1 | F74: 107776594.7 | G74: 101208128.2 | H74: 99183287.84 | I74: 99856015.74 | J74: 103515796.9 | K74: 108853479.9 | L74: 112639942 | M74: 122172725.5 | N74: 131392895.4 | O74: 182074710.9 | P74: 128866957.3 | Q74: 118964200.6 | R74: 124762376.5 | S74: 129172632 | T74: 132734023.3 | U74: 143044228.7 | V74: 150063054.7 | W74: 150226270.4 | X74: 175480523.5 | Y74: 163361112.8 | Z74: 161352076.1 | AA74: 285896993.9 | AB74: 293777291.6 | AC74: 303630054 | AD74: 181418051 | AE74: 193569331.4 | AF74: 199298713.7 | AG74: 209858630.5 | AH74: 218264928.4 | AI74: 229146060.6 | AJ74: 210479367.3
A75: Transport Fare Revenue | B75: =+$B$70 -> Public Transport Group | C75: 48062802.76 | D75: 94119980.1 | E75: 97447321.22 | F75: 99738134.66 | G75: 100049886.4 | H75: 103028512.1 | I75: 106200282.9 | J75: 109469861.2 | K75: 112951127.6 | L75: 124391026.5 | M75: 120367958 | N75: 124318372.9 | O75: 136726773.3 | P75: 141107889.6 | Q75: 145630996.3 | R75: 150300748.5 | S75: 155121955.8 | T75: 160099587 | U75: 165238776 | V75: 170544826.8 | W75: 176023219.5 | X75: 181679616.3 | Y75: 187519867.4 | Z75: 193550017.3 | AA75: 199776311.4 | AB75: 206205202.9 | AC75: 212843359.3 | AD75: 219697670.1 | AE75: 226775254.2 | AF75: 234083467.1 | AG75: 241629909.6 | AH75: 249422435.5 | AI75: 257469160.2 | AJ75: 179524874
A76: Total Operating Revenue | B76: =+$B$70 -> Public Transport Group | C76: 209597577.7 | D76: 273398295 | E76: 278708194.4 | F76: 288786103.4 | G76: 289580494.1 | H76: 297720903 | I76: 305355947.7 | J76: 315840421.7 | K76: 326205485 | L76: 346632777.2 | M76: 352226135 | N76: 365774273 | O76: 436716089.6 | P76: 383552931.3 | Q76: 376736129 | R76: 388605843.8 | S76: 397899900.8 | T76: 407835725.5 | U76: 423313124.9 | V76: 436871116.7 | W76: 443090134.6 | X76: 476071117.5 | Y76: 472799686.8 | Z76: 473317570.4 | AA76: 608257251 | AB76: 631234284.5 | AC76: 656173099.6 | AD76: 545140776.8 | AE76: 565290767.5 | AF76: 580027179.5 | AG76: 599947143.1 | AH76: 613789860.8 | AI76: 646948902.3 | AJ76: 639898396.4
A78: Total Financial Costs | B78: =+$B$70 -> Public Transport Group | C78: 13562242.68 | D78: 14265123.27 | E78: 14323498.63 | F78: 14731304.48 | G78: 15485991.37 | H78: 16098079.11 | I78: 17190073.27 | J78: 17441867.83 | K78: 16951728.58 | L78: 16397613.6 | M78: 15686685.88 | N78: 15090893.37 | O78: 15541460.13 | P78: 15947698.87 | Q78: 15089216.75 | R78: 13991044.8 | S78: 13028670.46 | T78: 12140650.86 | U78: 11369893.51 | V78: 10821325.41 | W78: 10223600.21 | X78: 10001301.77 | Y78: 9852953.731 | Z78: 9322032.525 | AA78: 11846444.25 | AB78: 17217612.55 | AC78: 22637511.53 | AD78: 25063615.66 | AE78: 24602818.73 | AF78: 24266658.03 | AG78: 23979981.98 | AH78: 23880864.2 | AI78: 24208535.64 | AJ78: 24010543.92
A79: Depreciation | B79: =+$B$70 -> Public Transport Group | C79: 1669625.38 | D79: 4615381.241 | E79: 6063996.102 | F79: 9388696.815 | G79: 12572045.82 | H79: 14019532.48 | I79: 14576038.22 | J79: 15420159.12 | K79: 16500343.56 | L79: 18210837.82 | M79: 19430197.77 | N79: 19461017.86 | O79: 20844953.55 | P79: 17530240.4 | Q79: 15647412.05 | R79: 15444000.02 | S79: 15231679.47 | T79: 14962790.51 | U79: 14687763.15 | V79: 14702083.36 | W79: 14880326.25 | X79: 13547426.84 | Y79: 14374113.05 | Z79: 14437467.6 | AA79: 14813501.63 | AB79: 14241872.31 | AC79: 13617643.64 | AD79: 13031452.01 | AE79: 12435476.04 | AF79: 12058166.55 | AG79: 12500440.8 | AH79: 13016197.04 | AI79: 11683250.07 | AJ79: 17004005.27
A80: Grants - Capital Works | B80: =+B79 -> Public Transport Group | C80: 8362250 | D80: 2381480 | E80: 0 | F80: 0 | G80: 0 | H80: 0 | I80: 0 | J80: 0 | K80: 0 | L80: 0 | M80: 0 | N80: 0 | O80: 0 | P80: 0 | Q80: 0 | R80: 0 | S80: 0 | T80: 0 | U80: 0 | V80: 0 | W80: 0 | X80: 0 | Y80: 0 | Z80: 0 | AA80: 0 | AB80: 0 | AC80: 0 | AD80: 0 | AE80: 0 | AF80: 0 | AG80: 0 | AH80: 0 | AI80: 0 | AJ80: 0
A81: Total Operating Expenses | B81: =+$B$70 -> Public Transport Group | C81: 193886289.9 | D81: 250282459.3 | E81: 244935221.9 | F81: 250452542.2 | G81: 271339562.1 | H81: 276752825.3 | I81: 285226467.2 | J81: 294246112.6 | K81: 300494763.5 | L81: 315174720.8 | M81: 322938585 | N81: 329042228.5 | O81: 462895371.5 | P81: 349175596.3 | Q81: 353077300.6 | R81: 361626016.8 | S81: 373953932.3 | T81: 382904865.9 | U81: 394198722.1 | V81: 405093385.2 | W81: 415623233.8 | X81: 426573323.8 | Y81: 441176270.1 | Z81: 452985088.9 | AA81: 468916607.1 | AB81: 487939118.9 | AC81: 507360218.7 | AD81: 523434983.9 | AE81: 538011757.6 | AF81: 552019074.3 | AG81: 569464421.5 | AH81: 579341537 | AI81: 594355177.7 | AJ81: 619339171.5
A83: Capital Expenditure | B83: =+$B$70 -> Public Transport Group | C83: -19349900 | D83: -46026632.71 | E83: -35984593 | F83: -32355503.11 | G83: -21521660.99 | H83: -17954180.22 | I83: -18231571.68 | J83: -19263979.11 | K83: -24621429.92 | L83: -12749880.3 | M83: -14999067.79 | N83: -27534408.97 | O83: -2577062.343 | P83: -13352875.92 | Q83: -5429057.624 | R83: -2752532.215 | S83: -2865781.666 | T83: -2942885.253 | U83: -10626590.24 | V83: -14446658.31 | W83: -16894716.77 | X83: -35983158.65 | Y83: -3316847.588 | Z83: -17381386.98 | AA83: -7132066.577 | AB83: -3639357.719 | AC83: -3689837.923 | AD83: -3789463.547 | AE83: -13920073.76 | AF83: -18907328.33 | AG83: -21997369.18 | AH83: -22591298.15 | AI83: -56504511.81 | AJ83: -3876276.117
A84: Investment in Subsidiary - Additions | B84: =+$B$70 -> Public Transport Group | C84: 0 | D84: 0 | E84: 0 | F84: 0 | G84: 0 | H84: 0 | I84: 0 | J84: 0 | K84: 0 | L84: 0 | M84: 0 | N84: 0 | O84: 0 | P84: 0 | Q84: 0 | R84: 0 | S84: 0 | T84: 0 | U84: 0 | V84: 0 | W84: 0 | X84: 0 | Y84: 0 | Z84: 0 | AA84: 0 | AB84: 0 | AC84: 0 | AD84: 0 | AE84: 0 | AF84: 0 | AG84: 0 | AH84: 0 | AI84: 0 | AJ84: 0
A86: Closing Bal External Debt | B86: =+$B$70 -> Public Transport Group | C86: 0 | D86: 0 | E86: 0 | F86: 0 | G86: 0 | H86: 0 | I86: 0 | J86: 0 | K86: 0 | L86: 0 | M86: 0 | N86: 0 | O86: 0 | P86: 0 | Q86: 0 | R86: 0 | S86: 0 | T86: 0 | U86: 0 | V86: 0 | W86: 0 | X86: 0 | Y86: 0 | Z86: 0 | AA86: 0 | AB86: 0 | AC86: 0 | AD86: 0 | AE86: 0 | AF86: 0 | AG86: 0 | AH86: 0 | AI86: 0 | AJ86: 0
A87: Finance Lease liabiity | B87: =+$B$70 -> Public Transport Group | C87: 0 | D87: 29424623.16 | E87: 27893291.05 | F87: 26291441.93 | G87: 24615417.1 | H87: 22861349.02 | I87: 21025148.53 | J87: 19102491.32 | K87: 17088803.61 | L87: 14979246.78 | M87: 12768701.14 | N87: 10451748.6 | O87: 8022654.302 | P87: 5475346.979 | Q87: 2803398.164 | R87: 1.629814506e-09 | S87: 1.629814506e-09 | T87: 1.629814506e-09 | U87: 1.629814506e-09 | V87: 1.629814506e-09 | W87: 1.629814506e-09 | X87: 1.629814506e-09 | Y87: 1.629814506e-09 | Z87: 1.629814506e-09 | AA87: 1.629814506e-09 | AB87: 1.629814506e-09 | AC87: 1.629814506e-09 | AD87: 1.629814506e-09 | AE87: 1.629814506e-09 | AF87: 1.629814506e-09 | AG87: 1.629814506e-09 | AH87: 1.629814506e-09 | AI87: 1.629814506e-09 | AJ87: 1.629814506e-09
A88: Closing Bal Internal Debt | B88: =+$B$70 -> Public Transport Group | C88: 247206645.9 | D88: 250270994.8 | E88: 266390264.7 | F88: 279433237.4 | G88: 287667377.2 | H88: 306092595.5 | I88: 321382190.5 | J88: 318608422 | K88: 317487865.3 | L88: 305733759.7 | M88: 292494103.8 | N88: 284984564.6 | O88: 316014709.4 | P88: 306676257.7 | Q88: 285993085.9 | R88: 267427168.6 | S88: 249899024.2 | T88: 230875297.2 | U88: 218709832.1 | V88: 208254556.3 | W88: 193682087.9 | X88: 199375839.5 | Y88: 187799088 | Z88: 181530115.1 | AA88: 290649438.2 | AB88: 399809673.4 | AC88: 511245865.7 | AD88: 499095751.9 | AE88: 492590868.8 | AF88: 484991553 | AG88: 480348985.4 | AH88: 480778631.9 | AI88: 492043658.7 | AJ88: 472345351.9
A89: Closing Bal Other Investments | B89: =+$B$70 -> Public Transport Group | C89: 40312545.48 | D89: 40417770 | E89: 61078192.46 | F89: 87729252.34 | G89: 106797519.4 | H89: 140338844.3 | I89: 170081337.4 | J89: 182944914.5 | K89: 197221437.6 | L89: 220095842.5 | M89: 238166600.3 | N89: 256795307.5 | O89: 277287499.8 | P89: 303753139.2 | Q89: 314053528.2 | R89: 332127405.7 | S89: 350689277.8 | T89: 368387916.7 | U89: 389149499.6 | V89: 410471645.4 | W89: 421102463.7 | X89: 453601700.7 | Y89: 484426996 | Z89: 495259869.3 | AA89: 751121316.5 | AB89: 1013891023 | AC89: 1283755511 | AD89: 1302231729 | AE89: 1321206805 | AF89: 1334442713 | AG89: 1350435704 | AH89: 1375378182 | AI89: 1394044828 | AJ89: 1407651878
A91: C/Balance Current Account | B91: =+$B$70 -> Public Transport Group | C91: -0.3652211018 | D91: -595961.8754 | E91: -595961.8503 | F91: -595961.8503 | G91: -595961.8503 | H91: -595961.8503 | I91: -595961.8503 | J91: -595961.8503 | K91: -595961.8503 | L91: -595961.8503 | M91: -595961.8503 | N91: -595961.8503 | O91: -595961.8503 | P91: -595961.8503 | Q91: -595961.8503 | R91: -595961.8503 | S91: -595961.8503 | T91: -595961.8503 | U91: -595961.8503 | V91: -595961.8503 | W91: -595961.8503 | X91: -595961.8503 | Y91: -595961.8503 | Z91: -595961.8503 | AA91: -595961.8503 | AB91: -595961.8503 | AC91: -595961.8503 | AD91: -595961.8503 | AE91: -595961.8503 | AF91: -595961.8503 | AG91: -595961.8503 | AH91: -595961.8503 | AI91: -595961.8503 | AJ91: -595961.8503
A92: C/Balance Bank | B92: Public Transport Group | C92: 300 | D92: 300 | E92: 300 | F92: 300 | G92: 300 | H92: 300 | I92: 300 | J92: 300 | K92: 300 | L92: 300 | M92: 300 | N92: 300 | O92: 300 | P92: 300 | Q92: 300 | R92: 300 | S92: 300 | T92: 300 | U92: 300 | V92: 300 | W92: 300 | X92: 300 | Y92: 300 | Z92: 300 | AA92: 300 | AB92: 300 | AC92: 300 | AD92: 300 | AE92: 300 | AF92: 300 | AG92: 300 | AH92: 300 | AI92: 300 | AJ92: 300
A93: C/Balance Debtors | B93: Public Transport Group | C93: 82349.87 | D93: 15676517.77 | E93: 15676517.77 | F93: 15676517.77 | G93: 15676517.77 | H93: 15676517.77 | I93: 15676517.77 | J93: 15676517.77 | K93: 15676517.77 | L93: 15676517.77 | M93: 15676517.77 | N93: 15676517.77 | O93: 15676517.77 | P93: 15676517.77 | Q93: 15676517.77 | R93: 15676517.77 | S93: 15676517.77 | T93: 15676517.77 | U93: 15676517.77 | V93: 15676517.77 | W93: 15676517.77 | X93: 15676517.77 | Y93: 15676517.77 | Z93: 15676517.77 | AA93: 15676517.77 | AB93: 15676517.77 | AC93: 15676517.77 | AD93: 15676517.77 | AE93: 15676517.77 | AF93: 15676517.77 | AG93: 15676517.77 | AH93: 15676517.77 | AI93: 15676517.77 | AJ93: 15676517.77
A94: C/Balance Doubtful Debtors | B94: Public Transport Group | C94: 0 | D94: 0 | E94: 0 | F94: 0 | G94: 0 | H94: 0 | I94: 0 | J94: 0 | K94: 0 | L94: 0 | M94: 0 | N94: 0 | O94: 0 | P94: 0 | Q94: 0 | R94: 0 | S94: 0 | T94: 0 | U94: 0 | V94: 0 | W94: 0 | X94: 0 | Y94: 0 | Z94: 0 | AA94: 0 | AB94: 0 | AC94: 0 | AD94: 0 | AE94: 0 | AF94: 0 | AG94: 0 | AH94: 0 | AI94: 0 | AJ94: 0
A95: C/Balance Accrued Revenue | B95: Public Transport Group | C95: 7973822.46 | D95: 9741293.11 | E95: 9741293.11 | F95: 9741293.11 | G95: 9741293.11 | H95: 9741293.11 | I95: 9741293.11 | J95: 9741293.11 | K95: 9741293.11 | L95: 9741293.11 | M95: 9741293.11 | N95: 9741293.11 | O95: 9741293.11 | P95: 9741293.11 | Q95: 9741293.11 | R95: 9741293.11 | S95: 9741293.11 | T95: 9741293.11 | U95: 9741293.11 | V95: 9741293.11 | W95: 9741293.11 | X95: 9741293.11 | Y95: 9741293.11 | Z95: 9741293.11 | AA95: 9741293.11 | AB95: 9741293.11 | AC95: 9741293.11 | AD95: 9741293.11 | AE95: 9741293.11 | AF95: 9741293.11 | AG95: 9741293.11 | AH95: 9741293.11 | AI95: 9741293.11 | AJ95: 9741293.11
A96: Warm GW advances | B96: Public Transport Group | C96: 0 | D96: 0 | E96: 0 | F96: 0 | G96: 0 | H96: 0 | I96: 0 | J96: 0 | K96: 0 | L96: 0 | M96: 0 | N96: 0 | O96: 0 | P96: 0 | Q96: 0 | R96: 0 | S96: 0 | T96: 0 | U96: 0 | V96: 0 | W96: 0 | X96: 0 | Y96: 0 | Z96: 0 | AA96: 0 | AB96: 0 | AC96: 0 | AD96: 0 | AE96: 0 | AF96: 0 | AG96: 0 | AH96: 0 | AI96: 0 | AJ96: 0
A97: C/Balance Stock | B97: Public Transport Group | C97: 0 | D97: 0 | E97: 0 | F97: 0 | G97: 0 | H97: 0 | I97: 0 | J97: 0 | K97: 0 | L97: 0 | M97: 0 | N97: 0 | O97: 0 | P97: 0 | Q97: 0 | R97: 0 | S97: 0 | T97: 0 | U97: 0 | V97: 0 | W97: 0 | X97: 0 | Y97: 0 | Z97: 0 | AA97: 0 | AB97: 0 | AC97: 0 | AD97: 0 | AE97: 0 | AF97: 0 | AG97: 0 | AH97: 0 | AI97: 0 | AJ97: 0
A98: Total Current Assets | B98: Public Transport Group | C98: =SUM(C91:C97) -> 8056471.965 | D98: 24822149 | E98: 24822149.03 | F98: 24822149.03 | G98: 24822149.03 | H98: 24822149.03 | I98: 24822149.03 | J98: 24822149.03 | K98: 24822149.03 | L98: 24822149.03 | M98: 24822149.03 | N98: 24822149.03 | O98: 24822149.03 | P98: 24822149.03 | Q98: 24822149.03 | R98: 24822149.03 | S98: 24822149.03 | T98: 24822149.03 | U98: 24822149.03 | V98: 24822149.03 | W98: 24822149.03 | X98: 24822149.03 | Y98: 24822149.03 | Z98: 24822149.03 | AA98: 24822149.03 | AB98: 24822149.03 | AC98: 24822149.03 | AD98: 24822149.03 | AE98: 24822149.03 | AF98: 24822149.03 | AG98: 24822149.03 | AH98: 24822149.03 | AI98: 24822149.03 | AJ98: 24822149.03
A100: C/Balance Creditors | B100: =+$B$70 -> Public Transport Group | C100: 11270016.95 | D100: 18475323.91 | E100: 18475323.91 | F100: 18475323.91 | G100: 18475323.91 | H100: 18475323.91 | I100: 18475323.91 | J100: 18475323.91 | K100: 18475323.91 | L100: 18475323.91 | M100: 18475323.91 | N100: 18475323.91 | O100: 18475323.91 | P100: 18475323.91 | Q100: 18475323.91 | R100: 18475323.91 | S100: 18475323.91 | T100: 18475323.91 | U100: 18475323.91 | V100: 18475323.91 | W100: 18475323.91 | X100: 18475323.91 | Y100: 18475323.91 | Z100: 18475323.91 | AA100: 18475323.91 | AB100: 18475323.91 | AC100: 18475323.91 | AD100: 18475323.91 | AE100: 18475323.91 | AF100: 18475323.91 | AG100: 18475323.91 | AH100: 18475323.91 | AI100: 18475323.91 | AJ100: 18475323.91
A101: C/Balance Accrued Expenses | B101: =+$B$70 -> Public Transport Group | C101: 0 | D101: 0 | E101: 0 | F101: 0 | G101: 0 | H101: 0 | I101: 0 | J101: 0 | K101: 0 | L101: 0 | M101: 0 | N101: 0 | O101: 0 | P101: 0 | Q101: 0 | R101: 0 | S101: 0 | T101: 0 | U101: 0 | V101: 0 | W101: 0 | X101: 0 | Y101: 0 | Z101: 0 | AA101: 0 | AB101: 0 | AC101: 0 | AD101: 0 | AE101: 0 | AF101: 0 | AG101: 0 | AH101: 0 | AI101: 0 | AJ101: 0
C102: =SUM(C100:C101) -> 11270016.95 | D102: 18475323.91 | E102: 18475323.91 | F102: 18475323.91 | G102: 18475323.91 | H102: 18475323.91 | I102: 18475323.91 | J102: 18475323.91 | K102: 18475323.91 | L102: 18475323.91 | M102: 18475323.91 | N102: 18475323.91 | O102: 18475323.91 | P102: 18475323.91 | Q102: 18475323.91 | R102: 18475323.91 | S102: 18475323.91 | T102: 18475323.91 | U102: 18475323.91 | V102: 18475323.91 | W102: 18475323.91 | X102: 18475323.91 | Y102: 18475323.91 | Z102: 18475323.91 | AA102: 18475323.91 | AB102: 18475323.91 | AC102: 18475323.91 | AD102: 18475323.91 | AE102: 18475323.91 | AF102: 18475323.91 | AG102: 18475323.91 | AH102: 18475323.91 | AI102: 18475323.91 | AJ102: 18475323.91
A103: Working Capital | B103: =+$B$70 -> Public Transport Group | C103: =+C98-C102 -> -3213544.985 | D103: 6346825.095 | E103: 6346825.12 | F103: 6346825.12 | G103: 6346825.12 | H103: 6346825.12 | I103: 6346825.12 | J103: 6346825.12 | K103: 6346825.12 | L103: 6346825.12 | M103: 6346825.12 | N103: 6346825.12 | O103: 6346825.12 | P103: 6346825.12 | Q103: 6346825.12 | R103: 6346825.12 | S103: 6346825.12 | T103: 6346825.12 | U103: 6346825.12 | V103: 6346825.12 | W103: 6346825.12 | X103: 6346825.12 | Y103: 6346825.12 | Z103: 6346825.12 | AA103: 6346825.12 | AB103: 6346825.12 | AC103: 6346825.12 | AD103: 6346825.12 | AE103: 6346825.12 | AF103: 6346825.12 | AG103: 6346825.12 | AH103: 6346825.12 | AI103: 6346825.12 | AJ103: 6346825.12
A106: Closing Bal Reserve Investments | B106: =+$B$70 -> Public Transport Group | C106: 8469656.966 | D106: 11158831.37 | E106: 8938722.371 | F106: 9095540.993 | G106: 5886941.362 | H106: 6060606.132 | I106: 6245454.619 | J106: 6435940.985 | K106: 6625801.244 | L106: 6817949.48 | M106: 7015670.015 | N106: 7219124.445 | O106: 7428479.054 | P106: 7643904.947 | Q106: 7865578.19 | R106: 8093679.958 | S106: 8328396.677 | T106: 8569920.18 | U106: 8818447.865 | V106: 9074182.854 | W106: 9337334.156 | X106: 9608116.847 | Y106: 9886752.235 | Z106: 10173468.05 | AA106: 10468498.62 | AB106: 10772085.08 | AC106: 11084475.55 | AD106: 11405925.34 | AE106: 11736697.18 | AF106: 12077061.4 | AG106: 12427296.18 | AH106: 12787687.76 | AI106: 13158530.71 | AJ106: 13540128.1
A107: Closing Bal Forestry Investments | B107: Public Transport Group | C107: 0 | D107: 0 | E107: 0 | F107: 0 | G107: 0 | H107: 0 | I107: 0 | J107: 0 | K107: 0 | L107: 0 | M107: 0 | N107: 0 | O107: 0 | P107: 0 | Q107: 0 | R107: 0 | S107: 0 | T107: 0 | U107: 0 | V107: 0 | W107: 0 | X107: 0 | Y107: 0 | Z107: 0 | AA107: 0 | AB107: 0 | AC107: 0 | AD107: 0 | AE107: 0 | AF107: 0 | AG107: 0 | AH107: 0 | AI107: 0 | AJ107: 0
A108: Closing Bal Investment in Subsidiary | B108: Public Transport Group | C108: 0 | D108: 0 | E108: 0 | F108: 0 | G108: 0 | H108: 0 | I108: 0 | J108: 0 | K108: 0 | L108: 0 | M108: 0 | N108: 0 | O108: 0 | P108: 0 | Q108: 0 | R108: 0 | S108: 0 | T108: 0 | U108: 0 | V108: 0 | W108: 0 | X108: 0 | Y108: 0 | Z108: 0 | AA108: 0 | AB108: 0 | AC108: 0 | AD108: 0 | AE108: 0 | AF108: 0 | AG108: 0 | AH108: 0 | AI108: 0 | AJ108: 0
A109: Closing Bal Financial Instruments | B109: Public Transport Group | C109: 0 | D109: 0 | E109: 0 | F109: 0 | G109: 0 | H109: 0 | I109: 0 | J109: 0 | K109: 0 | L109: 0 | M109: 0 | N109: 0 | O109: 0 | P109: 0 | Q109: 0 | R109: 0 | S109: 0 | T109: 0 | U109: 0 | V109: 0 | W109: 0 | X109: 0 | Y109: 0 | Z109: 0 | AA109: 0 | AB109: 0 | AC109: 0 | AD109: 0 | AE109: 0 | AF109: 0 | AG109: 0 | AH109: 0 | AI109: 0 | AJ109: 0
A110: Closing Bal FX Investment | B110: Public Transport Group | C110: 0 | D110: 0 | E110: 0 | F110: 0 | G110: 0 | H110: 0 | I110: 0 | J110: 0 | K110: 0 | L110: 0 | M110: 0 | N110: 0 | O110: 0 | P110: 0 | Q110: 0 | R110: 0 | S110: 0 | T110: 0 | U110: 0 | V110: 0 | W110: 0 | X110: 0 | Y110: 0 | Z110: 0 | AA110: 0 | AB110: 0 | AC110: 0 | AD110: 0 | AE110: 0 | AF110: 0 | AG110: 0 | AH110: 0 | AI110: 0 | AJ110: 0
A111: Closing Bal Other Investments | B111: Public Transport Group | C111: 40312545.48 | D111: 40417770 | E111: 61078192.46 | F111: 87729252.34 | G111: 106797519.4 | H111: 140338844.3 | I111: 170081337.4 | J111: 182944914.5 | K111: 197221437.6 | L111: 220095842.5 | M111: 238166600.3 | N111: 256795307.5 | O111: 277287499.8 | P111: 303753139.2 | Q111: 314053528.2 | R111: 332127405.7 | S111: 350689277.8 | T111: 368387916.7 | U111: 389149499.6 | V111: 410471645.4 | W111: 421102463.7 | X111: 453601700.7 | Y111: 484426996 | Z111: 495259869.3 | AA111: 751121316.5 | AB111: 1013891023 | AC111: 1283755511 | AD111: 1302231729 | AE111: 1321206805 | AF111: 1334442713 | AG111: 1350435704 | AH111: 1375378182 | AI111: 1394044828 | AJ111: 1407651878
C112: =SUM(C106:C111) -> 48782202.45 | D112: 51576601.37 | E112: 70016914.83 | F112: 96824793.34 | G112: 112684460.7 | H112: 146399450.5 | I112: 176326792 | J112: 189380855.5 | K112: 203847238.9 | L112: 226913791.9 | M112: 245182270.3 | N112: 264014431.9 | O112: 284715978.9 | P112: 311397044.2 | Q112: 321919106.4 | R112: 340221085.6 | S112: 359017674.5 | T112: 376957836.8 | U112: 397967947.5 | V112: 419545828.2 | W112: 430439797.8 | X112: 463209817.6 | Y112: 494313748.2 | Z112: 505433337.4 | AA112: 761589815.1 | AB112: 1024663108 | AC112: 1294839987 | AD112: 1313637654 | AE112: 1332943502 | AF112: 1346519774 | AG112: 1362863000 | AH112: 1388165869 | AI112: 1407203359 | AJ112: 1421192006
A114: Capex Project C/Balance | B114: =+$B$70 -> Public Transport Group | C114: 0 | D114: 416464.45 | E114: 416464.45 | F114: 416464.45 | G114: 416464.45 | H114: 416464.45 | I114: 416464.45 | J114: 416464.45 | K114: 416464.45 | L114: 416464.45 | M114: 416464.45 | N114: 416464.45 | O114: 416464.45 | P114: 416464.45 | Q114: 416464.45 | R114: 416464.45 | S114: 416464.45 | T114: 416464.45 | U114: 416464.45 | V114: 416464.45 | W114: 416464.45 | X114: 416464.45 | Y114: 416464.45 | Z114: 416464.45 | AA114: 416464.45 | AB114: 416464.45 | AC114: 416464.45 | AD114: 416464.45 | AE114: 416464.45 | AF114: 416464.45 | AG114: 416464.45 | AH114: 416464.45 | AI114: 416464.45 | AJ114: 416464.45
A115: Closing Bal Total Assets | B115: =+$B$70 -> Public Transport Group | C115: 42539200.19 | D115: 83406890.86 | E115: 119391483.9 | F115: 151746987 | G115: 173237678.7 | H115: 191160363.2 | I115: 209391934.9 | J115: 230840167.5 | K115: 255428337.5 | L115: 268144326 | M115: 283143393.8 | N115: 310677802.7 | O115: 315500937.2 | P115: 328817127.5 | Q115: 334246185.2 | R115: 336998717.4 | S115: 339825568 | T115: 345289600.2 | U115: 355916190.4 | V115: 370362848.7 | W115: 387215425.2 | X115: 423155600.8 | Y115: 429321281.8 | Z115: 446702668.8 | AA115: 453789121.4 | AB115: 457381952.9 | AC115: 461071790.8 | AD115: 468030448.3 | AE115: 481901148 | AF115: 500758114.9 | AG115: 522755484 | AH115: 545346782.2 | AI115: 601851294 | AJ115: 605727570.1
A116: Dep C/Bal Total Assets | B116: =+$B$70 -> Public Transport Group | C116: -5765021.27 | D116: -10045787.61 | E116: -16109783.71 | F116: -25498480.53 | G116: -38049792.71 | H116: -52048239.09 | I116: -66624277.31 | J116: -82044436.42 | K116: -98522512.76 | L116: -116710660.3 | M116: -136140858 | N116: -155601875.9 | O116: -176422750.3 | P116: -193928430 | Q116: -209575842.1 | R116: -225019842.1 | S116: -240225457.5 | T116: -255161662.7 | U116: -269849425.9 | V116: -284551509.2 | W116: -299403622.9 | X116: -312922273 | Y116: -327296386 | Z116: -341733853.7 | AA116: -356516817.1 | AB116: -370727540.5 | AC116: -384345184.1 | AD116: -397376636.1 | AE116: -409779056.7 | AF116: -421803506.6 | AG116: -434303947.4 | AH116: -447320144.5 | AI116: -459003394.5 | AJ116: -476007399.8
C117: =SUM(C114:C116) -> 36774178.92 | D117: 73777567.7 | E117: 103698164.6 | F117: 126664970.9 | G117: 135604350.5 | H117: 139528588.6 | I117: 143184122.1 | J117: 149212195.5 | K117: 157322289.2 | L117: 151850130.2 | M117: 147419000.2 | N117: 155492391.3 | O117: 139494651.4 | P117: 135305162 | Q117: 125086807.5 | R117: 112395339.7 | S117: 100016574.9 | T117: 90544401.91 | U117: 86483229 | V117: 86227803.94 | W117: 88228266.75 | X117: 110649792.3 | Y117: 102441360.2 | Z117: 105385279.6 | AA117: 97688768.72 | AB117: 87070876.81 | AC117: 77143071.09 | AD117: 71070276.61 | AE117: 72538555.8 | AF117: 79371072.67 | AG117: 88868001.05 | AH117: 98443102.16 | AI117: 143264363.9 | AJ117: 130136634.8
A119: Closing Bal Internal Debt | B119: =+$B$70 -> Public Transport Group | C119: 247206645.9 | D119: 250270994.8 | E119: 266390264.7 | F119: 279433237.4 | G119: 287667377.2 | H119: 306092595.5 | I119: 321382190.5 | J119: 318608422 | K119: 317487865.3 | L119: 305733759.7 | M119: 292494103.8 | N119: 284984564.6 | O119: 316014709.4 | P119: 306676257.7 | Q119: 285993085.9 | R119: 267427168.6 | S119: 249899024.2 | T119: 230875297.2 | U119: 218709832.1 | V119: 208254556.3 | W119: 193682087.9 | X119: 199375839.5 | Y119: 187799088 | Z119: 181530115.1 | AA119: 290649438.2 | AB119: 399809673.4 | AC119: 511245865.7 | AD119: 499095751.9 | AE119: 492590868.8 | AF119: 484991553 | AG119: 480348985.4 | AH119: 480778631.9 | AI119: 492043658.7 | AJ119: 472345351.9
A120: Finance Lease liabiity | B120: =+$B$70 -> Public Transport Group | C120: 0 | D120: 29424623.16 | E120: 27893291.05 | F120: 26291441.93 | G120: 24615417.1 | H120: 22861349.02 | I120: 21025148.53 | J120: 19102491.32 | K120: 17088803.61 | L120: 14979246.78 | M120: 12768701.14 | N120: 10451748.6 | O120: 8022654.302 | P120: 5475346.979 | Q120: 2803398.164 | R120: 1.629814506e-09 | S120: 1.629814506e-09 | T120: 1.629814506e-09 | U120: 1.629814506e-09 | V120: 1.629814506e-09 | W120: 1.629814506e-09 | X120: 1.629814506e-09 | Y120: 1.629814506e-09 | Z120: 1.629814506e-09 | AA120: 1.629814506e-09 | AB120: 1.629814506e-09 | AC120: 1.629814506e-09 | AD120: 1.629814506e-09 | AE120: 1.629814506e-09 | AF120: 1.629814506e-09 | AG120: 1.629814506e-09 | AH120: 1.629814506e-09 | AI120: 1.629814506e-09 | AJ120: 1.629814506e-09
A121: Closing Bal External Debt | B121: =+$B$70 -> Public Transport Group | C121: 0 | D121: 0 | E121: 0 | F121: 0 | G121: 0 | H121: 0 | I121: 0 | J121: 0 | K121: 0 | L121: 0 | M121: 0 | N121: 0 | O121: 0 | P121: 0 | Q121: 0 | R121: 0 | S121: 0 | T121: 0 | U121: 0 | V121: 0 | W121: 0 | X121: 0 | Y121: 0 | Z121: 0 | AA121: 0 | AB121: 0 | AC121: 0 | AD121: 0 | AE121: 0 | AF121: 0 | AG121: 0 | AH121: 0 | AI121: 0 | AJ121: 0
C122: =SUM(C119:C121) -> 247206645.9 | D122: 279695617.9 | E122: 294283555.7 | F122: 305724679.3 | G122: 312282794.3 | H122: 328953944.5 | I122: 342407339 | J122: 337710913.4 | K122: 334576668.9 | L122: 320713006.5 | M122: 305262804.9 | N122: 295436313.2 | O122: 324037363.7 | P122: 312151604.7 | Q122: 288796484.1 | R122: 267427168.6 | S122: 249899024.2 | T122: 230875297.2 | U122: 218709832.1 | V122: 208254556.3 | W122: 193682087.9 | X122: 199375839.5 | Y122: 187799088 | Z122: 181530115.1 | AA122: 290649438.2 | AB122: 399809673.4 | AC122: 511245865.7 | AD122: 499095751.9 | AE122: 492590868.8 | AF122: 484991553 | AG122: 480348985.4 | AH122: 480778631.9 | AI122: 492043658.7 | AJ122: 472345351.9
A123: Net.Assets | B123: =+$B$70 -> Public Transport Group | C123: -164863809.5 | D123: -147994623.8 | E123: -114221651.2 | F123: -75888089.97 | G123: -57647157.95 | H123: -36679080.3 | I123: -16549599.83 | J123: 7228962.795 | K123: 32939684.29 | L123: 64397740.75 | M123: 93685290.7 | N123: 130417335.2 | O123: 106520091.7 | P123: 140897426.6 | Q123: 164556255 | R123: 191536081.9 | S123: 215482050.4 | T123: 242973766.6 | U123: 272088169.5 | V123: 303865901 | W123: 331332801.8 | X123: 380830595.5 | Y123: 415302845.6 | Z123: 435635327 | AA123: 574975970.8 | AB123: 718271136.4 | AC123: 867084017.3 | AD123: 891959004.1 | AE123: 919238014 | AF123: 947246119.3 | AG123: 977728840.9 | AH123: 1012177165 | AI123: 1064770889 | AJ123: 1085330114
A125: Retained Earnings C/F | B125: =+$B$70 -> Public Transport Group | C125: -2868906.899 | D125: -23673038.58 | E125: 12320043.01 | F125: 50496785.58 | G125: 71946317.23 | H125: 92740730.11 | I125: 112685362.1 | J125: 134089184.9 | K125: 159610046.1 | L125: 190875954.3 | M125: 219965783.7 | N125: 256494373.8 | O125: 230105737.2 | P125: 264267646.3 | Q125: 287704801.4 | R125: 314456526.6 | S125: 338167778.3 | T125: 362857114.4 | U125: 391722989.5 | V125: 423244986.1 | W125: 450448735.6 | X125: 499675746.6 | Y125: 531020527.9 | Z125: 551066293.5 | AA125: 690111906.7 | AB125: 833103485.9 | AC125: 981603976.3 | AD125: 1002988319 | AE125: 1029936557 | AF125: 1057604298 | AG125: 1087736785 | AH125: 1121824718 | AI125: 1174047599 | AJ125: 1194225227
A126: Share Capital (gwrl only) | B126: =+$B$70 -> Public Transport Group | C126: 0 | D126: 0 | E126: 0 | F126: 0 | G126: 0 | H126: 0 | I126: 0 | J126: 0 | K126: 0 | L126: 0 | M126: 0 | N126: 0 | O126: 0 | P126: 0 | Q126: 0 | R126: 0 | S126: 0 | T126: 0 | U126: 0 | V126: 0 | W126: 0 | X126: 0 | Y126: 0 | Z126: 0 | AA126: 0 | AB126: 0 | AC126: 0 | AD126: 0 | AE126: 0 | AF126: 0 | AG126: 0 | AH126: 0 | AI126: 0 | AJ126: 0
A127: Closing Bal. Asset\Reval | B127: =+$B$70 -> Public Transport Group | C127: -311260.47 | D127: 866875.1379 | E127: 866875.1379 | F127: 866875.1379 | G127: 866875.1379 | H127: 866875.1379 | I127: 866875.1379 | J127: 3051128.627 | K127: 3051128.627 | L127: 3051128.627 | M127: 3051128.627 | N127: 3051128.627 | O127: 5333167.083 | P127: 5333167.083 | Q127: 5333167.083 | R127: 5333167.083 | S127: 5333167.083 | T127: 7894023.757 | U127: 7894023.757 | V127: 7894023.757 | W127: 7894023.757 | X127: 7894023.757 | Y127: 10742857.12 | Z127: 10742857.12 | AA127: 10742857.12 | AB127: 10742857.12 | AC127: 10742857.12 | AD127: 13912051.1 | AE127: 13912051.1 | AF127: 13912051.1 | AG127: 13912051.1 | AH127: 13912051.1 | AI127: 13912051.1 | AJ127: 13912051.1
A128: Closing Bal Reserves | B128: =+$B$70 -> Public Transport Group | C128: 8469656.966 | D128: 11158831.37 | E128: 8938722.371 | F128: 9095540.993 | G128: 5886941.362 | H128: 6060606.132 | I128: 6245454.619 | J128: 6435940.985 | K128: 6625801.244 | L128: 6817949.48 | M128: 7015670.015 | N128: 7219124.445 | O128: 7428479.054 | P128: 7643904.947 | Q128: 7865578.19 | R128: 8093679.958 | S128: 8328396.677 | T128: 8569920.18 | U128: 8818447.865 | V128: 9074182.854 | W128: 9337334.156 | X128: 9608116.847 | Y128: 9886752.235 | Z128: 10173468.05 | AA128: 10468498.62 | AB128: 10772085.08 | AC128: 11084475.55 | AD128: 11405925.34 | AE128: 11736697.18 | AF128: 12077061.4 | AG128: 12427296.18 | AH128: 12787687.76 | AI128: 13158530.71 | AJ128: 13540128.1
A129: Close Balance S/F Reserve | B129: =+$B$70 -> Public Transport Group | C129: 0 | D129: 0 | E129: 0 | F129: 0 | G129: 0 | H129: 0 | I129: 0 | J129: 0 | K129: 0 | L129: 0 | M129: 0 | N129: 0 | O129: 0 | P129: 0 | Q129: 0 | R129: 0 | S129: 0 | T129: 0 | U129: 0 | V129: 0 | W129: 0 | X129: 0 | Y129: 0 | Z129: 0 | AA129: 0 | AB129: 0 | AC129: 0 | AD129: 0 | AE129: 0 | AF129: 0 | AG129: 0 | AH129: 0 | AI129: 0 | AJ129: 0
A131: Net Equity | C131: =SUM(C125:C130) -> 5289489.596 | D131: -11647332.07 | E131: 22125640.52 | F131: 60459201.71 | G131: 78700133.73 | H131: 99668211.38 | I131: 119797691.9 | J131: 143576254.5 | K131: 169286976 | L131: 200745032.4 | M131: 230032582.4 | N131: 266764626.8 | O131: 242867383.3 | P131: 277244718.3 | Q131: 300903546.7 | R131: 327883373.6 | S131: 351829342 | T131: 379321058.3 | U131: 408435461.2 | V131: 440213192.7 | W131: 467680093.5 | X131: 517177887.2 | Y131: 551650137.2 | Z131: 571982618.7 | AA131: 711323262.5 | AB131: 854618428.1 | AC131: 1003431309 | AD131: 1028306296 | AE131: 1055585306 | AF131: 1083593411 | AG131: 1114076133 | AH131: 1148524456 | AI131: 1201118181 | AJ131: 1221677406
A133: balance check | C133: =C123-C131 -> -170153299.1 | D133: -136347291.7 | E133: -136347291.7 | F133: -136347291.7 | G133: -136347291.7 | H133: -136347291.7 | I133: -136347291.7 | J133: -136347291.7 | K133: -136347291.7 | L133: -136347291.7 | M133: -136347291.7 | N133: -136347291.7 | O133: -136347291.7 | P133: -136347291.7 | Q133: -136347291.7 | R133: -136347291.7 | S133: -136347291.7 | T133: -136347291.7 | U133: -136347291.7 | V133: -136347291.7 | W133: -136347291.7 | X133: -136347291.7 | Y133: -136347291.7 | Z133: -136347291.7 | AA133: -136347291.7 | AB133: -136347291.7 | AC133: -136347291.7 | AD133: -136347291.7 | AE133: -136347291.7 | AF133: -136347291.7 | AG133: -136347291.7 | AH133: -136347291.7 | AI133: -136347291.7 | AJ133: -136347291.7
A138: Total Rates & Levies | B138: Flood Protection | C138: 17989103.94 | D138: 19480458 | E138: 20507481.93 | F138: 21993908.66 | G138: 23598364.45 | H138: 25868468.27 | I138: 27668110.02 | J138: 29385053.21 | K138: 30718399.49 | L138: 32601761.95 | M138: 34058884.84 | N138: 36555833.17 | O138: 31931923.55 | P138: 33917330.98 | Q138: 35054069.51 | R138: 39696264.61 | S138: 41343025 | T138: 42108002.61 | U138: 42620087.23 | V138: 43683751.75 | W138: 44182757.58 | X138: 45476309.29 | Y138: 45926578.18 | Z138: 46735494.1 | AA138: 48459748.06 | AB138: 47563696.84 | AC138: 48428652.2 | AD138: 48689907.39 | AE138: 49400034.55 | AF138: 50215661.19 | AG138: 50486562.96 | AH138: 51555506.73 | AI138: 51387781.19 | AJ138: 36565327.11
A139: Bulk Water Levies | B139: =+B138 -> Flood Protection | C139: 0 | D139: 0 | E139: 0 | F139: 0 | G139: 0 | H139: 0 | I139: 0 | J139: 0 | K139: 0 | L139: 0 | M139: 0 | N139: 0 | O139: 0 | P139: 0 | Q139: 0 | R139: 0 | S139: 0 | T139: 0 | U139: 0 | V139: 0 | W139: 0 | X139: 0 | Y139: 0 | Z139: 0 | AA139: 0 | AB139: 0 | AC139: 0 | AD139: 0 | AE139: 0 | AF139: 0 | AG139: 0 | AH139: 0 | AI139: 0 | AJ139: 0
A140: Warm Greater Wellington rate | B140: =+$B$138 -> Flood Protection | C140: 0 | D140: 0 | E140: 0 | F140: 0 | G140: 0 | H140: 0 | I140: 0 | J140: 0 | K140: 0 | L140: 0 | M140: 0 | N140: 0 | O140: 0 | P140: 0 | Q140: 0 | R140: 0 | S140: 0 | T140: 0 | U140: 0 | V140: 0 | W140: 0 | X140: 0 | Y140: 0 | Z140: 0 | AA140: 0 | AB140: 0 | AC140: 0 | AD140: 0 | AE140: 0 | AF140: 0 | AG140: 0 | AH140: 0 | AI140: 0 | AJ140: 0
A141: External Interest Revenue | B141: =+$B$138 -> Flood Protection | C141: 146407.5003 | D141: 159355.2255 | E141: 185173.0168 | F141: 220680.8552 | G141: 275188.7613 | H141: 316576.9718 | I141: 354044.1299 | J141: 386122.1892 | K141: 411032.3823 | L141: 437001.2585 | M141: 485912.5796 | N141: 516435.6894 | O141: 548317.0776 | P141: 581617.1876 | Q141: 616399.1524 | R141: 652728.9147 | S141: 690675.3514 | T141: 730310.4045 | U141: 771709.2175 | V141: 814950.2777 | W141: 860115.5651 | X141: 907290.7077 | Y141: 956565.1442 | Z141: 1008032.293 | AA141: 1061789.73 | AB141: 1117939.373 | AC141: 1176587.675 | AD141: 1237845.827 | AE141: 1301829.966 | AF141: 1368661.4 | AG141: 1438466.832 | AH141: 1511378.606 | AI141: 1587534.954 | AJ141: 1653521.892
A142: Total Government Subsidies | B142: =+$B$138 -> Flood Protection | C142: 0 | D142: 0 | E142: 0 | F142: 0 | G142: 0 | H142: 0 | I142: 0 | J142: 0 | K142: 0 | L142: 0 | M142: 0 | N142: 0 | O142: 0 | P142: 0 | Q142: 0 | R142: 0 | S142: 0 | T142: 0 | U142: 0 | V142: 0 | W142: 0 | X142: 0 | Y142: 0 | Z142: 0 | AA142: 0 | AB142: 0 | AC142: 0 | AD142: 0 | AE142: 0 | AF142: 0 | AG142: 0 | AH142: 0 | AI142: 0 | AJ142: 0
A143: Transport Fare Revenue | B143: =+$B$138 -> Flood Protection | C143: 0 | D143: 0 | E143: 0 | F143: 0 | G143: 0 | H143: 0 | I143: 0 | J143: 0 | K143: 0 | L143: 0 | M143: 0 | N143: 0 | O143: 0 | P143: 0 | Q143: 0 | R143: 0 | S143: 0 | T143: 0 | U143: 0 | V143: 0 | W143: 0 | X143: 0 | Y143: 0 | Z143: 0 | AA143: 0 | AB143: 0 | AC143: 0 | AD143: 0 | AE143: 0 | AF143: 0 | AG143: 0 | AH143: 0 | AI143: 0 | AJ143: 0
A144: Total Operating Revenue | B144: =+$B$138 -> Flood Protection | C144: 21151889.57 | D144: 24045432.45 | E144: 25461367.14 | F144: 27247642.3 | G144: 29128759.55 | H144: 31177372.16 | I144: 33139867.29 | J144: 35004937.25 | K144: 34442541.21 | L144: 35042316.57 | M144: 36592039 | N144: 39061279.08 | O144: 34529136.66 | P144: 36608047.76 | Q144: 37841988.57 | R144: 42586932.53 | S144: 44340082.97 | T144: 45214079.71 | U144: 45837201.11 | V144: 47013811.72 | W144: 47629786.83 | X144: 49044660.98 | Y144: 49619809.15 | Z144: 50558806.72 | AA144: 52418144.11 | AB144: 51661783.59 | AC144: 52671011.44 | AD144: 53081096.22 | AE144: 53945154.76 | AF144: 54919808.2 | AG144: 55355016.89 | AH144: 56593550.05 | AI144: 56492567.98 | AJ144: 39684738.24
A146: Total Financial Costs | B146: =+$B$138 -> Flood Protection | C146: 4384537.595 | D146: 5342484.306 | E146: 5759744.089 | F146: 6352591.237 | G146: 7105216.983 | H146: 7742678.32 | I146: 8596869.909 | J146: 9282227.963 | K146: 9738581.98 | L146: 10224496.7 | M146: 10571471.86 | N146: 10714727.98 | O146: 10834124.39 | P146: 10793007.3 | Q146: 10769125.77 | R146: 10989194.85 | S146: 11322477.31 | T146: 11545681.61 | U146: 11528458.07 | V146: 11301786.72 | W146: 11090437.15 | X146: 10948308.37 | Y146: 10754335.03 | Z146: 10697442.99 | AA146: 10754507.12 | AB146: 10818130.5 | AC146: 10958503.59 | AD146: 11098111.96 | AE146: 11272250.06 | AF146: 11473419.15 | AG146: 11692560 | AH146: 11963833.8 | AI146: 12260915.32 | AJ146: 12593220.54
A147: Depreciation | B147: =+$B$138 -> Flood Protection | C147: 978493.6665 | D147: 1327793.521 | E147: 1525880.223 | F147: 1784508.966 | G147: 2003589.313 | H147: 2220634.078 | I147: 2411450.392 | J147: 2571542.415 | K147: 2807049.276 | L147: 3024942.846 | M147: 3179305.436 | N147: 3324491.65 | O147: 3375141.049 | P147: 3426425.873 | Q147: 3350968.647 | R147: 3429000.323 | S147: 3460487.79 | T147: 3480741.955 | U147: 3550063.063 | V147: 3595449.491 | W147: 3618013.987 | X147: 3639373.397 | Y147: 3692917.177 | Z147: 3737023.161 | AA147: 3746802.166 | AB147: 3821414.328 | AC147: 3903674.974 | AD147: 3943269.518 | AE147: 3996929.995 | AF147: 4025274.382 | AG147: 4101372.836 | AH147: 4128094.908 | AI147: 3669805.592 | AJ147: 3796588.465
A148: Grants - Capital Works | B148: =+B147 -> Flood Protection | C148: 0 | D148: 0 | E148: 0 | F148: 0 | G148: 0 | H148: 0 | I148: 0 | J148: 0 | K148: 0 | L148: 0 | M148: 0 | N148: 0 | O148: 0 | P148: 0 | Q148: 0 | R148: 0 | S148: 0 | T148: 0 | U148: 0 | V148: 0 | W148: 0 | X148: 0 | Y148: 0 | Z148: 0 | AA148: 0 | AB148: 0 | AC148: 0 | AD148: 0 | AE148: 0 | AF148: 0 | AG148: 0 | AH148: 0 | AI148: 0 | AJ148: 0
A149: Total Operating Expenses | B149: =+$B$138 -> Flood Protection | C149: 16811188.33 | D149: 20017636.12 | E149: 20958764.51 | F149: 22270139.4 | G149: 23800486.2 | H149: 24761335.48 | I149: 26073746.77 | J149: 27364582.07 | K149: 27458292.18 | L149: 27951771.55 | M149: 28578329.22 | N149: 29395008.16 | O149: 29079457.98 | P149: 29429056.5 | Q149: 29843169.52 | R149: 30826681.02 | S149: 31571797.17 | T149: 32102376.28 | U149: 32577906.19 | V149: 32942459.04 | W149: 32839884.46 | X149: 33463535.85 | Y149: 33398348.06 | Z149: 33790062.85 | AA149: 34497125.55 | AB149: 34811270.29 | AC149: 35670630.48 | AD149: 35983143.9 | AE149: 36710410.62 | AF149: 37603646.98 | AG149: 38025384.13 | AH149: 38934785.16 | AI149: 38866994.43 | AJ149: 22315057.89
A151: Capital Expenditure | B151: =+$B$138 -> Flood Protection | C151: -21302880.68 | D151: -17846007.71 | E151: -20929774.23 | F151: -19149594.29 | G151: -18030148.86 | H151: -20907744.34 | I151: -21507453.67 | J151: -21818497.39 | K151: -20295765.89 | L151: -19257516.01 | M151: -12100890.14 | N151: -14007343.94 | O151: -8393165.147 | P151: -4371143.306 | Q151: -11139557.79 | R151: -19432377.3 | S151: -20887973.08 | T151: -16402637.08 | U151: -11597931.07 | V151: -8730505.297 | W151: -13682257.37 | X151: -12873241.64 | Y151: -13021121.75 | Z151: -19473926.51 | AA151: -18689063.33 | AB151: -20774055.72 | AC151: -20514653.66 | AD151: -21106956.4 | AE151: -21647100.12 | AF151: -21920948.43 | AG151: -22785823.36 | AH151: -23750094.44 | AI151: -23822334.04 | AJ151: -24531201.32
A152: Investment in Subsidiary - Additions | B152: =+$B$138 -> Flood Protection | C152: 0 | D152: 0 | E152: 0 | F152: 0 | G152: 0 | H152: 0 | I152: 0 | J152: 0 | K152: 0 | L152: 0 | M152: 0 | N152: 0 | O152: 0 | P152: 0 | Q152: 0 | R152: 0 | S152: 0 | T152: 0 | U152: 0 | V152: 0 | W152: 0 | X152: 0 | Y152: 0 | Z152: 0 | AA152: 0 | AB152: 0 | AC152: 0 | AD152: 0 | AE152: 0 | AF152: 0 | AG152: 0 | AH152: 0 | AI152: 0 | AJ152: 0
A154: Closing Bal External Debt | B154: =+$B$138 -> Flood Protection | C154: 0 | D154: 0 | E154: 0 | F154: 0 | G154: 0 | H154: 0 | I154: 0 | J154: 0 | K154: 0 | L154: 0 | M154: 0 | N154: 0 | O154: 0 | P154: 0 | Q154: 0 | R154: 0 | S154: 0 | T154: 0 | U154: 0 | V154: 0 | W154: 0 | X154: 0 | Y154: 0 | Z154: 0 | AA154: 0 | AB154: 0 | AC154: 0 | AD154: 0 | AE154: 0 | AF154: 0 | AG154: 0 | AH154: 0 | AI154: 0 | AJ154: 0
A155: Closing Bal Internal Debt | B155: =+$B$138 -> Flood Protection | C155: 85415017.84 | D155: 107177084.8 | E155: 122867158.9 | F155: 136092111.3 | G155: 147691539.9 | H155: 161474240.1 | I155: 175007949.9 | J155: 188257476.4 | K155: 200519471.1 | L155: 211606726.9 | M155: 214467858.7 | N155: 217177851.5 | O155: 219151154 | P155: 215311390.5 | Q155: 217736899 | R155: 224137886.4 | S155: 230941376.5 | T155: 233028679.1 | U155: 230108810.2 | V155: 223409932.2 | W155: 221164516.4 | X155: 217208706 | Y155: 212965111.5 | Z155: 214753838.6 | AA155: 214688248.2 | AB155: 217796943.5 | AC155: 220238967.9 | AD155: 223524279.8 | AE155: 227322913.3 | AF155: 231371789.2 | AG155: 236312856.8 | AH155: 242006013.3 | AI155: 248558415.8 | AJ155: 255635947.8
A156: Closing Bal Other Investments | B156: =+$B$138 -> Flood Protection | C156: 6222223.839 | D156: 6633564.247 | E156: 7019837.264 | F156: 7442742.319 | G156: 7921304.213 | H156: 8442481.899 | I156: 9002382.56 | J156: 9595701.837 | K156: 10215361.23 | L156: 10862513.81 | M156: 11560201.79 | N156: 12290080.82 | O156: 13053554.21 | P156: 13852086.92 | Q156: 14687208.32 | R156: 15560514.99 | S156: 16473673.69 | T156: 17428424.49 | U156: 18426584 | V156: 19470048.72 | W156: 20560798.63 | X156: 21700900.8 | Y156: 22892513.32 | Z156: 24137889.26 | AA156: 25439380.92 | AB156: 26799444.18 | AC156: 28220643.09 | AD156: 29705654.64 | AE156: 31257273.82 | AF156: 32878418.73 | AG156: 34572136.13 | AH156: 36515884.08 | AI156: 38547462.35 | AJ156: 40653190.61
A158: C/Balance Current Account | B158: =+$B$138 -> Flood Protection | C158: -30.65178068 | D158: -439441.8718 | E158: -439369.9366 | F158: -439149.8312 | G158: -438937.9333 | H158: -436793.9663 | I158: -432950.7043 | J158: -432275.5326 | K158: -431463.9879 | L158: -430814.1884 | M158: -430050.3337 | N158: -420706.1913 | O158: -413823.9753 | P158: -412687.2228 | Q158: -411415.3041 | R158: -410002.5002 | S158: -393496.4064 | T158: -391783.814 | U158: -389911.9008 | V158: -375987.0568 | W158: -373776.6131 | X158: -348481.2023 | Y158: -345904.1588 | Z158: -343132.6878 | AA158: -340159.0613 | AB158: -336975.2597 | AC158: -281121.7311 | AD158: -277492.4875 | AE158: -273627.4275 | AF158: -269517.4166 | AG158: -265153.0371 | AH158: -216168.1985 | AI158: -211265.5496 | AJ158: 93041.29412
A159: C/Balance Bank | B159: Flood Protection | C159: 650 | D159: 600.5 | E159: 600.5 | F159: 600.5 | G159: 600.5 | H159: 600.5 | I159: 600.5 | J159: 600.5 | K159: 600.5 | L159: 600.5 | M159: 600.5 | N159: 600.5 | O159: 600.5 | P159: 600.5 | Q159: 600.5 | R159: 600.5 | S159: 600.5 | T159: 600.5 | U159: 600.5 | V159: 600.5 | W159: 600.5 | X159: 600.5 | Y159: 600.5 | Z159: 600.5 | AA159: 600.5 | AB159: 600.5 | AC159: 600.5 | AD159: 600.5 | AE159: 600.5 | AF159: 600.5 | AG159: 600.5 | AH159: 600.5 | AI159: 600.5 | AJ159: 600.5
A160: C/Balance Debtors | B160: Flood Protection | C160: 549112.97 | D160: 777871.78 | E160: 777871.78 | F160: 777871.78 | G160: 777871.78 | H160: 777871.78 | I160: 777871.78 | J160: 777871.78 | K160: 777871.78 | L160: 777871.78 | M160: 777871.78 | N160: 777871.78 | O160: 777871.78 | P160: 777871.78 | Q160: 777871.78 | R160: 777871.78 | S160: 777871.78 | T160: 777871.78 | U160: 777871.78 | V160: 777871.78 | W160: 777871.78 | X160: 777871.78 | Y160: 777871.78 | Z160: 777871.78 | AA160: 777871.78 | AB160: 777871.78 | AC160: 777871.78 | AD160: 777871.78 | AE160: 777871.78 | AF160: 777871.78 | AG160: 777871.78 | AH160: 777871.78 | AI160: 777871.78 | AJ160: 777871.78
A161: C/Balance Doubtful Debtors | B161: Flood Protection | C161: -34973.89 | D161: -14426.09 | E161: -14426.09 | F161: -14426.09 | G161: -14426.09 | H161: -14426.09 | I161: -14426.09 | J161: -14426.09 | K161: -14426.09 | L161: -14426.09 | M161: -14426.09 | N161: -14426.09 | O161: -14426.09 | P161: -14426.09 | Q161: -14426.09 | R161: -14426.09 | S161: -14426.09 | T161: -14426.09 | U161: -14426.09 | V161: -14426.09 | W161: -14426.09 | X161: -14426.09 | Y161: -14426.09 | Z161: -14426.09 | AA161: -14426.09 | AB161: -14426.09 | AC161: -14426.09 | AD161: -14426.09 | AE161: -14426.09 | AF161: -14426.09 | AG161: -14426.09 | AH161: -14426.09 | AI161: -14426.09 | AJ161: -14426.09
A162: C/Balance Accrued Revenue | B162: Flood Protection | C162: 53599.49 | D162: 111583.52 | E162: 111583.52 | F162: 111583.52 | G162: 111583.52 | H162: 111583.52 | I162: 111583.52 | J162: 111583.52 | K162: 111583.52 | L162: 111583.52 | M162: 111583.52 | N162: 111583.52 | O162: 111583.52 | P162: 111583.52 | Q162: 111583.52 | R162: 111583.52 | S162: 111583.52 | T162: 111583.52 | U162: 111583.52 | V162: 111583.52 | W162: 111583.52 | X162: 111583.52 | Y162: 111583.52 | Z162: 111583.52 | AA162: 111583.52 | AB162: 111583.52 | AC162: 111583.52 | AD162: 111583.52 | AE162: 111583.52 | AF162: 111583.52 | AG162: 111583.52 | AH162: 111583.52 | AI162: 111583.52 | AJ162: 111583.52
A163: Warm GW advances | B163: Flood Protection | C163: 0 | D163: 0 | E163: 0 | F163: 0 | G163: 0 | H163: 0 | I163: 0 | J163: 0 | K163: 0 | L163: 0 | M163: 0 | N163: 0 | O163: 0 | P163: 0 | Q163: 0 | R163: 0 | S163: 0 | T163: 0 | U163: 0 | V163: 0 | W163: 0 | X163: 0 | Y163: 0 | Z163: 0 | AA163: 0 | AB163: 0 | AC163: 0 | AD163: 0 | AE163: 0 | AF163: 0 | AG163: 0 | AH163: 0 | AI163: 0 | AJ163: 0
A164: C/Balance Stock | B164: Flood Protection | C164: 124206.55 | D164: 123902.15 | E164: 123902.15 | F164: 123902.15 | G164: 123902.15 | H164: 123902.15 | I164: 123902.15 | J164: 123902.15 | K164: 123902.15 | L164: 123902.15 | M164: 123902.15 | N164: 123902.15 | O164: 123902.15 | P164: 123902.15 | Q164: 123902.15 | R164: 123902.15 | S164: 123902.15 | T164: 123902.15 | U164: 123902.15 | V164: 123902.15 | W164: 123902.15 | X164: 123902.15 | Y164: 123902.15 | Z164: 123902.15 | AA164: 123902.15 | AB164: 123902.15 | AC164: 123902.15 | AD164: 123902.15 | AE164: 123902.15 | AF164: 123902.15 | AG164: 123902.15 | AH164: 123902.15 | AI164: 123902.15 | AJ164: 123902.15
A165: Total Current Assets | B165: Flood Protection | C165: =SUM(C158:C164) -> 692564.4682 | D165: 560089.9882 | E165: 560161.9234 | F165: 560382.0288 | G165: 560593.9267 | H165: 562737.8937 | I165: 566581.1557 | J165: 567256.3274 | K165: 568067.8721 | L165: 568717.6716 | M165: 569481.5263 | N165: 578825.6687 | O165: 585707.8847 | P165: 586844.6372 | Q165: 588116.5559 | R165: 589529.3598 | S165: 606035.4536 | T165: 607748.046 | U165: 609619.9592 | V165: 623544.8032 | W165: 625755.2469 | X165: 651050.6577 | Y165: 653627.7012 | Z165: 656399.1722 | AA165: 659372.7987 | AB165: 662556.6003 | AC165: 718410.1289 | AD165: 722039.3725 | AE165: 725904.4325 | AF165: 730014.4434 | AG165: 734378.8229 | AH165: 783363.6615 | AI165: 788266.3104 | AJ165: 1092573.154
A167: C/Balance Creditors | B167: =+$B$138 -> Flood Protection | C167: 961701.08 | D167: 1527382.53 | E167: 1527382.53 | F167: 1527382.53 | G167: 1527382.53 | H167: 1527382.53 | I167: 1527382.53 | J167: 1527382.53 | K167: 1527382.53 | L167: 1527382.53 | M167: 1527382.53 | N167: 1527382.53 | O167: 1527382.53 | P167: 1527382.53 | Q167: 1527382.53 | R167: 1527382.53 | S167: 1527382.53 | T167: 1527382.53 | U167: 1527382.53 | V167: 1527382.53 | W167: 1527382.53 | X167: 1527382.53 | Y167: 1527382.53 | Z167: 1527382.53 | AA167: 1527382.53 | AB167: 1527382.53 | AC167: 1527382.53 | AD167: 1527382.53 | AE167: 1527382.53 | AF167: 1527382.53 | AG167: 1527382.53 | AH167: 1527382.53 | AI167: 1527382.53 | AJ167: 1527382.53
A168: C/Balance Accrued Expenses | B168: =+$B$138 -> Flood Protection | C168: 0 | D168: 0 | E168: 0 | F168: 0 | G168: 0 | H168: 0 | I168: 0 | J168: 0 | K168: 0 | L168: 0 | M168: 0 | N168: 0 | O168: 0 | P168: 0 | Q168: 0 | R168: 0 | S168: 0 | T168: 0 | U168: 0 | V168: 0 | W168: 0 | X168: 0 | Y168: 0 | Z168: 0 | AA168: 0 | AB168: 0 | AC168: 0 | AD168: 0 | AE168: 0 | AF168: 0 | AG168: 0 | AH168: 0 | AI168: 0 | AJ168: 0
C169: =SUM(C167:C168) -> 961701.08 | D169: 1527382.53 | E169: 1527382.53 | F169: 1527382.53 | G169: 1527382.53 | H169: 1527382.53 | I169: 1527382.53 | J169: 1527382.53 | K169: 1527382.53 | L169: 1527382.53 | M169: 1527382.53 | N169: 1527382.53 | O169: 1527382.53 | P169: 1527382.53 | Q169: 1527382.53 | R169: 1527382.53 | S169: 1527382.53 | T169: 1527382.53 | U169: 1527382.53 | V169: 1527382.53 | W169: 1527382.53 | X169: 1527382.53 | Y169: 1527382.53 | Z169: 1527382.53 | AA169: 1527382.53 | AB169: 1527382.53 | AC169: 1527382.53 | AD169: 1527382.53 | AE169: 1527382.53 | AF169: 1527382.53 | AG169: 1527382.53 | AH169: 1527382.53 | AI169: 1527382.53 | AJ169: 1527382.53
A170: Working Capital | B170: =+$B$138 -> Flood Protection | C170: =+C165-C169 -> -269136.6118 | D170: -967292.5418 | E170: -967220.6066 | F170: -967000.5012 | G170: -966788.6033 | H170: -964644.6363 | I170: -960801.3743 | J170: -960126.2026 | K170: -959314.6579 | L170: -958664.8584 | M170: -957901.0037 | N170: -948556.8613 | O170: -941674.6453 | P170: -940537.8928 | Q170: -939265.9741 | R170: -937853.1702 | S170: -921347.0764 | T170: -919634.484 | U170: -917762.5708 | V170: -903837.7268 | W170: -901627.2831 | X170: -876331.8723 | Y170: -873754.8288 | Z170: -870983.3578 | AA170: -868009.7313 | AB170: -864825.9297 | AC170: -808972.4011 | AD170: -805343.1575 | AE170: -801478.0975 | AF170: -797368.0866 | AG170: -793003.7071 | AH170: -744018.8685 | AI170: -739116.2196 | AJ170: -434809.3759
A173: Closing Bal Reserve Investments | B173: =+$B$138 -> Flood Protection | C173: 10233318.13 | D173: 10622751.88 | E173: 11016649.42 | F173: 11438211.06 | G173: 11846164.99 | H173: 12820645.67 | I173: 13836915.72 | J173: 14884132.16 | K173: 15934820.47 | L173: 17008351.05 | M173: 18073179.3 | N173: 19132529.87 | O173: 20222539.42 | P173: 21263310.14 | Q173: 22466788.99 | R173: 23744875.1 | S173: 25046690.81 | T173: 26346401.7 | U173: 27620921.2 | V173: 28879364.06 | W173: 30253858.33 | X173: 31628434.64 | Y173: 33056133.1 | Z173: 34591531.95 | AA173: 36158197.94 | AB173: 37796816.09 | AC173: 39456435.33 | AD173: 41177442.94 | AE173: 42948359.78 | AF173: 44770633.2 | AG173: 46645752.57 | AH173: 48561990.95 | AI173: 50560212 | AJ173: 52001486.23
A174: Closing Bal Forestry Investments | B174: Flood Protection | C174: 0 | D174: 0 | E174: 0 | F174: 0 | G174: 0 | H174: 0 | I174: 0 | J174: 0 | K174: 0 | L174: 0 | M174: 0 | N174: 0 | O174: 0 | P174: 0 | Q174: 0 | R174: 0 | S174: 0 | T174: 0 | U174: 0 | V174: 0 | W174: 0 | X174: 0 | Y174: 0 | Z174: 0 | AA174: 0 | AB174: 0 | AC174: 0 | AD174: 0 | AE174: 0 | AF174: 0 | AG174: 0 | AH174: 0 | AI174: 0 | AJ174: 0
A175: Closing Bal Investment in Subsidiary | B175: Flood Protection | C175: 0 | D175: 0 | E175: 0 | F175: 0 | G175: 0 | H175: 0 | I175: 0 | J175: 0 | K175: 0 | L175: 0 | M175: 0 | N175: 0 | O175: 0 | P175: 0 | Q175: 0 | R175: 0 | S175: 0 | T175: 0 | U175: 0 | V175: 0 | W175: 0 | X175: 0 | Y175: 0 | Z175: 0 | AA175: 0 | AB175: 0 | AC175: 0 | AD175: 0 | AE175: 0 | AF175: 0 | AG175: 0 | AH175: 0 | AI175: 0 | AJ175: 0
A176: Closing Bal Financial Instruments | B176: Flood Protection | C176: 0 | D176: 0 | E176: 0 | F176: 0 | G176: 0 | H176: 0 | I176: 0 | J176: 0 | K176: 0 | L176: 0 | M176: 0 | N176: 0 | O176: 0 | P176: 0 | Q176: 0 | R176: 0 | S176: 0 | T176: 0 | U176: 0 | V176: 0 | W176: 0 | X176: 0 | Y176: 0 | Z176: 0 | AA176: 0 | AB176: 0 | AC176: 0 | AD176: 0 | AE176: 0 | AF176: 0 | AG176: 0 | AH176: 0 | AI176: 0 | AJ176: 0
A177: Closing Bal FX Investment | B177: Flood Protection | C177: 0 | D177: 0 | E177: 0 | F177: 0 | G177: 0 | H177: 0 | I177: 0 | J177: 0 | K177: 0 | L177: 0 | M177: 0 | N177: 0 | O177: 0 | P177: 0 | Q177: 0 | R177: 0 | S177: 0 | T177: 0 | U177: 0 | V177: 0 | W177: 0 | X177: 0 | Y177: 0 | Z177: 0 | AA177: 0 | AB177: 0 | AC177: 0 | AD177: 0 | AE177: 0 | AF177: 0 | AG177: 0 | AH177: 0 | AI177: 0 | AJ177: 0
A178: Closing Bal Other Investments | B178: Flood Protection | C178: 6222223.839 | D178: 6633564.247 | E178: 7019837.264 | F178: 7442742.319 | G178: 7921304.213 | H178: 8442481.899 | I178: 9002382.56 | J178: 9595701.837 | K178: 10215361.23 | L178: 10862513.81 | M178: 11560201.79 | N178: 12290080.82 | O178: 13053554.21 | P178: 13852086.92 | Q178: 14687208.32 | R178: 15560514.99 | S178: 16473673.69 | T178: 17428424.49 | U178: 18426584 | V178: 19470048.72 | W178: 20560798.63 | X178: 21700900.8 | Y178: 22892513.32 | Z178: 24137889.26 | AA178: 25439380.92 | AB178: 26799444.18 | AC178: 28220643.09 | AD178: 29705654.64 | AE178: 31257273.82 | AF178: 32878418.73 | AG178: 34572136.13 | AH178: 36515884.08 | AI178: 38547462.35 | AJ178: 40653190.61
C179: =SUM(C173:C178) -> 16455541.97 | D179: 17256316.13 | E179: 18036486.68 | F179: 18880953.38 | G179: 19767469.2 | H179: 21263127.57 | I179: 22839298.28 | J179: 24479834 | K179: 26150181.7 | L179: 27870864.86 | M179: 29633381.09 | N179: 31422610.69 | O179: 33276093.63 | P179: 35115397.07 | Q179: 37153997.31 | R179: 39305390.09 | S179: 41520364.5 | T179: 43774826.19 | U179: 46047505.2 | V179: 48349412.78 | W179: 50814656.95 | X179: 53329335.44 | Y179: 55948646.42 | Z179: 58729421.21 | AA179: 61597578.86 | AB179: 64596260.27 | AC179: 67677078.41 | AD179: 70883097.58 | AE179: 74205633.6 | AF179: 77649051.94 | AG179: 81217888.7 | AH179: 85077875.03 | AI179: 89107674.35 | AJ179: 92654676.84
A181: Capex Project C/Balance | B181: =+$B$138 -> Flood Protection | C181: 0 | D181: 4741973.3 | E181: 4741973.3 | F181: 4741973.3 | G181: 4741973.3 | H181: 4741973.3 | I181: 4741973.3 | J181: 4741973.3 | K181: 4741973.3 | L181: 4741973.3 | M181: 4741973.3 | N181: 4741973.3 | O181: 4741973.3 | P181: 4741973.3 | Q181: 4741973.3 | R181: 4741973.3 | S181: 4741973.3 | T181: 4741973.3 | U181: 4741973.3 | V181: 4741973.3 | W181: 4741973.3 | X181: 4741973.3 | Y181: 4741973.3 | Z181: 4741973.3 | AA181: 4741973.3 | AB181: 4741973.3 | AC181: 4741973.3 | AD181: 4741973.3 | AE181: 4741973.3 | AF181: 4741973.3 | AG181: 4741973.3 | AH181: 4741973.3 | AI181: 4741973.3 | AJ181: 4741973.3
A182: Closing Bal Total Assets | B182: =+$B$138 -> Flood Protection | C182: 380138465.5 | D182: 447595727 | E182: 468343613.3 | F182: 487236053.5 | G182: 505160101.5 | H182: 562153073.6 | I182: 583343638.2 | J182: 604957070.5 | K182: 625044933.8 | L182: 644021907.5 | M182: 701229722.4 | N182: 715042636.7 | O182: 723286794.8 | P182: 727345420.5 | Q182: 738352635.3 | R182: 809486127.2 | S182: 829996586.8 | T182: 846164433.1 | U182: 857646407.1 | V182: 866110755.4 | W182: 937220109.2 | X182: 949795272.5 | Y182: 962735280.7 | Z182: 981815660.7 | AA182: 1000242419 | AB182: 1085000604 | AC182: 1105094540 | AD182: 1125919696 | AE182: 1147399812 | AF182: 1169141845 | AG182: 1191675464 | AH182: 1214809276 | AI182: 1238559321 | AJ182: 1262700373
A183: Dep C/Bal Total Assets | B183: =+$B$138 -> Flood Protection | C183: -12701051.85 | D183: -11648986.48 | E183: -12984366.7 | F183: -14518818.41 | G183: -16401680.22 | H183: -18509329.53 | I183: -20676234.45 | J183: -23040320.8 | K183: -25552288.14 | L183: -28072144.14 | M183: -30962018.58 | N183: -34187898.73 | O183: -36862558.62 | P183: -39421259.94 | Q183: -42042747.44 | R183: -45369064.95 | S183: -48522723.03 | T183: -51746024.97 | U183: -55161252 | V183: -58555033.27 | W183: -61963037.66 | X183: -65427564.71 | Y183: -69009017.34 | Z183: -72312701.13 | AA183: -75752188.87 | AB183: -79447946.22 | AC183: -83180294.21 | AD183: -86828205.65 | AE183: -90597479.95 | AF183: -94417893.97 | AG183: -98249649.81 | AH183: -101891526.6 | AI183: -105493394.8 | AJ183: -109003097.6
C184: =SUM(C181:C183) -> 367437413.6 | D184: 440688713.8 | E184: 460101219.8 | F184: 477459208.4 | G184: 493500394.6 | H184: 548385717.4 | I184: 567409377 | J184: 586658723 | K184: 604234619 | L184: 620691736.6 | M184: 675009677.1 | N184: 685596711.2 | O184: 691166209.5 | P184: 692666133.8 | Q184: 701051861.1 | R184: 768859035.5 | S184: 786215837.1 | T184: 799160381.5 | U184: 807227128.4 | V184: 812297695.5 | W184: 879999044.8 | X184: 889109681 | Y184: 898468236.7 | Z184: 914244932.9 | AA184: 929232203.3 | AB184: 1010294631 | AC184: 1026656219 | AD184: 1043833464 | AE184: 1061544305 | AF184: 1079465924 | AG184: 1098167788 | AH184: 1117659723 | AI184: 1137807899 | AJ184: 1158439248
A186: Closing Bal Internal Debt | B186: =+$B$138 -> Flood Protection | C186: 85415017.84 | D186: 107177084.8 | E186: 122867158.9 | F186: 136092111.3 | G186: 147691539.9 | H186: 161474240.1 | I186: 175007949.9 | J186: 188257476.4 | K186: 200519471.1 | L186: 211606726.9 | M186: 214467858.7 | N186: 217177851.5 | O186: 219151154 | P186: 215311390.5 | Q186: 217736899 | R186: 224137886.4 | S186: 230941376.5 | T186: 233028679.1 | U186: 230108810.2 | V186: 223409932.2 | W186: 221164516.4 | X186: 217208706 | Y186: 212965111.5 | Z186: 214753838.6 | AA186: 214688248.2 | AB186: 217796943.5 | AC186: 220238967.9 | AD186: 223524279.8 | AE186: 227322913.3 | AF186: 231371789.2 | AG186: 236312856.8 | AH186: 242006013.3 | AI186: 248558415.8 | AJ186: 255635947.8
A187: Finance Lease liabiity | B187: =+$B$138 -> Flood Protection | C187: 0 | D187: 0 | E187: 0 | F187: 0 | G187: 0 | H187: 0 | I187: 0 | J187: 0 | K187: 0 | L187: 0 | M187: 0 | N187: 0 | O187: 0 | P187: 0 | Q187: 0 | R187: 0 | S187: 0 | T187: 0 | U187: 0 | V187: 0 | W187: 0 | X187: 0 | Y187: 0 | Z187: 0 | AA187: 0 | AB187: 0 | AC187: 0 | AD187: 0 | AE187: 0 | AF187: 0 | AG187: 0 | AH187: 0 | AI187: 0 | AJ187: 0
A188: Closing Bal External Debt | B188: =+$B$138 -> Flood Protection | C188: 0 | D188: 0 | E188: 0 | F188: 0 | G188: 0 | H188: 0 | I188: 0 | J188: 0 | K188: 0 | L188: 0 | M188: 0 | N188: 0 | O188: 0 | P188: 0 | Q188: 0 | R188: 0 | S188: 0 | T188: 0 | U188: 0 | V188: 0 | W188: 0 | X188: 0 | Y188: 0 | Z188: 0 | AA188: 0 | AB188: 0 | AC188: 0 | AD188: 0 | AE188: 0 | AF188: 0 | AG188: 0 | AH188: 0 | AI188: 0 | AJ188: 0
C189: =SUM(C186:C188) -> 85415017.84 | D189: 107177084.8 | E189: 122867158.9 | F189: 136092111.3 | G189: 147691539.9 | H189: 161474240.1 | I189: 175007949.9 | J189: 188257476.4 | K189: 200519471.1 | L189: 211606726.9 | M189: 214467858.7 | N189: 217177851.5 | O189: 219151154 | P189: 215311390.5 | Q189: 217736899 | R189: 224137886.4 | S189: 230941376.5 | T189: 233028679.1 | U189: 230108810.2 | V189: 223409932.2 | W189: 221164516.4 | X189: 217208706 | Y189: 212965111.5 | Z189: 214753838.6 | AA189: 214688248.2 | AB189: 217796943.5 | AC189: 220238967.9 | AD189: 223524279.8 | AE189: 227322913.3 | AF189: 231371789.2 | AG189: 236312856.8 | AH189: 242006013.3 | AI189: 248558415.8 | AJ189: 255635947.8
A190: Net.Assets | B190: =+$B$138 -> Flood Protection | C190: 298208801.2 | D190: 349800652.6 | E190: 354303327 | F190: 359281050 | G190: 364609535.2 | H190: 407209960.2 | I190: 414279924 | J190: 421920954.4 | K190: 428906014.9 | L190: 435997209.8 | M190: 489217298.5 | N190: 498892913.6 | O190: 504349474.5 | P190: 511529602.5 | Q190: 519529693.5 | R190: 583088686.1 | S190: 595873478 | T190: 608986894 | U190: 622248060.8 | V190: 636333338.4 | W190: 708747558.1 | X190: 724353978.6 | Y190: 740578016.8 | Z190: 757349532.1 | AA190: 775273524.3 | AB190: 856229122.3 | AC190: 873285356.8 | AD190: 890386938.3 | AE190: 907625547.5 | AF190: 924945818.8 | AG190: 942279815.9 | AH190: 959987565.6 | AI190: 977618041.8 | AJ190: 995023168.1
A192: Retained Earnings C/F | B192: =+$B$138 -> Flood Protection | C192: 64732314.87 | D192: 64315336.1 | E192: 68424040.93 | F192: 72979982.19 | G192: 77900301.62 | H192: 83341857.61 | I192: 89391708.07 | J192: 95984846.82 | K192: 101918407.5 | L192: 107935422 | M192: 114884303.5 | N192: 123491223.9 | O192: 127850893 | P192: 133989113.5 | Q192: 140784453.7 | R192: 151266619.1 | S192: 162733089.2 | T192: 174545081.8 | U192: 186529857.2 | V192: 199342767 | W192: 212758175.1 | X192: 226964723.9 | Y192: 241758486.5 | Z192: 256991831.6 | AA192: 273346184.1 | AB192: 288558079.3 | AC192: 303898841 | AD192: 319275785.7 | AE192: 334739613 | AF192: 350233500.8 | AG192: 365688014.2 | AH192: 381430540.7 | AI192: 397057893.2 | AJ192: 412986299.3
A193: Share Capital (gwrl only) | B193: =+$B$138 -> Flood Protection | C193: 0 | D193: 0 | E193: 0 | F193: 0 | G193: 0 | H193: 0 | I193: 0 | J193: 0 | K193: 0 | L193: 0 | M193: 0 | N193: 0 | O193: 0 | P193: 0 | Q193: 0 | R193: 0 | S193: 0 | T193: 0 | U193: 0 | V193: 0 | W193: 0 | X193: 0 | Y193: 0 | Z193: 0 | AA193: 0 | AB193: 0 | AC193: 0 | AD193: 0 | AE193: 0 | AF193: 0 | AG193: 0 | AH193: 0 | AI193: 0 | AJ193: 0
A194: Closing Bal. Asset\Reval | B194: =+$B$138 -> Flood Protection | C194: 227637671.8 | D194: 272614202.6 | E194: 272614202.6 | F194: 272614202.6 | G194: 272614202.6 | H194: 308796447 | I194: 308796447 | J194: 308796447 | K194: 308796447 | L194: 308796447 | M194: 354002062.1 | N194: 354002062.1 | O194: 354002062.1 | P194: 354002062.1 | Q194: 354002062.1 | R194: 405799390.4 | S194: 405799390.4 | T194: 405799390.4 | U194: 405799390.4 | V194: 405799390.4 | W194: 463421497.3 | X194: 463421497.3 | Y194: 463421497.3 | Z194: 463421497.3 | AA194: 463421497.3 | AB194: 527523398.2 | AC194: 527523398.2 | AD194: 527523398.2 | AE194: 527523398.2 | AF194: 527523398.2 | AG194: 527523398.2 | AH194: 527523398.2 | AI194: 527523398.2 | AJ194: 527523398.2
A195: Closing Bal Reserves | B195: =+$B$138 -> Flood Protection | C195: 10233318.13 | D195: 10622751.88 | E195: 11016649.42 | F195: 11438211.06 | G195: 11846164.99 | H195: 12820645.67 | I195: 13836915.72 | J195: 14884132.16 | K195: 15934820.47 | L195: 17008351.05 | M195: 18073179.3 | N195: 19132529.87 | O195: 20222539.42 | P195: 21263310.14 | Q195: 22466788.99 | R195: 23744875.1 | S195: 25046690.81 | T195: 26346401.7 | U195: 27620921.2 | V195: 28879364.06 | W195: 30253858.33 | X195: 31628434.64 | Y195: 33056133.1 | Z195: 34591531.95 | AA195: 36158197.94 | AB195: 37796816.09 | AC195: 39456435.33 | AD195: 41177442.94 | AE195: 42948359.78 | AF195: 44770633.2 | AG195: 46645752.57 | AH195: 48561990.95 | AI195: 50560212 | AJ195: 52001486.23
A196: Close Balance S/F Reserve | B196: =+$B$138 -> Flood Protection | C196: 0 | D196: 0 | E196: 0 | F196: 0 | G196: 0 | H196: 0 | I196: 0 | J196: 0 | K196: 0 | L196: 0 | M196: 0 | N196: 0 | O196: 0 | P196: 0 | Q196: 0 | R196: 0 | S196: 0 | T196: 0 | U196: 0 | V196: 0 | W196: 0 | X196: 0 | Y196: 0 | Z196: 0 | AA196: 0 | AB196: 0 | AC196: 0 | AD196: 0 | AE196: 0 | AF196: 0 | AG196: 0 | AH196: 0 | AI196: 0 | AJ196: 0
A198: Net Equity | C198: =SUM(C192:C197) -> 302603304.8 | D198: 347552290.6 | E198: 352054893 | F198: 357032395.9 | G198: 362360669.2 | H198: 404958950.2 | I198: 412025070.8 | J198: 419665426 | K198: 426649675 | L198: 433740220 | M198: 486959544.9 | N198: 496625815.8 | O198: 502075494.5 | P198: 509254485.8 | Q198: 517253304.8 | R198: 580810884.6 | S198: 593579170.4 | T198: 606690873.9 | U198: 619950168.8 | V198: 634021521.5 | W198: 706433530.7 | X198: 722014655.9 | Y198: 738236117 | Z198: 755004860.8 | AA198: 772925879.4 | AB198: 853878293.6 | AC198: 870878674.5 | AD198: 887976626.9 | AE198: 905211371 | AF198: 922527532.2 | AG198: 939857165 | AH198: 957515929.9 | AI198: 975141503.4 | AJ198: 992511183.8
A200: balance check | C200: =C190-C198 -> -4394503.636 | D200: 2248362.019 | E200: 2248434.019 | F200: 2248654.123 | G200: 2248866.023 | H200: 2251009.99 | I200: 2254853.248 | J200: 2255528.417 | K200: 2256339.959 | L200: 2256989.761 | M200: 2257753.612 | N200: 2267097.756 | O200: 2273979.977 | P200: 2275116.737 | Q200: 2276388.65 | R200: 2277801.455 | S200: 2294307.557 | T200: 2296020.153 | U200: 2297892.061 | V200: 2311816.91 | W200: 2314027.352 | X200: 2339322.759 | Y200: 2341899.802 | Z200: 2344671.265 | AA200: 2347644.895 | AB200: 2350828.697 | AC200: 2406682.233 | AD200: 2410311.471 | AE200: 2414176.531 | AF200: 2418286.539 | AG200: 2422650.92 | AH200: 2471635.761 | AI200: 2476538.415 | AJ200: 2511984.316
A206: Total Rates & Levies | B206: GW Water (Mgmt) | C206: 30862765.44 | D206: 33068898.04 | E206: 34230480.13 | F206: 35891638.61 | G206: 38304663.52 | H206: 41213707.57 | I206: 44125836.13 | J206: 47240404.98 | K206: 47906128.11 | L206: 48336405.48 | M206: 48426995.72 | N206: 49663289.76 | O206: 50689410.55 | P206: 51673197.2 | Q206: 53158936.33 | R206: 53965569.46 | S206: 55215987.25 | T206: 58004625.92 | U206: 61427050.08 | V206: 65517081.88 | W206: 70784897.04 | X206: 76055667.9 | Y206: 81987117.73 | Z206: 86459854.14 | AA206: 88201601 | AB206: 90184443.89 | AC206: 94413001.56 | AD206: 100574587.9 | AE206: 106543660.3 | AF206: 112163760.6 | AG206: 117470610.8 | AH206: 122230945.8 | AI206: 127827561.7 | AJ206: 129544833.8
A207: Bulk Water Levies | B207: =+B206 -> GW Water (Mgmt) | C207: 30862765.44 | D207: 33068898.04 | E207: 34230480.13 | F207: 35891638.61 | G207: 38304663.52 | H207: 41213707.57 | I207: 44125836.13 | J207: 47240404.98 | K207: 47906128.11 | L207: 48336405.48 | M207: 48426995.72 | N207: 49663289.76 | O207: 50689410.55 | P207: 51673197.2 | Q207: 53158936.33 | R207: 53965569.46 | S207: 55215987.25 | T207: 58004625.92 | U207: 61427050.08 | V207: 65517081.88 | W207: 70784897.04 | X207: 76055667.9 | Y207: 81987117.73 | Z207: 86459854.14 | AA207: 88201601 | AB207: 90184443.89 | AC207: 94413001.56 | AD207: 100574587.9 | AE207: 106543660.3 | AF207: 112163760.6 | AG207: 117470610.8 | AH207: 122230945.8 | AI207: 127827561.7 | AJ207: 129544833.8
A208: Warm Greater Wellington rate | B208: =+$B$206 -> GW Water (Mgmt) | C208: 0 | D208: 0 | E208: 0 | F208: 0 | G208: 0 | H208: 0 | I208: 0 | J208: 0 | K208: 0 | L208: 0 | M208: 0 | N208: 0 | O208: 0 | P208: 0 | Q208: 0 | R208: 0 | S208: 0 | T208: 0 | U208: 0 | V208: 0 | W208: 0 | X208: 0 | Y208: 0 | Z208: 0 | AA208: 0 | AB208: 0 | AC208: 0 | AD208: 0 | AE208: 0 | AF208: 0 | AG208: 0 | AH208: 0 | AI208: 0 | AJ208: 0
A209: External Interest Revenue | B209: =+$B$206 -> GW Water (Mgmt) | C209: 1029757.372 | D209: 956649.4665 | E209: 1054631.683 | F209: 1267352.193 | G209: 1621439.984 | H209: 1922534.253 | I209: 2208318.231 | J209: 2466270.993 | K209: 2681587.51 | L209: 2906054.979 | M209: 3323690.381 | N209: 3590037.765 | O209: 3868361.051 | P209: 4159198.719 | Q209: 4463113.466 | R209: 4780693.287 | S209: 5112552.618 | T209: 5459333.521 | U209: 5821706.927 | V209: 6200373.938 | W209: 6596067.179 | X209: 7009552.215 | Y209: 7441629.038 | Z209: 7893133.609 | AA209: 8364939.476 | AB209: 8857959.468 | AC209: 9373147.458 | AD209: 9911500.21 | AE209: 10474059.3 | AF209: 11061913.16 | AG209: 11676199.13 | AH209: 12318105.71 | AI209: 12988874.85 | AJ209: 12749278.09
A210: Total Government Subsidies | B210: =+$B$206 -> GW Water (Mgmt) | C210: 0 | D210: 0 | E210: 0 | F210: 0 | G210: 0 | H210: 0 | I210: 0 | J210: 0 | K210: 0 | L210: 0 | M210: 0 | N210: 0 | O210: 0 | P210: 0 | Q210: 0 | R210: 0 | S210: 0 | T210: 0 | U210: 0 | V210: 0 | W210: 0 | X210: 0 | Y210: 0 | Z210: 0 | AA210: 0 | AB210: 0 | AC210: 0 | AD210: 0 | AE210: 0 | AF210: 0 | AG210: 0 | AH210: 0 | AI210: 0 | AJ210: 0
A211: Transport Fare Revenue | B211: =+$B$206 -> GW Water (Mgmt) | C211: 0 | D211: 0 | E211: 0 | F211: 0 | G211: 0 | H211: 0 | I211: 0 | J211: 0 | K211: 0 | L211: 0 | M211: 0 | N211: 0 | O211: 0 | P211: 0 | Q211: 0 | R211: 0 | S211: 0 | T211: 0 | U211: 0 | V211: 0 | W211: 0 | X211: 0 | Y211: 0 | Z211: 0 | AA211: 0 | AB211: 0 | AC211: 0 | AD211: 0 | AE211: 0 | AF211: 0 | AG211: 0 | AH211: 0 | AI211: 0 | AJ211: 0
A212: Total Operating Revenue | B212: =+$B$206 -> GW Water (Mgmt) | C212: 32169959.81 | D212: 34308331.11 | E212: 35572419.96 | F212: 37450895.87 | G212: 40222970.97 | H212: 43447183.02 | I212: 46641503.02 | J212: 50019556.91 | K212: 50906541.3 | L212: 51567343.82 | M212: 52091975.16 | N212: 53591336.18 | O212: 54902540.43 | P212: 56184060.12 | Q212: 57980747.28 | R212: 59123073.44 | S212: 60701728.73 | T212: 63844612.09 | U212: 67637022.7 | V212: 72113486.83 | W212: 77796993.67 | X212: 83477250.78 | Y212: 89849018.05 | Z212: 94781664.45 | AA212: 97003790.71 | AB212: 99501733.49 | AC212: 104241064.2 | AD212: 110950101.6 | AE212: 117491013.4 | AF212: 123708433.3 | AG212: 129653947.5 | AH212: 135051314.6 | AI212: 141328744.9 | AJ212: 142816666.4
A214: Total Financial Costs | B214: =+$B$206 -> GW Water (Mgmt) | C214: 4417317.324 | D214: 4957186.431 | E214: 5193539.144 | F214: 5782490.932 | G214: 7423201.531 | H214: 9372355.712 | I214: 11374012.71 | J214: 12256218.18 | K214: 11903974.98 | L214: 11648407.42 | M214: 11609147.21 | N214: 11653814.75 | O214: 11697570.48 | P214: 11804847.24 | Q214: 11901399.98 | R214: 12130234.42 | S214: 12731279.57 | T214: 13911252.7 | U214: 15473365.27 | V214: 17514950.91 | W214: 20067784.82 | X214: 22916642.37 | Y214: 26057215.29 | Z214: 27657803.48 | AA214: 27729047.59 | AB214: 28150271.77 | AC214: 30208203.48 | AD214: 33462360.03 | AE214: 36306762.34 | AF214: 38817308.68 | AG214: 41712156.84 | AH214: 44469212.27 | AI214: 47058168.85 | AJ214: 49649466.47
A215: Depreciation | B215: =+$B$206 -> GW Water (Mgmt) | C215: 10514302.39 | D215: 15675165.43 | E215: 15951198.51 | F215: 16199792.85 | G215: 16669605.6 | H215: 17638324.84 | I215: 16722145.63 | J215: 17434407.27 | K215: 17405155.75 | L215: 17277191.58 | M215: 17170268.84 | N215: 17146856.96 | O215: 17043109.06 | P215: 17115618 | Q215: 17220880.93 | R215: 17259006.16 | S215: 17441371.32 | T215: 17831145.52 | U215: 18564897.07 | V215: 19238418.37 | W215: 20358042.9 | X215: 21361461.17 | Y215: 22529031.41 | Z215: 24052808.12 | AA215: 24420838.54 | AB215: 24599841.05 | AC215: 24906786.69 | AD215: 25600981.56 | AE215: 25795533.19 | AF215: 26409404.82 | AG215: 27942788.55 | AH215: 28163758.17 | AI215: 27496338.45 | AJ215: 27445403.57
A216: Grants - Capital Works | B216: =+B215 -> GW Water (Mgmt) | C216: 0 | D216: 0 | E216: 0 | F216: 0 | G216: 0 | H216: 0 | I216: 0 | J216: 0 | K216: 0 | L216: 0 | M216: 0 | N216: 0 | O216: 0 | P216: 0 | Q216: 0 | R216: 0 | S216: 0 | T216: 0 | U216: 0 | V216: 0 | W216: 0 | X216: 0 | Y216: 0 | Z216: 0 | AA216: 0 | AB216: 0 | AC216: 0 | AD216: 0 | AE216: 0 | AF216: 0 | AG216: 0 | AH216: 0 | AI216: 0 | AJ216: 0
A217: Total Operating Expenses | B217: =+$B$206 -> GW Water (Mgmt) | C217: 36229857.54 | D217: 42658346.64 | E217: 43525970.23 | F217: 44646627.27 | G217: 47197871.84 | H217: 50716629.17 | I217: 52032780.48 | J217: 55245551.74 | K217: 55537904.49 | L217: 55568759.76 | M217: 55291112.5 | N217: 56172527.43 | O217: 56706083.59 | P217: 57189464.74 | Q217: 58258317.84 | R217: 58540668.76 | S217: 59342487.67 | T217: 61529364.49 | U217: 64427202.93 | V217: 67758537.03 | W217: 72302896.59 | X217: 76628716.85 | Y217: 81610607.51 | Z217: 85948548.42 | AA217: 87074859.92 | AB217: 88098084.71 | AC217: 90957176.75 | AD217: 95632202.76 | AE217: 99443309.55 | AF217: 103354842.7 | AG217: 108772834.7 | AH217: 111822106.6 | AI217: 114582042.5 | AJ217: 115009991.6
A219: Capital Expenditure | B219: =+$B$206 -> GW Water (Mgmt) | C219: -12917708 | D219: -14645000 | E219: -14732101.02 | F219: -23015143.8 | G219: -48542775.63 | H219: -40988634.52 | I219: -42299999.52 | J219: -5482800.291 | K219: -3770755.508 | L219: -4887733.585 | M219: -8077665.72 | N219: -8733389.268 | O219: -8558680.932 | P219: -12015068.22 | Q219: -9095758.82 | R219: -18262786.97 | S219: -25286150.99 | T219: -43090141.06 | U219: -42877441.39 | V219: -64982758.02 | W219: -66695433.21 | X219: -80563363.83 | Y219: -82398354.56 | Z219: -21735648.66 | AA219: -22501883.2 | AB219: -37785664.9 | AC219: -91480093.84 | AD219: -90160559.04 | AE219: -78990263.82 | AF219: -80917998.77 | AG219: -89417783.1 | AH219: -85233065.78 | AI219: -87534358.56 | AJ219: -90125802.48
A220: Investment in Subsidiary - Additions | B220: =+$B$206 -> GW Water (Mgmt) | C220: 0 | D220: 0 | E220: 0 | F220: 0 | G220: 0 | H220: 0 | I220: 0 | J220: 0 | K220: 0 | L220: 0 | M220: 0 | N220: 0 | O220: 0 | P220: 0 | Q220: 0 | R220: 0 | S220: 0 | T220: 0 | U220: 0 | V220: 0 | W220: 0 | X220: 0 | Y220: 0 | Z220: 0 | AA220: 0 | AB220: 0 | AC220: 0 | AD220: 0 | AE220: 0 | AF220: 0 | AG220: 0 | AH220: 0 | AI220: 0 | AJ220: 0
A222: Closing Bal External Debt | B222: =+$B$206 -> GW Water (Mgmt) | C222: 0 | D222: 0 | E222: 0 | F222: 0 | G222: 0 | H222: 0 | I222: 0 | J222: 0 | K222: 0 | L222: 0 | M222: 0 | N222: 0 | O222: 0 | P222: 0 | Q222: 0 | R222: 0 | S222: 0 | T222: 0 | U222: 0 | V222: 0 | W222: 0 | X222: 0 | Y222: 0 | Z222: 0 | AA222: 0 | AB222: 0 | AC222: 0 | AD222: 0 | AE222: 0 | AF222: 0 | AG222: 0 | AH222: 0 | AI222: 0 | AJ222: 0
A223: Closing Bal Internal Debt | B223: =+$B$206 -> GW Water (Mgmt) | C223: 82697198.18 | D223: 98636602.14 | E223: 108929586.6 | F223: 126923679.6 | G223: 170168593.3 | H223: 205550120.6 | I223: 241632109.7 | J223: 240347017.1 | K223: 237074172.4 | L223: 234720053.8 | M223: 235362599.3 | N223: 236419414.3 | O223: 236995018.4 | P223: 240538679.5 | Q223: 240727798.3 | R223: 249599910.7 | S223: 264967136 | T223: 297241118.2 | U223: 328140964.8 | V223: 379813479.8 | W223: 431445825.8 | X223: 495114942.9 | Y223: 558609948 | Z223: 559894676 | AA223: 561076229.8 | AB223: 576506806.3 | AC223: 644089157.4 | AD223: 708294954.3 | AE223: 759105079.2 | AF223: 809651138.5 | AG223: 867394249 | AH223: 919173255.8 | AI223: 971226011.5 | AJ223: 1024207395
A224: Closing Bal Other Investments | B224: =+$B$206 -> GW Water (Mgmt) | C224: 32025905.23 | D224: 35543879.38 | E224: 39102411.06 | F224: 43085421.65 | G224: 47482264.52 | H224: 52244035.92 | I224: 57356893.76 | J224: 62797413.31 | K224: 68527605.59 | L224: 74561529.06 | M224: 81097540.39 | N224: 87986631.76 | O224: 95243120.87 | P224: 102881927.1 | Q224: 110918597.5 | R224: 119369333.7 | S224: 128251020.5 | T224: 137581254.7 | U224: 147378376.7 | V224: 157661501.9 | W224: 168450554.6 | X224: 179766303 | Y224: 191630395.5 | Z224: 204065399 | AA224: 217094839 | AB224: 230743240.4 | AC224: 245036171.8 | AD224: 260000290 | AE224: 275663388.1 | AF224: 292054444 | AG224: 309203672.8 | AH224: 327142580 | AI224: 346227793.7 | AJ224: 364335453.4
A226: C/Balance Current Account | B226: =+$B$206 -> GW Water (Mgmt) | C226: 3.725290298e-09 | D226: -1.11758709e-08 | E226: 300.0344264 | F226: 911.4344264 | G226: 1794.349226 | H226: 3012.512372 | I226: 4525.606027 | J226: 6401.074553 | K226: 8655.359507 | L226: 11362.86498 | M226: 14545.57978 | N226: 18224.3767 | O226: 22420.85292 | P226: 27157.35283 | Q226: 32456.99145 | R226: 38343.67857 | S226: 44842.14368 | T226: 51977.96153 | U226: 59777.57853 | V226: 68268.3399 | W226: 77478.51762 | X226: 87437.33926 | Y226: 98175.01759 | Z226: 109722.7811 | AA226: 122112.9054 | AB226: 135378.7458 | AC226: 149554.7702 | AD226: 164676.5936 | AE226: 180781.0136 | AF226: 197906.0465 | AG226: 216090.9647 | AH226: 216090.9647 | AI226: 216090.9647 | AJ226: 216090.9647
A227: C/Balance Bank | B227: GW Water (Mgmt) | C227: 86.8 | D227: 86.8 | E227: 86.8 | F227: 86.8 | G227: 86.8 | H227: 86.8 | I227: 86.8 | J227: 86.8 | K227: 86.8 | L227: 86.8 | M227: 86.8 | N227: 86.8 | O227: 86.8 | P227: 86.8 | Q227: 86.8 | R227: 86.8 | S227: 86.8 | T227: 86.8 | U227: 86.8 | V227: 86.8 | W227: 86.8 | X227: 86.8 | Y227: 86.8 | Z227: 86.8 | AA227: 86.8 | AB227: 86.8 | AC227: 86.8 | AD227: 86.8 | AE227: 86.8 | AF227: 86.8 | AG227: 86.8 | AH227: 86.8 | AI227: 86.8 | AJ227: 86.8
A228: C/Balance Debtors | B228: GW Water (Mgmt) | C228: 2832966.08 | D228: 4181549.54 | E228: 4181549.54 | F228: 4181549.54 | G228: 4181549.54 | H228: 4181549.54 | I228: 4181549.54 | J228: 4181549.54 | K228: 4181549.54 | L228: 4181549.54 | M228: 4181549.54 | N228: 4181549.54 | O228: 4181549.54 | P228: 4181549.54 | Q228: 4181549.54 | R228: 4181549.54 | S228: 4181549.54 | T228: 4181549.54 | U228: 4181549.54 | V228: 4181549.54 | W228: 4181549.54 | X228: 4181549.54 | Y228: 4181549.54 | Z228: 4181549.54 | AA228: 4181549.54 | AB228: 4181549.54 | AC228: 4181549.54 | AD228: 4181549.54 | AE228: 4181549.54 | AF228: 4181549.54 | AG228: 4181549.54 | AH228: 4181549.54 | AI228: 4181549.54 | AJ228: 4181549.54
A229: C/Balance Doubtful Debtors | B229: GW Water (Mgmt) | C229: 0 | D229: 0 | E229: 0 | F229: 0 | G229: 0 | H229: 0 | I229: 0 | J229: 0 | K229: 0 | L229: 0 | M229: 0 | N229: 0 | O229: 0 | P229: 0 | Q229: 0 | R229: 0 | S229: 0 | T229: 0 | U229: 0 | V229: 0 | W229: 0 | X229: 0 | Y229: 0 | Z229: 0 | AA229: 0 | AB229: 0 | AC229: 0 | AD229: 0 | AE229: 0 | AF229: 0 | AG229: 0 | AH229: 0 | AI229: 0 | AJ229: 0
A230: C/Balance Accrued Revenue | B230: GW Water (Mgmt) | C230: 241512.38 | D230: 285252.51 | E230: 285252.51 | F230: 285252.51 | G230: 285252.51 | H230: 285252.51 | I230: 285252.51 | J230: 285252.51 | K230: 285252.51 | L230: 285252.51 | M230: 285252.51 | N230: 285252.51 | O230: 285252.51 | P230: 285252.51 | Q230: 285252.51 | R230: 285252.51 | S230: 285252.51 | T230: 285252.51 | U230: 285252.51 | V230: 285252.51 | W230: 285252.51 | X230: 285252.51 | Y230: 285252.51 | Z230: 285252.51 | AA230: 285252.51 | AB230: 285252.51 | AC230: 285252.51 | AD230: 285252.51 | AE230: 285252.51 | AF230: 285252.51 | AG230: 285252.51 | AH230: 285252.51 | AI230: 285252.51 | AJ230: 285252.51
A231: Warm GW advances | B231: GW Water (Mgmt) | C231: 0 | D231: 0 | E231: 0 | F231: 0 | G231: 0 | H231: 0 | I231: 0 | J231: 0 | K231: 0 | L231: 0 | M231: 0 | N231: 0 | O231: 0 | P231: 0 | Q231: 0 | R231: 0 | S231: 0 | T231: 0 | U231: 0 | V231: 0 | W231: 0 | X231: 0 | Y231: 0 | Z231: 0 | AA231: 0 | AB231: 0 | AC231: 0 | AD231: 0 | AE231: 0 | AF231: 0 | AG231: 0 | AH231: 0 | AI231: 0 | AJ231: 0
A232: C/Balance Stock | B232: GW Water (Mgmt) | C232: 2565243.74 | D232: 2636873.64 | E232: 2636873.64 | F232: 2636873.64 | G232: 2636873.64 | H232: 2636873.64 | I232: 2636873.64 | J232: 2636873.64 | K232: 2636873.64 | L232: 2636873.64 | M232: 2636873.64 | N232: 2636873.64 | O232: 2636873.64 | P232: 2636873.64 | Q232: 2636873.64 | R232: 2636873.64 | S232: 2636873.64 | T232: 2636873.64 | U232: 2636873.64 | V232: 2636873.64 | W232: 2636873.64 | X232: 2636873.64 | Y232: 2636873.64 | Z232: 2636873.64 | AA232: 2636873.64 | AB232: 2636873.64 | AC232: 2636873.64 | AD232: 2636873.64 | AE232: 2636873.64 | AF232: 2636873.64 | AG232: 2636873.64 | AH232: 2636873.64 | AI232: 2636873.64 | AJ232: 2636873.64
A233: Total Current Assets | B233: GW Water (Mgmt) | C233: =SUM(C226:C232) -> 5639809 | D233: 7103762.49 | E233: 7104062.524 | F233: 7104673.924 | G233: 7105556.839 | H233: 7106775.002 | I233: 7108288.096 | J233: 7110163.565 | K233: 7112417.85 | L233: 7115125.355 | M233: 7118308.07 | N233: 7121986.867 | O233: 7126183.343 | P233: 7130919.843 | Q233: 7136219.481 | R233: 7142106.169 | S233: 7148604.634 | T233: 7155740.452 | U233: 7163540.069 | V233: 7172030.83 | W233: 7181241.008 | X233: 7191199.829 | Y233: 7201937.508 | Z233: 7213485.271 | AA233: 7225875.395 | AB233: 7239141.236 | AC233: 7253317.26 | AD233: 7268439.084 | AE233: 7284543.504 | AF233: 7301668.537 | AG233: 7319853.455 | AH233: 7319853.455 | AI233: 7319853.455 | AJ233: 7319853.455
A235: C/Balance Creditors | B235: =+$B$206 -> GW Water (Mgmt) | C235: 1839397.62 | D235: 3844560.6 | E235: 3844560.6 | F235: 3844560.6 | G235: 3844560.6 | H235: 3844560.6 | I235: 3844560.6 | J235: 3844560.6 | K235: 3844560.6 | L235: 3844560.6 | M235: 3844560.6 | N235: 3844560.6 | O235: 3844560.6 | P235: 3844560.6 | Q235: 3844560.6 | R235: 3844560.6 | S235: 3844560.6 | T235: 3844560.6 | U235: 3844560.6 | V235: 3844560.6 | W235: 3844560.6 | X235: 3844560.6 | Y235: 3844560.6 | Z235: 3844560.6 | AA235: 3844560.6 | AB235: 3844560.6 | AC235: 3844560.6 | AD235: 3844560.6 | AE235: 3844560.6 | AF235: 3844560.6 | AG235: 3844560.6 | AH235: 3844560.6 | AI235: 3844560.6 | AJ235: 3844560.6
A236: C/Balance Accrued Expenses | B236: =+$B$206 -> GW Water (Mgmt) | C236: 0 | D236: 0 | E236: 0 | F236: 0 | G236: 0 | H236: 0 | I236: 0 | J236: 0 | K236: 0 | L236: 0 | M236: 0 | N236: 0 | O236: 0 | P236: 0 | Q236: 0 | R236: 0 | S236: 0 | T236: 0 | U236: 0 | V236: 0 | W236: 0 | X236: 0 | Y236: 0 | Z236: 0 | AA236: 0 | AB236: 0 | AC236: 0 | AD236: 0 | AE236: 0 | AF236: 0 | AG236: 0 | AH236: 0 | AI236: 0 | AJ236: 0
C237: =SUM(C235:C236) -> 1839397.62 | D237: 3844560.6 | E237: 3844560.6 | F237: 3844560.6 | G237: 3844560.6 | H237: 3844560.6 | I237: 3844560.6 | J237: 3844560.6 | K237: 3844560.6 | L237: 3844560.6 | M237: 3844560.6 | N237: 3844560.6 | O237: 3844560.6 | P237: 3844560.6 | Q237: 3844560.6 | R237: 3844560.6 | S237: 3844560.6 | T237: 3844560.6 | U237: 3844560.6 | V237: 3844560.6 | W237: 3844560.6 | X237: 3844560.6 | Y237: 3844560.6 | Z237: 3844560.6 | AA237: 3844560.6 | AB237: 3844560.6 | AC237: 3844560.6 | AD237: 3844560.6 | AE237: 3844560.6 | AF237: 3844560.6 | AG237: 3844560.6 | AH237: 3844560.6 | AI237: 3844560.6 | AJ237: 3844560.6
A238: Working Capital | B238: =+$B$206 -> GW Water (Mgmt) | C238: =+C233-C237 -> 3800411.38 | D238: 3259201.89 | E238: 3259501.924 | F238: 3260113.324 | G238: 3260996.239 | H238: 3262214.402 | I238: 3263727.496 | J238: 3265602.965 | K238: 3267857.25 | L238: 3270564.755 | M238: 3273747.47 | N238: 3277426.267 | O238: 3281622.743 | P238: 3286359.243 | Q238: 3291658.881 | R238: 3297545.569 | S238: 3304044.034 | T238: 3311179.852 | U238: 3318979.469 | V238: 3327470.23 | W238: 3336680.408 | X238: 3346639.229 | Y238: 3357376.908 | Z238: 3368924.671 | AA238: 3381314.795 | AB238: 3394580.636 | AC238: 3408756.66 | AD238: 3423878.484 | AE238: 3439982.904 | AF238: 3457107.937 | AG238: 3475292.855 | AH238: 3475292.855 | AI238: 3475292.855 | AJ238: 3475292.855
A241: Closing Bal Reserve Investments | B241: =+$B$206 -> GW Water (Mgmt) | C241: 0 | D241: 0 | E241: 0 | F241: 0 | G241: 0 | H241: 0 | I241: 0 | J241: 0 | K241: 0 | L241: 0 | M241: 0 | N241: 0 | O241: 0 | P241: 0 | Q241: 0 | R241: 0 | S241: 0 | T241: 0 | U241: 0 | V241: 0 | W241: 0 | X241: 0 | Y241: 0 | Z241: 0 | AA241: 0 | AB241: 0 | AC241: 0 | AD241: 0 | AE241: 0 | AF241: 0 | AG241: 0 | AH241: 0 | AI241: 0 | AJ241: 0
A242: Closing Bal Forestry Investments | B242: GW Water (Mgmt) | C242: 0 | D242: 0 | E242: 0 | F242: 0 | G242: 0 | H242: 0 | I242: 0 | J242: 0 | K242: 0 | L242: 0 | M242: 0 | N242: 0 | O242: 0 | P242: 0 | Q242: 0 | R242: 0 | S242: 0 | T242: 0 | U242: 0 | V242: 0 | W242: 0 | X242: 0 | Y242: 0 | Z242: 0 | AA242: 0 | AB242: 0 | AC242: 0 | AD242: 0 | AE242: 0 | AF242: 0 | AG242: 0 | AH242: 0 | AI242: 0 | AJ242: 0
A243: Closing Bal Investment in Subsidiary | B243: GW Water (Mgmt) | C243: 0 | D243: 0 | E243: 0 | F243: 0 | G243: 0 | H243: 0 | I243: 0 | J243: 0 | K243: 0 | L243: 0 | M243: 0 | N243: 0 | O243: 0 | P243: 0 | Q243: 0 | R243: 0 | S243: 0 | T243: 0 | U243: 0 | V243: 0 | W243: 0 | X243: 0 | Y243: 0 | Z243: 0 | AA243: 0 | AB243: 0 | AC243: 0 | AD243: 0 | AE243: 0 | AF243: 0 | AG243: 0 | AH243: 0 | AI243: 0 | AJ243: 0
A244: Closing Bal Financial Instruments | B244: GW Water (Mgmt) | C244: 0 | D244: 0 | E244: 0 | F244: 0 | G244: 0 | H244: 0 | I244: 0 | J244: 0 | K244: 0 | L244: 0 | M244: 0 | N244: 0 | O244: 0 | P244: 0 | Q244: 0 | R244: 0 | S244: 0 | T244: 0 | U244: 0 | V244: 0 | W244: 0 | X244: 0 | Y244: 0 | Z244: 0 | AA244: 0 | AB244: 0 | AC244: 0 | AD244: 0 | AE244: 0 | AF244: 0 | AG244: 0 | AH244: 0 | AI244: 0 | AJ244: 0
A245: Closing Bal FX Investment | B245: GW Water (Mgmt) | C245: 0 | D245: 0 | E245: 0 | F245: 0 | G245: 0 | H245: 0 | I245: 0 | J245: 0 | K245: 0 | L245: 0 | M245: 0 | N245: 0 | O245: 0 | P245: 0 | Q245: 0 | R245: 0 | S245: 0 | T245: 0 | U245: 0 | V245: 0 | W245: 0 | X245: 0 | Y245: 0 | Z245: 0 | AA245: 0 | AB245: 0 | AC245: 0 | AD245: 0 | AE245: 0 | AF245: 0 | AG245: 0 | AH245: 0 | AI245: 0 | AJ245: 0
A246: Closing Bal Other Investments | B246: GW Water (Mgmt) | C246: 32025905.23 | D246: 35543879.38 | E246: 39102411.06 | F246: 43085421.65 | G246: 47482264.52 | H246: 52244035.92 | I246: 57356893.76 | J246: 62797413.31 | K246: 68527605.59 | L246: 74561529.06 | M246: 81097540.39 | N246: 87986631.76 | O246: 95243120.87 | P246: 102881927.1 | Q246: 110918597.5 | R246: 119369333.7 | S246: 128251020.5 | T246: 137581254.7 | U246: 147378376.7 | V246: 157661501.9 | W246: 168450554.6 | X246: 179766303 | Y246: 191630395.5 | Z246: 204065399 | AA246: 217094839 | AB246: 230743240.4 | AC246: 245036171.8 | AD246: 260000290 | AE246: 275663388.1 | AF246: 292054444 | AG246: 309203672.8 | AH246: 327142580 | AI246: 346227793.7 | AJ246: 364335453.4
C247: =SUM(C241:C246) -> 32025905.23 | D247: 35543879.38 | E247: 39102411.06 | F247: 43085421.65 | G247: 47482264.52 | H247: 52244035.92 | I247: 57356893.76 | J247: 62797413.31 | K247: 68527605.59 | L247: 74561529.06 | M247: 81097540.39 | N247: 87986631.76 | O247: 95243120.87 | P247: 102881927.1 | Q247: 110918597.5 | R247: 119369333.7 | S247: 128251020.5 | T247: 137581254.7 | U247: 147378376.7 | V247: 157661501.9 | W247: 168450554.6 | X247: 179766303 | Y247: 191630395.5 | Z247: 204065399 | AA247: 217094839 | AB247: 230743240.4 | AC247: 245036171.8 | AD247: 260000290 | AE247: 275663388.1 | AF247: 292054444 | AG247: 309203672.8 | AH247: 327142580 | AI247: 346227793.7 | AJ247: 364335453.4
A249: Capex Project C/Balance | B249: =+$B$206 -> GW Water (Mgmt) | C249: 0 | D249: 3182547.01 | E249: 3182547.01 | F249: 3182547.01 | G249: 3182547.01 | H249: 3182547.01 | I249: 3182547.01 | J249: 3182547.01 | K249: 3182547.01 | L249: 3182547.01 | M249: 3182547.01 | N249: 3182547.01 | O249: 3182547.01 | P249: 3182547.01 | Q249: 3182547.01 | R249: 3182547.01 | S249: 3182547.01 | T249: 3182547.01 | U249: 3182547.01 | V249: 3182547.01 | W249: 3182547.01 | X249: 3182547.01 | Y249: 3182547.01 | Z249: 3182547.01 | AA249: 3182547.01 | AB249: 3182547.01 | AC249: 3182547.01 | AD249: 3182547.01 | AE249: 3182547.01 | AF249: 3182547.01 | AG249: 3182547.01 | AH249: 3182547.01 | AI249: 3182547.01 | AJ249: 3182547.01
A250: Closing Bal Total Assets | B250: =+$B$206 -> GW Water (Mgmt) | C250: 522551075.8 | D250: 695733443.6 | E250: 710465544.6 | F250: 733480688.4 | G250: 782023464.1 | H250: 906020430.7 | I250: 948320430.2 | J250: 953803230.5 | K250: 957573986 | L250: 962461719.6 | M250: 1063965994 | N250: 1072699384 | O250: 1081258065 | P250: 1093273133 | Q250: 1102368892 | R250: 1225784150 | S250: 1251070301 | T250: 1294160442 | U250: 1337037884 | V250: 1402020642 | W250: 1587066108 | X250: 1667629472 | Y250: 1750027827 | Z250: 1771763475 | AA250: 1794265358 | AB250: 1965255028 | AC250: 2056735122 | AD250: 2146895681 | AE250: 2225885945 | AF250: 2306803944 | AG250: 2546144008 | AH250: 2631377074 | AI250: 2718911433 | AJ250: 2809037235
A251: Dep C/Bal Total Assets | B251: =+$B$206 -> GW Water (Mgmt) | C251: -53957487.44 | D251: -70071942.35 | E251: -86023140.86 | F251: -102222933.7 | G251: -118892539.3 | H251: -136530864.1 | I251: -153253009.8 | J251: -170687417 | K251: -188092572.8 | L251: -205369764.4 | M251: -222540033.2 | N251: -239686890.2 | O251: -256729999.2 | P251: -273845617.2 | Q251: -291066498.2 | R251: -308325504.3 | S251: -325766875.7 | T251: -343598021.2 | U251: -362162918.2 | V251: -381401336.6 | W251: -401759379.5 | X251: -423120840.7 | Y251: -445649872.1 | Z251: -469702680.2 | AA251: -494123518.8 | AB251: -518723359.8 | AC251: -543630146.5 | AD251: -569231128.1 | AE251: -595026661.3 | AF251: -621436066.1 | AG251: -649378854.6 | AH251: -677542612.8 | AI251: -705038951.2 | AJ251: -732484354.8
C252: =SUM(C249:C251) -> 468593588.4 | D252: 628844048.3 | E252: 627624950.8 | F252: 634440301.7 | G252: 666313471.8 | H252: 772672113.6 | I252: 798249967.5 | J252: 786298360.5 | K252: 772663960.3 | L252: 760274502.3 | M252: 844608508.3 | N252: 836195040.6 | O252: 827710612.4 | P252: 822610062.6 | Q252: 814484940.5 | R252: 920641193 | S252: 928485972.7 | T252: 953744968.2 | U252: 978057512.5 | V252: 1023801852 | W252: 1188489276 | X252: 1247691178 | Y252: 1307560502 | Z252: 1305243342 | AA252: 1303324387 | AB252: 1449714216 | AC252: 1516287523 | AD252: 1580847100 | AE252: 1634041831 | AF252: 1688550425 | AG252: 1899947701 | AH252: 1957017008 | AI252: 2017055028 | AJ252: 2079735427
A254: Closing Bal Internal Debt | B254: =+$B$206 -> GW Water (Mgmt) | C254: 82697198.18 | D254: 98636602.14 | E254: 108929586.6 | F254: 126923679.6 | G254: 170168593.3 | H254: 205550120.6 | I254: 241632109.7 | J254: 240347017.1 | K254: 237074172.4 | L254: 234720053.8 | M254: 235362599.3 | N254: 236419414.3 | O254: 236995018.4 | P254: 240538679.5 | Q254: 240727798.3 | R254: 249599910.7 | S254: 264967136 | T254: 297241118.2 | U254: 328140964.8 | V254: 379813479.8 | W254: 431445825.8 | X254: 495114942.9 | Y254: 558609948 | Z254: 559894676 | AA254: 561076229.8 | AB254: 576506806.3 | AC254: 644089157.4 | AD254: 708294954.3 | AE254: 759105079.2 | AF254: 809651138.5 | AG254: 867394249 | AH254: 919173255.8 | AI254: 971226011.5 | AJ254: 1024207395
A255: Finance Lease liabiity | B255: =+$B$206 -> GW Water (Mgmt) | C255: 0 | D255: 0 | E255: 0 | F255: 0 | G255: 0 | H255: 0 | I255: 0 | J255: 0 | K255: 0 | L255: 0 | M255: 0 | N255: 0 | O255: 0 | P255: 0 | Q255: 0 | R255: 0 | S255: 0 | T255: 0 | U255: 0 | V255: 0 | W255: 0 | X255: 0 | Y255: 0 | Z255: 0 | AA255: 0 | AB255: 0 | AC255: 0 | AD255: 0 | AE255: 0 | AF255: 0 | AG255: 0 | AH255: 0 | AI255: 0 | AJ255: 0
A256: Closing Bal External Debt | B256: =+$B$206 -> GW Water (Mgmt) | C256: 0 | D256: 0 | E256: 0 | F256: 0 | G256: 0 | H256: 0 | I256: 0 | J256: 0 | K256: 0 | L256: 0 | M256: 0 | N256: 0 | O256: 0 | P256: 0 | Q256: 0 | R256: 0 | S256: 0 | T256: 0 | U256: 0 | V256: 0 | W256: 0 | X256: 0 | Y256: 0 | Z256: 0 | AA256: 0 | AB256: 0 | AC256: 0 | AD256: 0 | AE256: 0 | AF256: 0 | AG256: 0 | AH256: 0 | AI256: 0 | AJ256: 0
... 55 more rows

Sheet Debt
A2: Overview - Debt
B3: =+Inflated_data!C2 -> 2017/18 | C3: =+Inflated_data!D2 -> 2018/19 | D3: =+Inflated_data!E2 -> 2019/20 | E3: =+Inflated_data!F2 -> 2020/21 | F3: =+Inflated_data!G2 -> 2021/22 | G3: =+Inflated_data!H2 -> 2022/23 | H3: =+Inflated_data!I2 -> 2023/24 | I3: =+Inflated_data!J2 -> 2024/25 | J3: =+Inflated_data!K2 -> 2025/26 | K3: =+Inflated_data!L2 -> 2026/27 | L3: =+Inflated_data!M2 -> 2027/28 | AA3: Check
B4: $000s | C4: $000s | D4: $000s | E4: $000s | F4: $000s | G4: $000s | H4: $000s | I4: $000s | J4: $000s | K4: $000s | L4: $000s | AA4: Check
AA5: Check
A6: Public transport | B6: =+Inflated_data!C88 -> 247206645.9 | C6: =+Inflated_data!D88+Inflated_data!D87 -> 279695617.9 | D6: =+Inflated_data!E88+Inflated_data!E87 -> 294283555.7 | E6: =+Inflated_data!F88+Inflated_data!F87 -> 305724679.3 | F6: =+Inflated_data!G88+Inflated_data!G87 -> 312282794.3 | G6: =+Inflated_data!H88+Inflated_data!H87 -> 328953944.5 | H6: =+Inflated_data!I88+Inflated_data!I87 -> 342407339 | I6: =+Inflated_data!J88+Inflated_data!J87 -> 337710913.4 | J6: =+Inflated_data!K88+Inflated_data!K87 -> 334576668.9 | K6: =+Inflated_data!L88+Inflated_data!L87 -> 320713006.5 | L6: =+Inflated_data!M88+Inflated_data!M87 -> 305262804.9 | AA6: Check
A7: Flood Protection and Control Works | B7: =+Inflated_data!C155 -> 85415017.84 | C7: =+Inflated_data!D155 -> 107177084.8 | D7: =+Inflated_data!E155 -> 122867158.9 | E7: =+Inflated_data!F155 -> 136092111.3 | F7: =+Inflated_data!G155 -> 147691539.9 | G7: =+Inflated_data!H155 -> 161474240.1 | H7: =+Inflated_data!I155 -> 175007949.9 | I7: =+Inflated_data!J155 -> 188257476.4 | J7: =+Inflated_data!K155 -> 200519471.1 | K7: =+Inflated_data!L155 -> 211606726.9 | L7: =+Inflated_data!M155 -> 214467858.7 | AA7: Check
A8: Water supply | B8: =+Inflated_data!C223 -> 82697198.18 | C8: =+Inflated_data!D223 -> 98636602.14 | D8: =+Inflated_data!E223 -> 108929586.6 | E8: =+Inflated_data!F223 -> 126923679.6 | F8: =+Inflated_data!G223 -> 170168593.3 | G8: =+Inflated_data!H223 -> 205550120.6 | H8: =+Inflated_data!I223 -> 241632109.7 | I8: =+Inflated_data!J223 -> 240347017.1 | J8: =+Inflated_data!K223 -> 237074172.4 | K8: =+Inflated_data!L223 -> 234720053.8 | L8: =+Inflated_data!M223 -> 235362599.3 | AA8: Check
A9: Other | B9: =+Inflated_data!C19-B6-B7-B8 -> -19150477.05 | C9: =+Inflated_data!D19+Inflated_data!D20-C6-C7-C8 -> -11792091.64 | D9: =+Inflated_data!E19+Inflated_data!E20-D6-D7-D8 -> -2027456.33 | E9: =+Inflated_data!F19+Inflated_data!F20-E6-E7-E8 -> -1046088.966 | F9: =+Inflated_data!G19+Inflated_data!G20-F6-F7-F8 -> 2623394.14 | G9: =+Inflated_data!H19+Inflated_data!H20-G6-G7-G8 -> 883792.6308 | H9: =+Inflated_data!I19+Inflated_data!I20-H6-H7-H8 -> -713414.3772 | I9: =+Inflated_data!J19+Inflated_data!J20-I6-I7-I8 -> -1548782.082 | J9: =+Inflated_data!K19+Inflated_data!K20-J6-J7-J8 -> -3860543.939 | K9: =+Inflated_data!L19+Inflated_data!L20-K6-K7-K8 -> -5439599.366 | L9: =+Inflated_data!M19+Inflated_data!M20-L6-L7-L8 -> -6801129.641 | AA9: Check
AA10: Check
A11: Closing External Debt | B11: =SUM(B5:B9) -> 396168384.9 | C11: =SUM(C5:C9) -> 473717213.2 | D11: =SUM(D5:D9) -> 524052844.9 | E11: 567694381.2 | F11: 632766321.7 | G11: 696862097.8 | H11: 758333984.3 | I11: 764766624.8 | J11: 768309768.5 | K11: 761600187.8 | L11: 748292133.3 | AA11: Check
AA12: Check
A13: Liquid investments | B13: =+Inflated_data!C22 -> 88849745.05 | C13: =+Inflated_data!D22 -> 93821758.34 | D13: =+Inflated_data!E22 -> 98352337.26 | E13: =+Inflated_data!F22 -> 103431873.2 | F13: =+Inflated_data!G22 -> 109038304 | G13: =+Inflated_data!H22 -> 115118012.2 | H13: =+Inflated_data!I22 -> 121651975.2 | I13: =+Inflated_data!J22 -> 128609359.1 | J13: =+Inflated_data!K22 -> 135941807.7 | K13: =+Inflated_data!L22 -> 143628485.3 | L13: =+Inflated_data!M22 -> 151910065.8 | AA13: Check
AA14: Check
A15: External debt (less Investments) | B15: =+B11-B13 -> 307318639.8 | C15: =+C11-C13 -> 379895454.9 | D15: =+D11-D13 -> 425700507.7 | E15: 464262508 | F15: 523728017.7 | G15: 581744085.6 | H15: 636682009.1 | I15: 636157265.7 | J15: 632367960.8 | K15: 617971702.5 | L15: 596382067.5 | AA15: Check
A16: Combined Capex | B16: =-Inflated_data!C16+Inflated_data!C17+Inflated_data!C13 -> 90478078.17 | C16: =-Inflated_data!D16+Inflated_data!D17+Inflated_data!D13 -> 129937773.5 | D16: =-Inflated_data!E16+Inflated_data!E17+Inflated_data!E13 -> 104640222 | E16: =-Inflated_data!F16+Inflated_data!F17+Inflated_data!F13 -> 108072389.3 | F16: =-Inflated_data!G16+Inflated_data!G17+Inflated_data!G13 -> 115519700 | G16: =-Inflated_data!H16+Inflated_data!H17+Inflated_data!H13 -> 120526053.7 | H16: =-Inflated_data!I16+Inflated_data!I17+Inflated_data!I13 -> 118526738.1 | I16: =-Inflated_data!J16+Inflated_data!J17+Inflated_data!J13 -> 67213851.41 | J16: =-Inflated_data!K16+Inflated_data!K17+Inflated_data!K13 -> 69409811.55 | K16: =-Inflated_data!L16+Inflated_data!L17+Inflated_data!L13 -> 66890451.77 | L16: =-Inflated_data!M16+Inflated_data!M17+Inflated_data!M13 -> 61567885.28 | AA16: Check
A17: Net Debt peak 12-22 LTP | B17: 275000000 | C17: 275000000 | D17: 275000000 | E17: 275000000 | F17: 275000000 | G17: 275000000 | H17: 275000000 | I17: 275000000 | J17: 275000000 | K17: 275000000 | L17: 275000000 | AA17: Check
A18: Overview - Rates | AA18: Check
B19: =+B3 -> 2017/18 | C19: =+C3 -> 2018/19 | D19: 2019/20 | E19: 2020/21 | F19: 2021/22 | G19: 2022/23 | H19: 2023/24 | I19: 2024/25 | J19: 2025/26 | K19: 2026/27 | L19: 2027/28 | AA19: Check
B20: $000s | C20: $000s | D20: $000s | E20: $000s | F20: $000s | G20: $000s | H20: $000s | I20: $000s | J20: $000s | K20: $000s | L20: $000s | AA20: Check
AA21: Check
A23: Finance Lease Adj (MK) | B23: 30888900 | C23: 29424623.16 | D23: 27893291.05 | E23: 26291441.93 | F23: 24615417.1 | G23: 22861349.02 | H23: 21025148.53 | I23: 19102491.32 | J23: 17088803.61 | K23: 14979246.78 | L23: 12768701.14
A24: Inflated Rates | B24: =Inflated_data!C3-Inflated_data!C4-Inflated_data!C5 -> 120779557.4 | C24: =Inflated_data!D3-Inflated_data!D4-Inflated_data!D5-C1 -> 128874350.3 | D24: =Inflated_data!E3-Inflated_data!E4-Inflated_data!E5 -> 136499325.5 | E24: =Inflated_data!F3-Inflated_data!F4-Inflated_data!F5 -> 145142303.3 | F24: =Inflated_data!G3-Inflated_data!G4-Inflated_data!G5 -> 156654063.2 | G24: =Inflated_data!H3-Inflated_data!H4-Inflated_data!H5 -> 167383060.3 | H24: =Inflated_data!I3-Inflated_data!I4-Inflated_data!I5 -> 173268152.8 | I24: =Inflated_data!J3-Inflated_data!J4-Inflated_data!J5 -> 179298624.4 | J24: =Inflated_data!K3-Inflated_data!K4-Inflated_data!K5 -> 184263199.3 | K24: =Inflated_data!L3-Inflated_data!L4-Inflated_data!L5 -> 192613492.6 | L24: =Inflated_data!M3-Inflated_data!M4-Inflated_data!M5 -> 196628389.7
A25: * Inflation reflects the estimated additional rates required due to the impacts of inflation on expenditure
A26: This table excludes the Warm Wellignton Rate which is only charged to ratepayers who participate in the scheme

Sheet Borrow Limits
A2: Overview - Ratios
D3: =+Debt!B3 -> 2017/18 | E3: =+Debt!C3 -> 2018/19 | F3: =+Debt!D3 -> 2019/20 | G3: =+Debt!E3 -> 2020/21 | H3: =+Debt!F3 -> 2021/22 | I3: =+Debt!G3 -> 2022/23 | J3: =+Debt!H3 -> 2023/24 | K3: =+Debt!I3 -> 2024/25 | L3: =+Debt!J3 -> 2025/26 | M3: =+Debt!K3 -> 2026/27 | N3: =+Debt!L3 -> 2027/28
D4: $000s | E4: $000s | F4: $000s | G4: $000s | H4: $000s | I4: $000s | J4: $000s | K4: $000s | L4: $000s | M4: $000s | N4: $000s
A6: Rates and Levies | D6: =Inflated_data!C3 -> 154910329.9 | E6: =Inflated_data!D3 -> 165180306.4 | F6: =Inflated_data!E3 -> 174285448 | G6: =Inflated_data!F3 -> 184835883.2 | H6: =Inflated_data!G3 -> 198638978.6 | I6: =Inflated_data!H3 -> 212269853.6 | J6: =Inflated_data!I3 -> 221310675.8 | K6: =Inflated_data!J3 -> 230762194.3 | L6: =Inflated_data!K3 -> 236561117.1 | M6: =Inflated_data!L3 -> 245582118.8 | N6: =Inflated_data!M3 -> 249845751.4
A7: Total Revenue | D7: =Inflated_data!C9 -> 343965012.9 | E7: =Inflated_data!D9 -> 407297637.4 | F7: =Inflated_data!E9 -> 420849297.4 | G7: =Inflated_data!F9 -> 430526895.9 | H7: =Inflated_data!G9 -> 438111693.9 | I7: =Inflated_data!H9 -> 451341923 | J7: =Inflated_data!I9 -> 464578736.8 | K7: =Inflated_data!J9 -> 481260923.6 | L7: =Inflated_data!K9 -> 494505293.9 | M7: =Inflated_data!L9 -> 517875865.3 | N7: =Inflated_data!M9 -> 528463394.6
A9: External Interest Revenue | D9: =-Inflated_data!C6 -> -2943166.84 | E9: =-Inflated_data!D6 -> -2720810.464 | F9: =-Inflated_data!E6 -> -2883687.844 | G9: =-Inflated_data!F6 -> -3292574.668 | H9: =-Inflated_data!G6 -> -3952038.966 | I9: =-Inflated_data!H6 -> -4435877.151 | J9: =-Inflated_data!I6 -> -4869291.874 | K9: =-Inflated_data!J6 -> -5222229.536 | L9: =-Inflated_data!K6 -> -5481685.812 | M9: =-Inflated_data!L6 -> -5752168.979 | N9: =-Inflated_data!M6 -> -6323856.186
A10: Finance costs | D10: =+Inflated_data!C11 -> 19686329.83 | E10: =+Inflated_data!D11 -> 22528343.74 | F10: =+Inflated_data!E11 -> 23712469.21 | G10: =+Inflated_data!F11 -> 23432043.08 | H10: =+Inflated_data!G11 -> 27023088.33 | I10: =+Inflated_data!H11 -> 30424428.52 | J10: =+Inflated_data!I11 -> 34017336.7 | K10: =+Inflated_data!J11 -> 35823044.17 | L10: =+Inflated_data!K11 -> 35854129.57 | M10: =+Inflated_data!L11 -> 35508958.62 | N10: =+Inflated_data!M11 -> 36233271.15
A11: Net Interest | D11: =SUM(D9:D10) -> 16743162.99 | E11: =SUM(E9:E10) -> 19807533.27 | F11: =SUM(F9:F10) -> 20828781.36 | G11: 20139468.41 | H11: 23071049.36 | I11: 25988551.37 | J11: 29148044.83 | K11: 30600814.63 | L11: 30372443.76 | M11: 29756789.64 | N11: 29909414.96
A12: Finance Lease Adj (MK) | E12: 1412999.416 | F12: 1345944.152 | G12: 1275427.131 | H12: 1201251.432 | I12: 1123208.176 | J12: 1041075.76 | K12: 954619.0537 | L12: 863588.5459 | M12: 767719.426 | N12: 666730.6135
A14: Cash investments | D14: =+Inflated_data!C22 -> 88849745.05 | E14: =+Inflated_data!D22 -> 93821758.34 | F14: =+Inflated_data!E22+30000000 -> 128352337.3 | G14: =+Inflated_data!F22+30000000 -> 133431873.2 | H14: =+Inflated_data!G22+30000000 -> 139038304 | I14: =+Inflated_data!H22+30000000 -> 145118012.2 | J14: =+Inflated_data!I22+30000000 -> 151651975.2 | K14: =+Inflated_data!J22+30000000 -> 158609359.1 | L14: =+Inflated_data!K22+30000000 -> 165941807.7 | M14: =+Inflated_data!L22+30000000 -> 173628485.3 | N14: =+Inflated_data!M22+30000000 -> 181910065.8
A15: Closing Debt | D15: =-Inflated_data!C19-Debt!B23 -> -427057284.9 | E15: =-Inflated_data!D19-Debt!C23 -> -473717213.2 | F15: =-Inflated_data!E19-Debt!D23 -> -524052844.9 | G15: =-Inflated_data!F19-Debt!E23 -> -567694381.2 | H15: =-Inflated_data!G19-Debt!F23 -> -632766321.7 | I15: =-Inflated_data!H19-Debt!G23 -> -696862097.8 | J15: =-Inflated_data!I19-Debt!H23 -> -758333984.3 | K15: =-Inflated_data!J19-Debt!I23 -> -764766624.8 | L15: =-Inflated_data!K19-Debt!J23 -> -768309768.5 | M15: =-Inflated_data!L19-Debt!K23 -> -761600187.8 | N15: =-Inflated_data!M19-Debt!L23 -> -748292133.3
A16: Net Debt | D16: =+D14+D15 -> -338207539.8 | E16: =+E14+E15 -> -379895454.9 | F16: -395700507.7 | G16: -434262508 | H16: -493728017.7 | I16: -551744085.6 | J16: -606682009.1 | K16: -606157265.7 | L16: -602367960.8 | M16: -587971702.5 | N16: -566382067.5
A18: Facilites ($35m above ext debt) | D18: -50000000 | E18: =+D18 -> -50000000 | F18: -50000000 | G18: -50000000 | H18: -50000000 | I18: -50000000 | J18: -50000000 | K18: -50000000 | L18: -50000000 | M18: -50000000 | N18: -50000000
A19: Total External debt + facilities | D19: =+D15+D18 -> -477057284.9 | E19: -523717213.2 | F19: -574052844.9 | G19: -617694381.2 | H19: -682766321.7 | I19: -746862097.8 | J19: -808333984.3 | K19: -814766624.8 | L19: -818309768.5 | M19: -811600187.8 | N19: -798292133.3
A21: Ratio | D21: =+D3 -> 2017/18 | E21: =+E3 -> 2018/19 | F21: 2019/20 | G21: 2020/21 | H21: 2021/22 | I21: 2022/23 | J21: 2023/24 | K21: 2024/25 | L21: 2025/26 | M21: 2026/27 | N21: 2027/28
A22: Net interest / Total revenue | C22: <20% | D22: =D11/D7 -> 0.04867693621 | E22: =E11/E7 -> 0.04863159384 | F22: 0.04949225648 | G22: 0.04677865334 | H22: 0.05266019987 | I22: 0.057580628 | J22: 0.06274080692 | K22: 0.06358466506 | L22: 0.06141985562 | M22: 0.05745930952 | N22: 0.05659694743
A23: Net interest Limit | D23: 0.2 | E23: 0.2 | F23: 0.2 | G23: 0.2 | H23: 0.2 | I23: 0.2 | J23: 0.2 | K23: 0.2 | L23: 0.2 | M23: 0.2 | N23: 0.2
A24: Net debt / Total Revenue | C24: <250% | D24: =-D16/D7 -> 0.9832614571 | E24: =-E16/E7 -> 0.9327219704 | F24: 0.9402427666 | G24: 1.008676838 | H24: 1.126945536 | I24: 1.222452552 | J24: 1.305875541 | K24: 1.259518976 | L24: 1.21812237 | M24: 1.135352585 | N24: 1.071752695
A25: Net debt / Total Revenue limit | D25: 2.5 | E25: 2.5 | F25: 2.5 | G25: 2.5 | H25: 2.5 | I25: 2.5 | J25: 2.5 | K25: 2.5 | L25: 2.5 | M25: 2.5 | N25: 2.5
A26: Net interest / Annual rates and levies | C26: <30% | D26: =D11/D6 -> 0.1080829342 | E26: =E11/E6 -> 0.1199146176 | F26: 0.1195095839 | G26: 0.1089586506 | H26: 0.1161456303 | I26: 0.1224316639 | J26: 0.1317064562 | K26: 0.1326075735 | L26: 0.12839153 | M26: 0.1211683887 | N26: 0.1197115212
A27: Liquidity | C27: >110% | D27: =+(D19-D14)/D15 -> 1.325131428 | E27: =+(E19-E14)/E15 -> 1.303602559 | F27: 1.340332734 | G27: 1.323117296 | H27: 1.298748997 | I27: 1.279995157 | J27: 1.265914464 | K27: 1.272775187 | L27: 1.281060864 | M27: 1.293629766 | N27: 1.309919155
A28: Liquidity Limit | D28: 1.1 | E28: 1.1 | F28: 1.1 | G28: 1.1 | H28: 1.1 | I28: 1.1 | J28: 1.1 | K28: 1.1 | L28: 1.1 | M28: 1.1 | N28: 1.1
B31: Net interest / Annual rates and levies (debt secured under debenture)

Sheet Fin (capex inf 30yrs)
A2: Strategy - Capex
B3: =+Inflated_data!C2 -> 2017/18 | C3: =+Inflated_data!D2 -> 2018/19 | D3: =+Inflated_data!E2 -> 2019/20 | E3: =+Inflated_data!F2 -> 2020/21 | F3: =+Inflated_data!G2 -> 2021/22 | G3: =+Inflated_data!H2 -> 2022/23 | H3: =+Inflated_data!I2 -> 2023/24 | I3: =+Inflated_data!J2 -> 2024/25 | J3: =+Inflated_data!K2 -> 2025/26 | K3: =+Inflated_data!L2 -> 2026/27 | L3: =+Inflated_data!M2 -> 2027/28 | M3: =+Inflated_data!N2 -> 2028/29 | N3: =+Inflated_data!O2 -> 2029/30 | O3: =+Inflated_data!P2 -> 2030/31 | P3: =+Inflated_data!Q2 -> 2031/32 | Q3: =+Inflated_data!R2 -> 2032/33 | R3: =+Inflated_data!S2 -> 2033/34 | S3: =+Inflated_data!T2 -> 2034/35 | T3: =+Inflated_data!U2 -> 2035/36 | U3: =+Inflated_data!V2 -> 2036/37 | V3: =+Inflated_data!W2 -> 2037/38 | W3: =+Inflated_data!X2 -> 2038/39 | X3: =+Inflated_data!Y2 -> 2039/40 | Y3: =+Inflated_data!Z2 -> 2040/41 | Z3: =+Inflated_data!AA2 -> 2041/42 | AA3: =+Inflated_data!AB2 -> 2042/43 | AB3: =+Inflated_data!AC2 -> 2043/44 | AC3: =+Inflated_data!AD2 -> 2044/45 | AD3: =+Inflated_data!AE2 -> 2045/46 | AE3: =+Inflated_data!AF2 -> 2046/47 | AF3: =+Inflated_data!AG2 -> 2047/48 | AG3: =+Inflated_data!AH2 -> 2048/49 | AH3: =+Inflated_data!AI2 -> 2049/50 | AI3: =+Inflated_data!AJ2 -> 2050/51
A4: Public transport - Capex & improvements | B4: =+Inflated_data!C80-Inflated_data!C83+Inflated_data!C17 -> 45701883.48 | C4: =+Inflated_data!D80-Inflated_data!D83+Inflated_data!D17 -> 79156595.53 | D4: =+Inflated_data!E80-Inflated_data!E83+Inflated_data!E17 -> 56678015.05 | E4: =+Inflated_data!F80-Inflated_data!F83+Inflated_data!F17 -> 59006562.99 | F4: =+Inflated_data!G80-Inflated_data!G83+Inflated_data!G17 -> 40589928.03 | G4: =+Inflated_data!H80-Inflated_data!H83+Inflated_data!H17 -> 51495505.16 | H4: =+Inflated_data!I80-Inflated_data!I83+Inflated_data!I17 -> 47974064.75 | I4: =+Inflated_data!J80-Inflated_data!J83+Inflated_data!J17 -> 32127556.22 | J4: =+Inflated_data!K80-Inflated_data!K83+Inflated_data!K17 -> 38897953.06 | K4: =+Inflated_data!L80-Inflated_data!L83+Inflated_data!L17 -> 35624285.12 | L4: =+Inflated_data!M80-Inflated_data!M83+Inflated_data!M17 -> 33069825.63 | M4: =+Inflated_data!N80-Inflated_data!N83+Inflated_data!N17 -> 46163116.15 | N4: =+Inflated_data!O80-Inflated_data!O83+Inflated_data!O17 -> 23069254.69 | O4: =+Inflated_data!P80-Inflated_data!P83+Inflated_data!P17 -> 39818515.32 | P4: =+Inflated_data!Q80-Inflated_data!Q83+Inflated_data!Q17 -> 15729446.61 | Q4: =+Inflated_data!R80-Inflated_data!R83+Inflated_data!R17 -> 20826409.69 | R4: =+Inflated_data!S80-Inflated_data!S83+Inflated_data!S17 -> 21427653.83 | S4: =+Inflated_data!T80-Inflated_data!T83+Inflated_data!T17 -> 20641524.07 | T4: =+Inflated_data!U80-Inflated_data!U83+Inflated_data!U17 -> 31388173.22 | U4: =+Inflated_data!V80-Inflated_data!V83+Inflated_data!V17 -> 35768804.03 | V4: =+Inflated_data!W80-Inflated_data!W83+Inflated_data!W17 -> 27525535.07 | W4: =+Inflated_data!X80-Inflated_data!X83+Inflated_data!X17 -> 68482395.74 | X4: =+Inflated_data!Y80-Inflated_data!Y83+Inflated_data!Y17 -> 34142142.85 | Y4: =+Inflated_data!Z80-Inflated_data!Z83+Inflated_data!Z17 -> 28214260.28 | Z4: =+Inflated_data!AA80-Inflated_data!AA83+Inflated_data!AA17 -> 262993513.8 | AA4: =+Inflated_data!AB80-Inflated_data!AB83+Inflated_data!AB17 -> 266409064 | AB4: =+Inflated_data!AC80-Inflated_data!AC83+Inflated_data!AC17 -> 273554326.3 | AC4: =+Inflated_data!AD80-Inflated_data!AD83+Inflated_data!AD17 -> 22265681.39 | AD4: =+Inflated_data!AE80-Inflated_data!AE83+Inflated_data!AE17 -> 32895149.49 | AE4: =+Inflated_data!AF80-Inflated_data!AF83+Inflated_data!AF17 -> 32143236.66 | AF4: =+Inflated_data!AG80-Inflated_data!AG83+Inflated_data!AG17 -> 37990360.05 | AG4: =+Inflated_data!AH80-Inflated_data!AH83+Inflated_data!AH17 -> 47533775.82 | AH4: =+Inflated_data!AI80-Inflated_data!AI83+Inflated_data!AI17 -> 75171158.5 | AI4: =+Inflated_data!AJ80-Inflated_data!AJ83+Inflated_data!AJ17 -> 17483325.96
A5: Flood Protection and Control Works | B5: =-Inflated_data!C151 -> 21302880.68 | C5: =-Inflated_data!D151 -> 17846007.71 | D5: =-Inflated_data!E151 -> 20929774.23 | E5: =-Inflated_data!F151 -> 19149594.29 | F5: =-Inflated_data!G151 -> 18030148.86 | G5: =-Inflated_data!H151 -> 20907744.34 | H5: =-Inflated_data!I151 -> 21507453.67 | I5: =-Inflated_data!J151 -> 21818497.39 | J5: =-Inflated_data!K151 -> 20295765.89 | K5: =-Inflated_data!L151 -> 19257516.01 | L5: =-Inflated_data!M151 -> 12100890.14 | M5: =-Inflated_data!N151 -> 14007343.94 | N5: =-Inflated_data!O151 -> 8393165.147 | O5: =-Inflated_data!P151 -> 4371143.306 | P5: =-Inflated_data!Q151 -> 11139557.79 | Q5: =-Inflated_data!R151 -> 19432377.3 | R5: =-Inflated_data!S151 -> 20887973.08 | S5: =-Inflated_data!T151 -> 16402637.08 | T5: =-Inflated_data!U151 -> 11597931.07 | U5: =-Inflated_data!V151 -> 8730505.297 | V5: =-Inflated_data!W151 -> 13682257.37 | W5: =-Inflated_data!X151 -> 12873241.64 | X5: =-Inflated_data!Y151 -> 13021121.75 | Y5: =-Inflated_data!Z151 -> 19473926.51 | Z5: =-Inflated_data!AA151 -> 18689063.33 | AA5: =-Inflated_data!AB151 -> 20774055.72 | AB5: =-Inflated_data!AC151 -> 20514653.66 | AC5: =-Inflated_data!AD151 -> 21106956.4 | AD5: =-Inflated_data!AE151 -> 21647100.12 | AE5: =-Inflated_data!AF151 -> 21920948.43 | AF5: =-Inflated_data!AG151 -> 22785823.36 | AG5: =-Inflated_data!AH151 -> 23750094.44 | AH5: =-Inflated_data!AI151 -> 23822334.04 | AI5: =-Inflated_data!AJ151 -> 24531201.32
A6: Water supply | B6: =-Inflated_data!C219 -> 12917708 | C6: =-Inflated_data!D219 -> 14645000 | D6: =-Inflated_data!E219 -> 14732101.02 | E6: =-Inflated_data!F219 -> 23015143.8 | F6: =-Inflated_data!G219 -> 48542775.63 | G6: =-Inflated_data!H219 -> 40988634.52 | H6: =-Inflated_data!I219 -> 42299999.52 | I6: =-Inflated_data!J219 -> 5482800.291 | J6: =-Inflated_data!K219 -> 3770755.508 | K6: =-Inflated_data!L219 -> 4887733.585 | L6: =-Inflated_data!M219 -> 8077665.72 | M6: =-Inflated_data!N219 -> 8733389.268 | N6: =-Inflated_data!O219 -> 8558680.932 | O6: =-Inflated_data!P219 -> 12015068.22 | P6: =-Inflated_data!Q219 -> 9095758.82 | Q6: =-Inflated_data!R219 -> 18262786.97 | R6: =-Inflated_data!S219 -> 25286150.99 | S6: =-Inflated_data!T219 -> 43090141.06 | T6: =-Inflated_data!U219 -> 42877441.39 | U6: =-Inflated_data!V219 -> 64982758.02 | V6: =-Inflated_data!W219 -> 66695433.21 | W6: =-Inflated_data!X219 -> 80563363.83 | X6: =-Inflated_data!Y219 -> 82398354.56 | Y6: =-Inflated_data!Z219 -> 21735648.66 | Z6: =-Inflated_data!AA219 -> 22501883.2 | AA6: =-Inflated_data!AB219 -> 37785664.9 | AB6: =-Inflated_data!AC219 -> 91480093.84 | AC6: =-Inflated_data!AD219 -> 90160559.04 | AD6: =-Inflated_data!AE219 -> 78990263.82 | AE6: =-Inflated_data!AF219 -> 80917998.77 | AF6: =-Inflated_data!AG219 -> 89417783.1 | AG6: =-Inflated_data!AH219 -> 85233065.78 | AH6: =-Inflated_data!AI219 -> 87534358.56 | AI6: =-Inflated_data!AJ219 -> 90125802.48
A7: Other capex | B7: =+B9-B6-B5-B4 -> 10555606 | C7: =+C9-C6-C5-C4 -> 18290170.27 | D7: 12300331.69 | E7: 6901088.227 | F7: 8356847.516 | G7: 7134169.667 | H7: 6745220.136 | I7: 7784997.504 | J7: 6445337.09 | K7: 7120917.05 | L7: =+L9-L6-L5-L4 -> 8319503.794 | M7: 8497123.902 | N7: 7253550.546 | O7: 9024881.163 | P7: 7100473.771 | Q7: 7565848.862 | R7: 8326150.761 | S7: 8663013.014 | T7: 8561066.295 | U7: 7832626.467 | V7: 11466358.97 | W7: 10350583.51 | X7: 10847146.81 | Y7: 7877242.24 | Z7: 9196801.44 | AA7: 10687873.72 | AB7: 9190127.084 | AC7: 10415855.88 | AD7: 10894482.83 | AE7: 12123357.93 | AF7: 13207723.5 | AG7: =+AG9-AG6-AG5-AG4 -> 15482491.58 | AH7: 7356170.548 | AI7: 5472389.812
A9: Total Capex and improvements | B9: =+Inflated_data!C13-Inflated_data!C16+Inflated_data!C17 -> 90478078.17 | C9: =+Inflated_data!D13-Inflated_data!D16+Inflated_data!D17 -> 129937773.5 | D9: =+Inflated_data!E13-Inflated_data!E16+Inflated_data!E17 -> 104640222 | E9: =+Inflated_data!F13-Inflated_data!F16+Inflated_data!F17 -> 108072389.3 | F9: =+Inflated_data!G13-Inflated_data!G16+Inflated_data!G17 -> 115519700 | G9: =+Inflated_data!H13-Inflated_data!H16+Inflated_data!H17 -> 120526053.7 | H9: =+Inflated_data!I13-Inflated_data!I16+Inflated_data!I17 -> 118526738.1 | I9: =+Inflated_data!J13-Inflated_data!J16+Inflated_data!J17 -> 67213851.41 | J9: =+Inflated_data!K13-Inflated_data!K16+Inflated_data!K17 -> 69409811.55 | K9: =+Inflated_data!L13-Inflated_data!L16+Inflated_data!L17 -> 66890451.77 | L9: =+Inflated_data!M13-Inflated_data!M16+Inflated_data!M17 -> 61567885.28 | M9: =+Inflated_data!N13-Inflated_data!N16+Inflated_data!N17 -> 77400973.25 | N9: =+Inflated_data!O13-Inflated_data!O16+Inflated_data!O17 -> 47274651.32 | O9: =+Inflated_data!P13-Inflated_data!P16+Inflated_data!P17 -> 65229608.01 | P9: =+Inflated_data!Q13-Inflated_data!Q16+Inflated_data!Q17 -> 43065236.99 | Q9: =+Inflated_data!R13-Inflated_data!R16+Inflated_data!R17 -> 66087422.83 | R9: =+Inflated_data!S13-Inflated_data!S16+Inflated_data!S17 -> 75927928.66 | S9: =+Inflated_data!T13-Inflated_data!T16+Inflated_data!T17 -> 88797315.23 | T9: =+Inflated_data!U13-Inflated_data!U16+Inflated_data!U17 -> 94424611.98 | U9: =+Inflated_data!V13-Inflated_data!V16+Inflated_data!V17 -> 117314693.8 | V9: =+Inflated_data!W13-Inflated_data!W16+Inflated_data!W17 -> 119369584.6 | W9: =+Inflated_data!X13-Inflated_data!X16+Inflated_data!X17 -> 172269584.7 | X9: =+Inflated_data!Y13-Inflated_data!Y16+Inflated_data!Y17 -> 140408766 | Y9: =+Inflated_data!Z13-Inflated_data!Z16+Inflated_data!Z17 -> 77301077.68 | Z9: =+Inflated_data!AA13-Inflated_data!AA16+Inflated_data!AA17 -> 313381261.7 | AA9: =+Inflated_data!AB13-Inflated_data!AB16+Inflated_data!AB17 -> 335656658.3 | AB9: =+Inflated_data!AC13-Inflated_data!AC16+Inflated_data!AC17 -> 394739200.9 | AC9: =+Inflated_data!AD13-Inflated_data!AD16+Inflated_data!AD17 -> 143949052.7 | AD9: =+Inflated_data!AE13-Inflated_data!AE16+Inflated_data!AE17 -> 144426996.3 | AE9: =+Inflated_data!AF13-Inflated_data!AF16+Inflated_data!AF17 -> 147105541.8 | AF9: =+Inflated_data!AG13-Inflated_data!AG16+Inflated_data!AG17 -> 163401690 | AG9: =+Inflated_data!AH13-Inflated_data!AH16+Inflated_data!AH17 -> 171999427.6 | AH9: =+Inflated_data!AI13-Inflated_data!AI16+Inflated_data!AI17 -> 193884021.6 | AI9: =+Inflated_data!AJ13-Inflated_data!AJ16+Inflated_data!AJ17 -> 137612719.6
